Body,Body name,Date,Transaction number,Amount,Non recoverable VAT included in amount,Supplier name,Supplier ID,Expense area,Fund type,Expense type,Category description
http://thanet.gov.uk/supplierspend,Thanet District Council,05/04/2019,472819,1000,,Arka Cartographics Ltd,ARK002,Dir Ops/Commercial Serv,Revenue,Services,FACILITIES AND MANGEMENT SERV
http://thanet.gov.uk/supplierspend,Thanet District Council,05/04/2019,472928,74000,,Citizens Advice Thanet,CIT016,Dir Ops/Commercial Serv,Revenue,Grants & Subscriptions,HUMAN RESOURCES
http://thanet.gov.uk/supplierspend,Thanet District Council,05/04/2019,472803,1221.46,,Dennis Eagle Ltd,DEN005,Dir Ops/Commercial Serv,Revenue,Direct Transport Costs,VEHICLE MANAGEMENT
http://thanet.gov.uk/supplierspend,Thanet District Council,05/04/2019,472808,2058,,Dover District Council,DOV001,Director Of Corp Gov/Mon Off,Revenue,Services,VARIOUS CATS-PUBLIC SECTOR
http://thanet.gov.uk/supplierspend,Thanet District Council,05/04/2019,472609,9750,,Enevo Uk Ltd,ENE002,Dir Ops/Commercial Serv,Revenue,"Equip, Furniture And Materials",ENVIRONMENTAL SERVICES
http://thanet.gov.uk/supplierspend,Thanet District Council,05/04/2019,472284,840,,Florence Court Hotel Ltd,FLO009,Deputy Chief Executive/S151,Revenue,Rents,HOUSING MANAGEMENT
http://thanet.gov.uk/supplierspend,Thanet District Council,05/04/2019,472285,840,,Florence Court Hotel Ltd,FLO009,Deputy Chief Executive/S151,Revenue,Rents,HOUSING MANAGEMENT
http://thanet.gov.uk/supplierspend,Thanet District Council,05/04/2019,472286,450,,Florence Court Hotel Ltd,FLO009,Deputy Chief Executive/S151,Revenue,Rents,HOUSING MANAGEMENT
http://thanet.gov.uk/supplierspend,Thanet District Council,05/04/2019,472287,840,,Florence Court Hotel Ltd,FLO009,Deputy Chief Executive/S151,Revenue,Rents,HOUSING MANAGEMENT
http://thanet.gov.uk/supplierspend,Thanet District Council,05/04/2019,472288,420,,Florence Court Hotel Ltd,FLO009,Deputy Chief Executive/S151,Revenue,Rents,HOUSING MANAGEMENT
http://thanet.gov.uk/supplierspend,Thanet District Council,05/04/2019,472290,840,,Florence Court Hotel Ltd,FLO009,Deputy Chief Executive/S151,Revenue,Rents,HOUSING MANAGEMENT
http://thanet.gov.uk/supplierspend,Thanet District Council,05/04/2019,472292,840,,Florence Court Hotel Ltd,FLO009,Deputy Chief Executive/S151,Revenue,Rents,HOUSING MANAGEMENT
http://thanet.gov.uk/supplierspend,Thanet District Council,05/04/2019,472294,840,,Florence Court Hotel Ltd,FLO009,Deputy Chief Executive/S151,Revenue,Rents,HOUSING MANAGEMENT
http://thanet.gov.uk/supplierspend,Thanet District Council,05/04/2019,472681,2977,,Giant Campus Limited,GIA001,Dir Ops/Commercial Serv,Revenue,Services,HUMAN RESOURCES
http://thanet.gov.uk/supplierspend,Thanet District Council,05/04/2019,472006,1303.11,,Glasdon Uk Ltd,GLA001,Dir Ops/Commercial Serv,Revenue,"Equip, Furniture And Materials",ENVIRONMENTAL SERVICES
http://thanet.gov.uk/supplierspend,Thanet District Council,05/04/2019,472976,10000,,H M Courts & Tribunal Service,HMC007,Dir Ops/Commercial Serv,Revenue,Services,GOVERNMENT AGENCIES
http://thanet.gov.uk/supplierspend,Thanet District Council,05/04/2019,471694,5490.18,,Hr Go (Kent) Ltd,HRG001,Dir Ops/Commercial Serv,Revenue,Agency Staff,HUMAN RESOURCES
http://thanet.gov.uk/supplierspend,Thanet District Council,05/04/2019,471695,3987.73,,Hr Go (Kent) Ltd,HRG001,Dir Ops/Commercial Serv,Revenue,Agency Staff,HUMAN RESOURCES
http://thanet.gov.uk/supplierspend,Thanet District Council,05/04/2019,471754,1665.9,,Hr Go (Kent) Ltd,HRG001,Dir Ops/Commercial Serv,Revenue,Agency Staff,HUMAN RESOURCES
http://thanet.gov.uk/supplierspend,Thanet District Council,05/04/2019,471758,649.7,,Hr Go (Kent) Ltd,HRG001,Dir Ops/Commercial Serv,Revenue,Agency Staff,HUMAN RESOURCES
http://thanet.gov.uk/supplierspend,Thanet District Council,05/04/2019,471961,3295.39,,Hr Go (Kent) Ltd,HRG001,Dir Ops/Commercial Serv,Revenue,Agency Staff,HUMAN RESOURCES
http://thanet.gov.uk/supplierspend,Thanet District Council,05/04/2019,471962,1946.53,,Hr Go (Kent) Ltd,HRG001,Dir Ops/Commercial Serv,Revenue,Agency Staff,HUMAN RESOURCES
http://thanet.gov.uk/supplierspend,Thanet District Council,05/04/2019,471963,3665.47,,Hr Go (Kent) Ltd,HRG001,Dir Ops/Commercial Serv,Revenue,Agency Staff,HUMAN RESOURCES
http://thanet.gov.uk/supplierspend,Thanet District Council,05/04/2019,472207,1633.9,,Hr Go (Kent) Ltd,HRG001,Dir Ops/Commercial Serv,Revenue,Agency Staff,HUMAN RESOURCES
http://thanet.gov.uk/supplierspend,Thanet District Council,05/04/2019,472212,767.38,,Hr Go (Kent) Ltd,HRG001,Dir Ops/Commercial Serv,Revenue,Agency Staff,HUMAN RESOURCES
http://thanet.gov.uk/supplierspend,Thanet District Council,05/04/2019,472213,658.6,,Hr Go (Kent) Ltd,HRG001,Dir Ops/Commercial Serv,Revenue,Agency Staff,HUMAN RESOURCES
http://thanet.gov.uk/supplierspend,Thanet District Council,05/04/2019,472214,1338.89,,Hr Go (Kent) Ltd,HRG001,Dir Ops/Commercial Serv,Revenue,Agency Staff,HUMAN RESOURCES
http://thanet.gov.uk/supplierspend,Thanet District Council,05/04/2019,472234,3426.96,,Hr Go (Kent) Ltd,HRG001,Dir Ops/Commercial Serv,Revenue,Agency Staff,HUMAN RESOURCES
http://thanet.gov.uk/supplierspend,Thanet District Council,05/04/2019,472235,5342.32,,Hr Go (Kent) Ltd,HRG001,Dir Ops/Commercial Serv,Revenue,Agency Staff,HUMAN RESOURCES
http://thanet.gov.uk/supplierspend,Thanet District Council,05/04/2019,472933,8000,,Hubbard & Houghton Construction Ltd,HUB003,Director of Corporate Resources and S151,Balance Sheet,Capital Exp-Non Council Assets,GRANTS
http://thanet.gov.uk/supplierspend,Thanet District Council,05/04/2019,472143,69938.8,,Intermarine Ltd,INT008,Director of Corporate Resources and S151,Balance Sheet,Other Land And Buildings-Hra,MARITIME SERVICES
http://thanet.gov.uk/supplierspend,Thanet District Council,05/04/2019,472939,645.4,,John Gale,GAL001,Director of Corporate Resources and S151,Balance Sheet,Capital Exp-Non Council Assets,GRANTS
http://thanet.gov.uk/supplierspend,Thanet District Council,05/04/2019,472618,544.44,,Kent County Council,KCC002,Director of Corporate Resources and S151,Balance Sheet,Council Dwellings,VARIOUS CATS-PUBLIC SECTOR
http://thanet.gov.uk/supplierspend,Thanet District Council,05/04/2019,472792,718.14,,Kent County Council,KCC002,Director Of Corp Gov/Mon Off,Revenue,Services,VARIOUS CATS-PUBLIC SECTOR
http://thanet.gov.uk/supplierspend,Thanet District Council,05/04/2019,472187,1628,,Lanes (South East) Ltd,LAN033,Dir Ops/Commercial Serv,Revenue,Miscellaneous Expenses,FACILITIES AND MANGEMENT SERV
http://thanet.gov.uk/supplierspend,Thanet District Council,05/04/2019,472703,7750,,Lavat Consulting Ltd,LAV004,Deputy Chief Executive/S151,Revenue,Services,FINANCIAL SERVICES
http://thanet.gov.uk/supplierspend,Thanet District Council,05/04/2019,472607,810,,Main Man Supplies Ltd,MAI001,Dir Ops/Commercial Serv,Revenue,"Clothes, Uniforms & Laundry",CLOTHING
http://thanet.gov.uk/supplierspend,Thanet District Council,05/04/2019,472972,1971,,Miles & Barr Property Man  Ltd,MIL048,Deputy Chief Executive/S151,Revenue,Grants & Subscriptions,RENT DEPOSITS
http://thanet.gov.uk/supplierspend,Thanet District Council,05/04/2019,472973,1250,,Miles & Barr Property Man  Ltd,MIL048,Deputy Chief Executive/S151,Revenue,Grants & Subscriptions,RENT DEPOSITS
http://thanet.gov.uk/supplierspend,Thanet District Council,05/04/2019,472978,7166.28,,Mitchell & Co Uk Ltd,MIT008,Director of Corporate Resources and S151,Balance Sheet,Capital Exp-Non Council Assets,GRANTS
http://thanet.gov.uk/supplierspend,Thanet District Council,05/04/2019,472983,5000,,Neopost Limited Neofunds,NEO004,Director Of Corp Gov/Mon Off,Revenue,Communications & Computing,MAIL SERVICES
http://thanet.gov.uk/supplierspend,Thanet District Council,05/04/2019,472938,6454,,Northwood Builders,NOR002,Director of Corporate Resources and S151,Balance Sheet,Capital Exp-Non Council Assets,GRANTS
http://thanet.gov.uk/supplierspend,Thanet District Council,05/04/2019,472965,850,,Oakwood Homes Estate Agents Ltd,OAK007,Deputy Chief Executive/S151,Revenue,Grants & Subscriptions,RENT DEPOSITS
http://thanet.gov.uk/supplierspend,Thanet District Council,05/04/2019,472935,696.48,,Peabody South East Limited,PEA024,Director of Corporate Resources and S151,Balance Sheet,Capital Exp-Non Council Assets,GRANTS
http://thanet.gov.uk/supplierspend,Thanet District Council,05/04/2019,472974,1500,,Prospects Assured Uk Ltd,PRO032,Deputy Chief Executive/S151,Revenue,Grants & Subscriptions,RENT DEPOSITS
http://thanet.gov.uk/supplierspend,Thanet District Council,05/04/2019,472975,1500,,Prospects Assured Uk Ltd,PRO032,Deputy Chief Executive/S151,Revenue,Grants & Subscriptions,RENT DEPOSITS
http://thanet.gov.uk/supplierspend,Thanet District Council,05/04/2019,472967,17426.25,,Redacted Personal Data,N/A,Director of Corporate Resources and S151,Balance Sheet,Capital Exp-Non Council Assets,GRANTS
http://thanet.gov.uk/supplierspend,Thanet District Council,05/04/2019,N/A,1750,,Redacted Personal Data,N/A,Deputy Chief Executive/S151,Revenue,Grants & Subscriptions,RENT DEPOSITS
http://thanet.gov.uk/supplierspend,Thanet District Council,05/04/2019,N/A,700,,Redacted Personal Data,N/A,Deputy Chief Executive/S151,Revenue,Grants & Subscriptions,RENT DEPOSITS
http://thanet.gov.uk/supplierspend,Thanet District Council,05/04/2019,N/A,880,,Redacted Personal Data,N/A,Deputy Chief Executive/S151,Revenue,Grants & Subscriptions,RENT DEPOSITS
http://thanet.gov.uk/supplierspend,Thanet District Council,05/04/2019,472814,1632,,Socotec Uk Limited,SOC005,Dir Ops/Commercial Serv,Revenue,Services,ENVIRONMENTAL SERVICES
http://thanet.gov.uk/supplierspend,Thanet District Council,05/04/2019,472699,9558.4,,The Bell Brush Company,BEL018,Dir Ops/Commercial Serv,Revenue,"Equip, Furniture And Materials",CLEANING AND JANITORIAL
http://thanet.gov.uk/supplierspend,Thanet District Council,05/04/2019,472969,2180.5,,Tms Property Services Llp,TMS002,Deputy Chief Executive/S151,Revenue,Grants & Subscriptions,RENT DEPOSITS
http://thanet.gov.uk/supplierspend,Thanet District Council,05/04/2019,472634,9750,,Visit Kent Ltd,VIS005,Dir Ops/Commercial Serv,Revenue,Services,ARTS AND LEISURE SERVICES
http://thanet.gov.uk/supplierspend,Thanet District Council,05/04/2019,472798,7167.05,,Zurich Insurance Plc,ZUR007,Director of Corporate Resources and S151,Balance Sheet,Insurance Holding Account,FINANCIAL SERVICES
http://thanet.gov.uk/supplierspend,Thanet District Council,05/04/2019,472799,3770.55,,Zurich Insurance Plc,ZUR007,Director of Corporate Resources and S151,Balance Sheet,Insurance Holding Account,FINANCIAL SERVICES
http://thanet.gov.uk/supplierspend,Thanet District Council,09/04/2019,472901,502.5,,Andy Morris,MOR028,Dir Ops/Commercial Serv,Revenue,Services,ARTS AND LEISURE SERVICES
http://thanet.gov.uk/supplierspend,Thanet District Council,09/04/2019,472884,976,,Aston Walker,AST008,Dir Ops/Commercial Serv,Revenue,Services,CEMETERY AND CREMATORIUM
http://thanet.gov.uk/supplierspend,Thanet District Council,09/04/2019,472215,10266.44,,C W Surfacing Ltd,CWS001,Dir Ops/Commercial Serv,Revenue,"Repairs,  Alter & Mtce - Build",CONSTRUCTION-REPAIR AND MAINT
http://thanet.gov.uk/supplierspend,Thanet District Council,09/04/2019,472305,7333,,Canterbury City Council,CAN004,Deputy Chief Executive/S151,Revenue,Services,VARIOUS CATS-PUBLIC SECTOR
http://thanet.gov.uk/supplierspend,Thanet District Council,09/04/2019,472136,813,,Compliance Online Limited,COM055,Deputy Chief Executive/S151,Revenue,Expenses,FINANCIAL SERVICES
http://thanet.gov.uk/supplierspend,Thanet District Council,09/04/2019,470573,6335,,Dha Planning Limited,DHA002,Deputy Chief Executive/S151,Revenue,Services,CONSULTANCY
http://thanet.gov.uk/supplierspend,Thanet District Council,09/04/2019,472110,10100.03,,Dover District Council,DOV001,Deputy Chief Executive/S151,Revenue,Communications & Computing,VARIOUS CATS-PUBLIC SECTOR
http://thanet.gov.uk/supplierspend,Thanet District Council,09/04/2019,472641,3444.91,,E Saunders Margate Ltd,SAU001,Dir Ops/Commercial Serv,Revenue,"Repairs,  Alter & Mtce - Build",CONSTRUCTION-REPAIR AND MAINT
http://thanet.gov.uk/supplierspend,Thanet District Council,09/04/2019,472617,3853.9,,Electrical Lighting Solutions Ltd,ELE013,Dir Ops/Commercial Serv,Revenue,"Repairs,  Alter & Mtce - Build",BUILDING CONSTRUCTION MATERIAL
http://thanet.gov.uk/supplierspend,Thanet District Council,09/04/2019,473101,-3853.9,,Electrical Lighting Solutions Ltd,ELE013,Dir Ops/Commercial Serv,Revenue,"Repairs,  Alter & Mtce - Build",BUILDING CONSTRUCTION MATERIAL
http://thanet.gov.uk/supplierspend,Thanet District Council,09/04/2019,473102,3853.9,,Electrical Lighting Solutions Ltd,ELE013,Dir Ops/Commercial Serv,Revenue,"Repairs,  Alter & Mtce - Build",BUILDING CONSTRUCTION MATERIAL
http://thanet.gov.uk/supplierspend,Thanet District Council,09/04/2019,472630,9000,,Hipperson Builders (M & E) Limited,HIP002,Director of Corporate Resources and S151,Balance Sheet,Other Land And Buildings-Hra,CONSTRUCTION-REPAIR AND MAINT
http://thanet.gov.uk/supplierspend,Thanet District Council,09/04/2019,472735,1580,,J H (Lifting Gear Hire) Limited,JHL001,Dir Ops/Commercial Serv,Revenue,"Repairs,  Alter & Mtce - Build",MARITIME SERVICES
http://thanet.gov.uk/supplierspend,Thanet District Council,09/04/2019,472620,500,,J Rospo Building Contractors Ltd,ROS001,Director Of Corp Gov/Mon Off,Revenue,"Repairs,  Alter & Mtce - Build",CONSTRUCTION-REPAIR AND MAINT
http://thanet.gov.uk/supplierspend,Thanet District Council,09/04/2019,473107,-500,,J Rospo Building Contractors Ltd,ROS001,Director Of Corp Gov/Mon Off,Revenue,"Repairs,  Alter & Mtce - Build",CONSTRUCTION-REPAIR AND MAINT
http://thanet.gov.uk/supplierspend,Thanet District Council,09/04/2019,473108,500,,J Rospo Building Contractors Ltd,ROS001,Director Of Corp Gov/Mon Off,Revenue,"Repairs,  Alter & Mtce - Build",CONSTRUCTION-REPAIR AND MAINT
http://thanet.gov.uk/supplierspend,Thanet District Council,09/04/2019,472616,7499.58,,Kew (Electrical Distributors) Ltd,KEW001,Dir Ops/Commercial Serv,Revenue,"Equip, Furniture And Materials",BUILDING CONSTRUCTION MATERIAL
http://thanet.gov.uk/supplierspend,Thanet District Council,09/04/2019,472800,743.16,,Kew (Electrical Distributors) Ltd,KEW001,Dir Ops/Commercial Serv,Revenue,"Equip, Furniture And Materials",BUILDING CONSTRUCTION MATERIAL
http://thanet.gov.uk/supplierspend,Thanet District Council,09/04/2019,472926,703.12,,Mears Ltd,MEA003,Director of Corporate Resources and S151,Balance Sheet,Repairs And Mtce Holding A/C,CONSTRUCTION-REPAIR AND MAINT
http://thanet.gov.uk/supplierspend,Thanet District Council,09/04/2019,472927,4992.65,,Mears Ltd,MEA003,Director of Corporate Resources and S151,Balance Sheet,Repairs And Mtce Holding A/C,CONSTRUCTION-REPAIR AND MAINT
http://thanet.gov.uk/supplierspend,Thanet District Council,09/04/2019,472964,780,,Michael Page Int Recruitment Ltd,PAG008,Deputy Chief Executive/S151,Revenue,Agency Staff,HUMAN RESOURCES
http://thanet.gov.uk/supplierspend,Thanet District Council,09/04/2019,473092,889.08,,Midland Software Limited,MID013,East Kent Shared Services,Revenue,Communications & Computing,ICT
http://thanet.gov.uk/supplierspend,Thanet District Council,09/04/2019,473094,7729.55,,Midland Software Limited,MID013,East Kent Shared Services,Revenue,Communications & Computing,ICT
http://thanet.gov.uk/supplierspend,Thanet District Council,09/04/2019,473095,1097.9,,Midland Software Limited,MID013,East Kent Shared Services,Revenue,Communications & Computing,ICT
http://thanet.gov.uk/supplierspend,Thanet District Council,09/04/2019,473099,1545.86,,Midland Software Limited,MID013,East Kent Shared Services,Revenue,Communications & Computing,ICT
http://thanet.gov.uk/supplierspend,Thanet District Council,09/04/2019,472116,72638.37,,Ovenden Allworks Limited,OVE008,Dir Ops/Commercial Serv,Revenue,"Repairs,  Alter & Mtce - Build",CONSTRUCTION-REPAIR AND MAINT
http://thanet.gov.uk/supplierspend,Thanet District Council,09/04/2019,472621,4125,,Ovenden Allworks Limited,OVE008,Dir Ops/Commercial Serv,Revenue,"Repairs,  Alter & Mtce - Build",CONSTRUCTION-REPAIR AND MAINT
http://thanet.gov.uk/supplierspend,Thanet District Council,09/04/2019,472382,659.96,,P & R Installation Company Limited,PRI035,Director of Corporate Resources and S151,Balance Sheet,Repairs And Mtce Holding A/C,BUILDING CONSTRUCTION MATERIAL
http://thanet.gov.uk/supplierspend,Thanet District Council,09/04/2019,472384,25030.82,,P & R Installation Company Limited,PRI035,Director of Corporate Resources and S151,Balance Sheet,Repairs And Mtce Holding A/C,BUILDING CONSTRUCTION MATERIAL
http://thanet.gov.uk/supplierspend,Thanet District Council,09/04/2019,472645,25949.3,,Profile Security Services Limited,PRO018,Dir Ops/Commercial Serv,Revenue,Services,FACILITIES AND MANGEMENT SERV
http://thanet.gov.uk/supplierspend,Thanet District Council,09/04/2019,472646,961.25,,Profile Security Services Limited,PRO018,Dir Ops/Commercial Serv,Revenue,Services,FACILITIES AND MANGEMENT SERV
http://thanet.gov.uk/supplierspend,Thanet District Council,09/04/2019,472702,3841.2,,Profile Security Services Limited,PRO018,Dir Ops/Commercial Serv,Revenue,Services,FACILITIES AND MANGEMENT SERV
http://thanet.gov.uk/supplierspend,Thanet District Council,09/04/2019,473080,2000,,Prospects Assured Uk Ltd,PRO032,Deputy Chief Executive/S151,Revenue,Grants & Subscriptions,RENT DEPOSITS
http://thanet.gov.uk/supplierspend,Thanet District Council,09/04/2019,473081,1250,,Prospects Assured Uk Ltd,PRO032,Deputy Chief Executive/S151,Revenue,Grants & Subscriptions,RENT DEPOSITS
http://thanet.gov.uk/supplierspend,Thanet District Council,09/04/2019,472683,950.46,,Puls Global Ltd,PUL006,Dir Ops/Commercial Serv,Revenue,"Repairs,  Alter & Mtce - Build",FACILITIES AND MANGEMENT SERV
http://thanet.gov.uk/supplierspend,Thanet District Council,09/04/2019,472684,1292.73,,Puls Global Ltd,PUL006,Dir Ops/Commercial Serv,Revenue,"Repairs,  Alter & Mtce - Build",FACILITIES AND MANGEMENT SERV
http://thanet.gov.uk/supplierspend,Thanet District Council,09/04/2019,472685,837.73,,Puls Global Ltd,PUL006,Dir Ops/Commercial Serv,Revenue,"Repairs,  Alter & Mtce - Build",FACILITIES AND MANGEMENT SERV
http://thanet.gov.uk/supplierspend,Thanet District Council,09/04/2019,472686,1292.73,,Puls Global Ltd,PUL006,Dir Ops/Commercial Serv,Revenue,"Repairs,  Alter & Mtce - Build",FACILITIES AND MANGEMENT SERV
http://thanet.gov.uk/supplierspend,Thanet District Council,09/04/2019,472687,1292.73,,Puls Global Ltd,PUL006,Dir Ops/Commercial Serv,Revenue,"Repairs,  Alter & Mtce - Build",FACILITIES AND MANGEMENT SERV
http://thanet.gov.uk/supplierspend,Thanet District Council,09/04/2019,N/A,1234.99,,Redacted Personal Data,N/A,Deputy Chief Executive/S151,Revenue,Grants & Subscriptions,RENT DEPOSITS
http://thanet.gov.uk/supplierspend,Thanet District Council,09/04/2019,N/A,1624.99,,Redacted Personal Data,N/A,Deputy Chief Executive/S151,Revenue,Grants & Subscriptions,RENT DEPOSITS
http://thanet.gov.uk/supplierspend,Thanet District Council,09/04/2019,472872,1295,,Reed Specialist Recruitment Ltd,REE015,Deputy Chief Executive/S151,Revenue,Agency Staff,HUMAN RESOURCES
http://thanet.gov.uk/supplierspend,Thanet District Council,09/04/2019,472691,1560,,Rh Environmental Ltd,RHE001,Dir Ops/Commercial Serv,Revenue,"Equip, Furniture And Materials",HUMAN RESOURCES
http://thanet.gov.uk/supplierspend,Thanet District Council,09/04/2019,472847,1653.77,,Scottish Water Business Stream Ltd,SCO019,Dir Ops/Commercial Serv,Revenue,Water Services,UTILITIES
http://thanet.gov.uk/supplierspend,Thanet District Council,09/04/2019,472848,695.62,,Scottish Water Business Stream Ltd,SCO019,Dir Ops/Commercial Serv,Revenue,Water Services,UTILITIES
http://thanet.gov.uk/supplierspend,Thanet District Council,09/04/2019,472850,1336.89,,Scottish Water Business Stream Ltd,SCO019,Dir Ops/Commercial Serv,Revenue,Water Services,UTILITIES
http://thanet.gov.uk/supplierspend,Thanet District Council,09/04/2019,472851,1975.25,,Scottish Water Business Stream Ltd,SCO019,Dir Ops/Commercial Serv,Revenue,Water Services,UTILITIES
http://thanet.gov.uk/supplierspend,Thanet District Council,09/04/2019,472854,1866.94,,Scottish Water Business Stream Ltd,SCO019,Dir Ops/Commercial Serv,Revenue,Water Services,UTILITIES
http://thanet.gov.uk/supplierspend,Thanet District Council,09/04/2019,472855,2578.5,,Scottish Water Business Stream Ltd,SCO019,Dir Ops/Commercial Serv,Revenue,Water Services,UTILITIES
http://thanet.gov.uk/supplierspend,Thanet District Council,09/04/2019,472856,-4893.74,,Scottish Water Business Stream Ltd,SCO019,Dir Ops/Commercial Serv,Revenue,Water Services,UTILITIES
http://thanet.gov.uk/supplierspend,Thanet District Council,09/04/2019,472879,1643.77,,Scottish Water Business Stream Ltd,SCO019,Dir Ops/Commercial Serv,Revenue,Water Services,UTILITIES
http://thanet.gov.uk/supplierspend,Thanet District Council,09/04/2019,472880,661.66,,Scottish Water Business Stream Ltd,SCO019,Dir Ops/Commercial Serv,Revenue,Water Services,UTILITIES
http://thanet.gov.uk/supplierspend,Thanet District Council,09/04/2019,472881,1395.22,,Scottish Water Business Stream Ltd,SCO019,Dir Ops/Commercial Serv,Revenue,Water Services,UTILITIES
http://thanet.gov.uk/supplierspend,Thanet District Council,09/04/2019,472890,-3834.24,,Scottish Water Business Stream Ltd,SCO019,Dir Ops/Commercial Serv,Revenue,Water Services,UTILITIES
http://thanet.gov.uk/supplierspend,Thanet District Council,09/04/2019,473079,600,,Thanet Property Rental,TPR001,Deputy Chief Executive/S151,Revenue,Grants & Subscriptions,RENT DEPOSITS
http://thanet.gov.uk/supplierspend,Thanet District Council,09/04/2019,472046,1077.3,,Thanet Waste Services Ltd,TWA001,Dir Ops/Commercial Serv,Revenue,Cleaning & Domestic Supplies,ENVIRONMENTAL SERVICES
http://thanet.gov.uk/supplierspend,Thanet District Council,09/04/2019,472047,530.4,,Thanet Waste Services Ltd,TWA001,Dir Ops/Commercial Serv,Revenue,Cleaning & Domestic Supplies,ENVIRONMENTAL SERVICES
http://thanet.gov.uk/supplierspend,Thanet District Council,09/04/2019,472971,2180.5,,Tms Property Services Llp,TMS002,Deputy Chief Executive/S151,Revenue,Grants & Subscriptions,RENT DEPOSITS
http://thanet.gov.uk/supplierspend,Thanet District Council,15/04/2019,473515,148482,,Paramount Ind Property Services Llp,PAR074,Deputy Chief Executive/S151,Revenue,Services,HOUSING MANAGEMENT
http://thanet.gov.uk/supplierspend,Thanet District Council,16/04/2019,472027,3572.2,,A B Crush Panelcraft Ltd,ABC004,Dir Ops/Commercial Serv,Revenue,Direct Transport Costs,VEHICLE MANAGEMENT
http://thanet.gov.uk/supplierspend,Thanet District Council,16/04/2019,469063,1758.35,,Bondsbrook Clothing Ltd,BON010,East Kent Shared Services,Revenue,"Clothes, Uniforms & Laundry",CLOTHING
http://thanet.gov.uk/supplierspend,Thanet District Council,16/04/2019,472897,966.33,,Calibre Cleaning Ltd,CAL010,Director Of Corp Gov/Mon Off,Revenue,Cleaning & Domestic Supplies,CLEANING AND JANITORIAL
http://thanet.gov.uk/supplierspend,Thanet District Council,16/04/2019,473335,638.89,,Capita Business Services Ltd,CAP001,Deputy Chief Executive/S151,Revenue,Services,HUMAN RESOURCES
http://thanet.gov.uk/supplierspend,Thanet District Council,16/04/2019,472733,1950,,Concrete & Corrosion Cons Prac Ltd,CON049,Dir Ops/Commercial Serv,Revenue,"Repairs,  Alter & Mtce - Build",CONSTRUCTION-REPAIR AND MAINT
http://thanet.gov.uk/supplierspend,Thanet District Council,16/04/2019,473540,55300.23,,D C L G,DCL002,Director of Corporate Resources and S151,Balance Sheet,Capital Receipts Reserve,GOVERNMENT AGENCIES
http://thanet.gov.uk/supplierspend,Thanet District Council,16/04/2019,472818,1894.1,,Daedalus Environmental Ltd,DAE001,Director Of Corp Gov/Mon Off,Revenue,Services,CONSULTANCY
http://thanet.gov.uk/supplierspend,Thanet District Council,16/04/2019,472098,8025.1,,Dcb (Kent) Ltd,DCB001,Director of Corporate Resources and S151,Balance Sheet,Repairs And Mtce Holding A/C,CONSTRUCTION-REPAIR AND MAINT
http://thanet.gov.uk/supplierspend,Thanet District Council,16/04/2019,473100,140192.43,,Dcb (Kent) Ltd,DCB001,Director of Corporate Resources and S151,Balance Sheet,Repairs And Mtce Holding A/C,CONSTRUCTION-REPAIR AND MAINT
http://thanet.gov.uk/supplierspend,Thanet District Council,16/04/2019,472639,9789,,Future-Tech Sci Ltd,FUT001,Director Of Corp Gov/Mon Off,Revenue,"Repairs,  Alter & Mtce - Build",FACILITIES AND MANGEMENT SERV
http://thanet.gov.uk/supplierspend,Thanet District Council,16/04/2019,472966,624,,Griffiths & Nielsen Limited,GRI022,Dir Ops/Commercial Serv,Revenue,"Equip, Furniture And Materials",ENVIRONMENTAL SERVICES
http://thanet.gov.uk/supplierspend,Thanet District Council,16/04/2019,472638,469,,Guardian Security & Fire Ltd,GUA005,Dir Ops/Commercial Serv,Revenue,"Repairs,  Alter & Mtce - Build",HEALTH AND SAFETY
http://thanet.gov.uk/supplierspend,Thanet District Council,16/04/2019,472954,676.44,,Hr Go (Kent) Ltd,HRG001,Dir Ops/Commercial Serv,Revenue,Agency Staff,HUMAN RESOURCES
http://thanet.gov.uk/supplierspend,Thanet District Council,16/04/2019,472956,797.3,,Hr Go (Kent) Ltd,HRG001,Dir Ops/Commercial Serv,Revenue,Agency Staff,HUMAN RESOURCES
http://thanet.gov.uk/supplierspend,Thanet District Council,16/04/2019,473527,755,,John Gale,GAL001,Director of Corporate Resources and S151,Balance Sheet,Capital Exp-Non Council Assets,GRANTS
http://thanet.gov.uk/supplierspend,Thanet District Council,16/04/2019,473349,2322.48,,Kent County Council (Kcs),KCC003,Director Of Corp Gov/Mon Off,Revenue,Energy Costs,FACILITIES AND MANGEMENT SERV
http://thanet.gov.uk/supplierspend,Thanet District Council,16/04/2019,473353,902.98,,Kent County Council (Kcs),KCC003,Dir Ops/Commercial Serv,Revenue,Energy Costs,FACILITIES AND MANGEMENT SERV
http://thanet.gov.uk/supplierspend,Thanet District Council,16/04/2019,473354,2433.09,,Kent County Council (Kcs),KCC003,Dir Ops/Commercial Serv,Revenue,Energy Costs,FACILITIES AND MANGEMENT SERV
http://thanet.gov.uk/supplierspend,Thanet District Council,16/04/2019,473355,1023.32,,Kent County Council (Kcs),KCC003,Dir Ops/Commercial Serv,Revenue,Energy Costs,FACILITIES AND MANGEMENT SERV
http://thanet.gov.uk/supplierspend,Thanet District Council,16/04/2019,473357,1727.49,,Kent County Council (Kcs),KCC003,Director Of Corp Gov/Mon Off,Revenue,Energy Costs,FACILITIES AND MANGEMENT SERV
http://thanet.gov.uk/supplierspend,Thanet District Council,16/04/2019,472409,6882,,Lanes (South East) Ltd,LAN033,Dir Ops/Commercial Serv,Revenue,Miscellaneous Expenses,FACILITIES AND MANGEMENT SERV
http://thanet.gov.uk/supplierspend,Thanet District Council,16/04/2019,473532,1238.46,,Lovetts Birchington Ltd,LOV006,Deputy Chief Executive/S151,Revenue,Grants & Subscriptions,RENT DEPOSITS
http://thanet.gov.uk/supplierspend,Thanet District Council,16/04/2019,472700,30,,Machine Mart Ltd,MAC003,Dir Ops/Commercial Serv,Revenue,"Equip, Furniture And Materials",VEHICLE MANAGEMENT
http://thanet.gov.uk/supplierspend,Thanet District Council,16/04/2019,472700,697.98,,Machine Mart Ltd,MAC003,Dir Ops/Commercial Serv,Revenue,"Repairs,  Alter & Mtce - Build",VEHICLE MANAGEMENT
http://thanet.gov.uk/supplierspend,Thanet District Council,16/04/2019,472898,1049.17,,Machine Mart Ltd,MAC003,Dir Ops/Commercial Serv,Revenue,"Equip, Furniture And Materials",VEHICLE MANAGEMENT
http://thanet.gov.uk/supplierspend,Thanet District Council,16/04/2019,472627,21670.31,,Mears Ltd,MEA003,Director of Corporate Resources and S151,Balance Sheet,Repairs And Mtce Holding A/C,CONSTRUCTION-REPAIR AND MAINT
http://thanet.gov.uk/supplierspend,Thanet District Council,16/04/2019,472628,52155.94,,Mears Ltd,MEA003,Director of Corporate Resources and S151,Balance Sheet,Repairs And Mtce Holding A/C,CONSTRUCTION-REPAIR AND MAINT
http://thanet.gov.uk/supplierspend,Thanet District Council,16/04/2019,472632,52787.01,,Mears Ltd,MEA003,Director of Corporate Resources and S151,Balance Sheet,Repairs And Mtce Holding A/C,CONSTRUCTION-REPAIR AND MAINT
http://thanet.gov.uk/supplierspend,Thanet District Council,16/04/2019,472837,1857.64,,Medway Council,MED003,Director Of Corp Gov/Mon Off,Revenue,Services,VARIOUS CATS-PUBLIC SECTOR
http://thanet.gov.uk/supplierspend,Thanet District Council,16/04/2019,472896,1148.6,,National Express Ltd,NAT010,Dir Ops/Commercial Serv,Revenue,Services,AGENCY PAYMENTS
http://thanet.gov.uk/supplierspend,Thanet District Council,16/04/2019,473528,953.81,,Peabody South East Limited,PEA024,Director of Corporate Resources and S151,Balance Sheet,Capital Exp-Non Council Assets,GRANTS
http://thanet.gov.uk/supplierspend,Thanet District Council,16/04/2019,472023,585.21,,Posturite Ltd,POS010,Dir Ops/Commercial Serv,Revenue,"Equip, Furniture And Materials",HEALTH AND SAFETY
http://thanet.gov.uk/supplierspend,Thanet District Council,16/04/2019,472677,455,,R Cannon,CAN007,Dir Ops/Commercial Serv,Revenue,Services,MARITIME SERVICES
http://thanet.gov.uk/supplierspend,Thanet District Council,16/04/2019,N/A,10000,,Redacted Personal Data,N/A,Dir Ops/Commercial Serv,Revenue,N/A,LEGAL SERVICES
http://thanet.gov.uk/supplierspend,Thanet District Council,16/04/2019,472308,1330,,Reed Specialist Recruitment Ltd,REE015,Deputy Chief Executive/S151,Revenue,Agency Staff,HUMAN RESOURCES
http://thanet.gov.uk/supplierspend,Thanet District Council,16/04/2019,472610,2159.91,,Safetyshop,SAF010,Dir Ops/Commercial Serv,Revenue,"Equip, Furniture And Materials",HEALTH AND SAFETY
http://thanet.gov.uk/supplierspend,Thanet District Council,16/04/2019,473247,1616.76,,Scottish Water Business Stream Ltd,SCO019,Dir Ops/Commercial Serv,Revenue,Water Services,UTILITIES
http://thanet.gov.uk/supplierspend,Thanet District Council,16/04/2019,473285,924.29,,Scottish Water Business Stream Ltd,SCO019,Dir Ops/Commercial Serv,Revenue,Water Services,UTILITIES
http://thanet.gov.uk/supplierspend,Thanet District Council,16/04/2019,472644,3195,,Sellick Partnership Ltd,SEL011,Director Of Corp Gov/Mon Off,Revenue,Agency Staff,HUMAN RESOURCES
http://thanet.gov.uk/supplierspend,Thanet District Council,16/04/2019,472960,425,,Sellick Partnership Ltd,SEL011,Director Of Corp Gov/Mon Off,Revenue,Services,HUMAN RESOURCES
http://thanet.gov.uk/supplierspend,Thanet District Council,16/04/2019,473218,1917,,Sellick Partnership Ltd,SEL011,Director Of Corp Gov/Mon Off,Revenue,Agency Staff,HUMAN RESOURCES
http://thanet.gov.uk/supplierspend,Thanet District Council,16/04/2019,473526,7550,,South East Building Company Limited,SEB001,Director of Corporate Resources and S151,Balance Sheet,Capital Exp-Non Council Assets,GRANTS
http://thanet.gov.uk/supplierspend,Thanet District Council,16/04/2019,473243,1551.47,,Southern Electric,SEL007,Deputy Chief Executive/S151,Revenue,Energy Costs,UTILITIES
http://thanet.gov.uk/supplierspend,Thanet District Council,16/04/2019,472865,5200,,The Fulker Consultancy Limited,FUL005,Director of Corporate Resources and S151,Balance Sheet,Repairs And Mtce Holding A/C,CONSULTANCY
http://thanet.gov.uk/supplierspend,Thanet District Council,16/04/2019,472866,5495,,The Fulker Consultancy Limited,FUL005,Director of Corporate Resources and S151,Balance Sheet,Repairs And Mtce Holding A/C,CONSULTANCY
http://thanet.gov.uk/supplierspend,Thanet District Council,16/04/2019,472867,6295,,The Fulker Consultancy Limited,FUL005,Director of Corporate Resources and S151,Balance Sheet,Repairs And Mtce Holding A/C,CONSULTANCY
http://thanet.gov.uk/supplierspend,Thanet District Council,16/04/2019,472868,6295,,The Fulker Consultancy Limited,FUL005,Director of Corporate Resources and S151,Balance Sheet,Repairs And Mtce Holding A/C,CONSULTANCY
http://thanet.gov.uk/supplierspend,Thanet District Council,16/04/2019,472869,6095,,The Fulker Consultancy Limited,FUL005,Director of Corporate Resources and S151,Balance Sheet,Repairs And Mtce Holding A/C,CONSULTANCY
http://thanet.gov.uk/supplierspend,Thanet District Council,16/04/2019,472682,1789.47,,The Oyster Partnership Ltd,OYS001,Director Of Corp Gov/Mon Off,Revenue,Agency Staff,HUMAN RESOURCES
http://thanet.gov.uk/supplierspend,Thanet District Council,16/04/2019,469878,732.9,,Trustmarque Solutions Limited,TRU014,Director of Corporate Resources and S151,Balance Sheet,Plant And Equipment,ICT
http://thanet.gov.uk/supplierspend,Thanet District Council,16/04/2019,473525,10640,,University Of Kent,UNI038,Director of Corporate Resources and S151,Balance Sheet,Capital Exp-Non Council Assets,HUMAN RESOURCES
http://thanet.gov.uk/supplierspend,Thanet District Council,16/04/2019,473524,233125.2,,Veale Wasbrough Vizards Llp,VEA001,Director of Corporate Resources and S151,Balance Sheet,Council Dwellings,LEGAL SERVICES
http://thanet.gov.uk/supplierspend,Thanet District Council,16/04/2019,472959,570,,Visit Kent Ltd,VIS005,Dir Ops/Commercial Serv,Revenue,Communications & Computing,ARTS AND LEISURE SERVICES
http://thanet.gov.uk/supplierspend,Thanet District Council,16/04/2019,472642,10890,,Wilks Head & Eve,WIL028,Director Of Corp Gov/Mon Off,Revenue,Services,CONSULTANCY
http://thanet.gov.uk/supplierspend,Thanet District Council,16/04/2019,472643,2250,,Wilks Head & Eve,WIL028,Dir Ops/Commercial Serv,Revenue,Services,CONSULTANCY
http://thanet.gov.uk/supplierspend,Thanet District Council,17/04/2019,473523,287308,,Kent & Medway Towns Fire Authority,KMT001,Director of Corporate Resources and S151,Balance Sheet,Collection Fund,VARIOUS CATS-PUBLIC SECTOR
http://thanet.gov.uk/supplierspend,Thanet District Council,17/04/2019,473521,4810438,,Kent County Council,KCC022,Director of Corporate Resources and S151,Balance Sheet,Collection Fund,VARIOUS CATS-PUBLIC SECTOR
http://thanet.gov.uk/supplierspend,Thanet District Council,17/04/2019,473522,711406,,Kent Police & Crime Commissioner,KPA003,Director of Corporate Resources and S151,Balance Sheet,Collection Fund,VARIOUS CATS-PUBLIC SECTOR
http://thanet.gov.uk/supplierspend,Thanet District Council,24/04/2019,473934,9253.98,,Acorn Maintenance Services Ltd,ACO010,Director of Corporate Resources and S151,Balance Sheet,Capital Exp-Non Council Assets,GRANTS
http://thanet.gov.uk/supplierspend,Thanet District Council,24/04/2019,473936,7614.13,,Acorn Maintenance Services Ltd,ACO010,Director of Corporate Resources and S151,Balance Sheet,Capital Exp-Non Council Assets,GRANTS
http://thanet.gov.uk/supplierspend,Thanet District Council,24/04/2019,473942,8123.22,,Acorn Maintenance Services Ltd,ACO010,Director of Corporate Resources and S151,Balance Sheet,Capital Exp-Non Council Assets,GRANTS
http://thanet.gov.uk/supplierspend,Thanet District Council,24/04/2019,473948,14060,,Ascendit Lifts Ltd,ASC001,Director of Corporate Resources and S151,Balance Sheet,Capital Exp-Non Council Assets,GRANTS
http://thanet.gov.uk/supplierspend,Thanet District Council,24/04/2019,472604,800,,Bevan Brittan Llp,BEV001,Director Of Corp Gov/Mon Off,Revenue,Services,LEGAL SERVICES
http://thanet.gov.uk/supplierspend,Thanet District Council,24/04/2019,471252,3692.15,,Blakedown Landscapes (Se) Ltd,BLA034,Director of Corporate Resources and S151,Balance Sheet,Other Land And Buildings-Hra,CONSTRUCTION-REPAIR AND MAINT
http://thanet.gov.uk/supplierspend,Thanet District Council,24/04/2019,473938,7474.5,,Bramling Construction Ltd,BRA020,Director of Corporate Resources and S151,Balance Sheet,Capital Exp-Non Council Assets,GRANTS
http://thanet.gov.uk/supplierspend,Thanet District Council,24/04/2019,473221,1722,,Canon (Uk) Ltd,CAN021,Director Of Corp Gov/Mon Off,Revenue,"Equip, Furniture And Materials",FACILITIES AND MANGEMENT SERV
http://thanet.gov.uk/supplierspend,Thanet District Council,24/04/2019,473824,1253.29,,Canon (Uk) Ltd,CAN021,Director Of Corp Gov/Mon Off,Revenue,"Equip, Furniture And Materials",FACILITIES AND MANGEMENT SERV
http://thanet.gov.uk/supplierspend,Thanet District Council,24/04/2019,473824,530.19,,Canon (Uk) Ltd,CAN021,Dir Ops/Commercial Serv,Revenue,"Equip, Furniture And Materials",FACILITIES AND MANGEMENT SERV
http://thanet.gov.uk/supplierspend,Thanet District Council,24/04/2019,473172,17595,,Capital Prop & Con Consultants Ltd,CAP018,Director of Corporate Resources and S151,Balance Sheet,Repairs And Mtce Holding A/C,HEALTH AND SAFETY
http://thanet.gov.uk/supplierspend,Thanet District Council,24/04/2019,473290,1197.66,,Centurylink Communications Uk Ltd,CEN021,Director of Corporate Resources and S151,Balance Sheet,Telephone Holding Account,ICT
http://thanet.gov.uk/supplierspend,Thanet District Council,24/04/2019,473318,2489.05,,Certas Energy Uk Ltd,CER005,Dir Ops/Commercial Serv,Revenue,"Equip, Furniture And Materials",VEHICLE MANAGEMENT
http://thanet.gov.uk/supplierspend,Thanet District Council,24/04/2019,473913,3019.52,,Certas Energy Uk Ltd,CER005,Dir Ops/Commercial Serv,Revenue,"Equip, Furniture And Materials",VEHICLE MANAGEMENT
http://thanet.gov.uk/supplierspend,Thanet District Council,24/04/2019,473174,660,,Disclosure And Barring Service,DIS017,Dir Ops/Commercial Serv,Revenue,"Equip, Furniture And Materials",HUMAN RESOURCES
http://thanet.gov.uk/supplierspend,Thanet District Council,24/04/2019,473946,4600,,Dolphin Lifts Kent,DOL003,Director of Corporate Resources and S151,Balance Sheet,Capital Exp-Non Council Assets,GRANTS
http://thanet.gov.uk/supplierspend,Thanet District Council,24/04/2019,472903,806,,Electrical Lighting Solutions Ltd,ELE013,Dir Ops/Commercial Serv,Revenue,"Repairs,  Alter & Mtce - Build",BUILDING CONSTRUCTION MATERIAL
http://thanet.gov.uk/supplierspend,Thanet District Council,24/04/2019,472906,1010.5,,Electrical Lighting Solutions Ltd,ELE013,Dir Ops/Commercial Serv,Revenue,"Repairs,  Alter & Mtce - Build",BUILDING CONSTRUCTION MATERIAL
http://thanet.gov.uk/supplierspend,Thanet District Council,24/04/2019,472930,921.87,,Electrical Lighting Solutions Ltd,ELE013,Dir Ops/Commercial Serv,Revenue,"Repairs,  Alter & Mtce - Build",BUILDING CONSTRUCTION MATERIAL
http://thanet.gov.uk/supplierspend,Thanet District Council,24/04/2019,472932,420.4,,Electrical Lighting Solutions Ltd,ELE013,Dir Ops/Commercial Serv,Revenue,"Repairs,  Alter & Mtce - Build",BUILDING CONSTRUCTION MATERIAL
http://thanet.gov.uk/supplierspend,Thanet District Council,24/04/2019,473944,9870,,Evermech Services Ltd,EVE011,Director of Corporate Resources and S151,Balance Sheet,Capital Exp-Non Council Assets,GRANTS
http://thanet.gov.uk/supplierspend,Thanet District Council,24/04/2019,473954,5389,,Evermech Services Ltd,EVE011,Director of Corporate Resources and S151,Balance Sheet,Capital Exp-Non Council Assets,GRANTS
http://thanet.gov.uk/supplierspend,Thanet District Council,24/04/2019,473914,859.68,,Gefco Uk Limited,GEF001,Dir Ops/Commercial Serv,Revenue,Miscellaneous Expenses,FINANCIAL SERVICES
http://thanet.gov.uk/supplierspend,Thanet District Council,24/04/2019,473902,922.45,,Graffiti Removal Ltd,GRA039,Dir Ops/Commercial Serv,Revenue,"Equip, Furniture And Materials",CLEANING AND JANITORIAL
http://thanet.gov.uk/supplierspend,Thanet District Council,24/04/2019,472813,973.84,,Hands On Suppliers Ltd,HAN007,Dir Ops/Commercial Serv,Revenue,"Equip, Furniture And Materials",CLOTHING
http://thanet.gov.uk/supplierspend,Thanet District Council,24/04/2019,473925,699.08,,Haynes Of Maidstone Ltd,HAY008,Dir Ops/Commercial Serv,Revenue,Direct Transport Costs,VEHICLE MANAGEMENT
http://thanet.gov.uk/supplierspend,Thanet District Council,24/04/2019,472958,449.55,,Hr Go (Kent) Ltd,HRG001,Dir Ops/Commercial Serv,Revenue,Agency Staff,HUMAN RESOURCES
http://thanet.gov.uk/supplierspend,Thanet District Council,24/04/2019,473927,1077.84,,Hr Go (Kent) Ltd,HRG001,Dir Ops/Commercial Serv,Revenue,Agency Staff,HUMAN RESOURCES
http://thanet.gov.uk/supplierspend,Thanet District Council,24/04/2019,473943,6500,,Hubbard & Houghton Construction Ltd,HUB003,Director of Corporate Resources and S151,Balance Sheet,Capital Exp-Non Council Assets,GRANTS
http://thanet.gov.uk/supplierspend,Thanet District Council,24/04/2019,472155,862.5,,Ideas Unlimited,IDE001,Dir Ops/Commercial Serv,Revenue,"Clothes, Uniforms & Laundry",CLOTHING
http://thanet.gov.uk/supplierspend,Thanet District Council,24/04/2019,473949,1266.5,,John Gale,GAL001,Director of Corporate Resources and S151,Balance Sheet,Capital Exp-Non Council Assets,GRANTS
http://thanet.gov.uk/supplierspend,Thanet District Council,24/04/2019,473951,721.03,,John Gale,GAL001,Director of Corporate Resources and S151,Balance Sheet,Capital Exp-Non Council Assets,GRANTS
http://thanet.gov.uk/supplierspend,Thanet District Council,24/04/2019,469767,19592.91,,Kent County Council (Kcs),KCC003,Director Of Corp Gov/Mon Off,Revenue,Energy Costs,FACILITIES AND MANGEMENT SERV
http://thanet.gov.uk/supplierspend,Thanet District Council,24/04/2019,473394,9540.11,,Kent County Council (Kcs),KCC003,Director Of Corp Gov/Mon Off,Revenue,Energy Costs,FACILITIES AND MANGEMENT SERV
http://thanet.gov.uk/supplierspend,Thanet District Council,24/04/2019,473395,5486.97,,Kent County Council (Kcs),KCC003,Dir Ops/Commercial Serv,Revenue,Energy Costs,FACILITIES AND MANGEMENT SERV
http://thanet.gov.uk/supplierspend,Thanet District Council,24/04/2019,473396,9622.9,,Kent County Council (Kcs),KCC003,Dir Ops/Commercial Serv,Revenue,Energy Costs,FACILITIES AND MANGEMENT SERV
http://thanet.gov.uk/supplierspend,Thanet District Council,24/04/2019,473397,1762.59,,Kent County Council (Kcs),KCC003,Dir Ops/Commercial Serv,Revenue,Energy Costs,FACILITIES AND MANGEMENT SERV
http://thanet.gov.uk/supplierspend,Thanet District Council,24/04/2019,473398,1589.98,,Kent County Council (Kcs),KCC003,Dir Ops/Commercial Serv,Revenue,Energy Costs,FACILITIES AND MANGEMENT SERV
http://thanet.gov.uk/supplierspend,Thanet District Council,24/04/2019,473399,1405.94,,Kent County Council (Kcs),KCC003,Dir Ops/Commercial Serv,Revenue,Energy Costs,FACILITIES AND MANGEMENT SERV
http://thanet.gov.uk/supplierspend,Thanet District Council,24/04/2019,473400,2291.05,,Kent County Council (Kcs),KCC003,Dir Ops/Commercial Serv,Revenue,Energy Costs,FACILITIES AND MANGEMENT SERV
http://thanet.gov.uk/supplierspend,Thanet District Council,24/04/2019,473423,2095.96,,Kent County Council (Kcs),KCC003,Deputy Chief Executive/S151,Revenue,Energy Costs,FACILITIES AND MANGEMENT SERV
http://thanet.gov.uk/supplierspend,Thanet District Council,24/04/2019,473713,1371.67,,Kent County Council (Kcs),KCC003,Director Of Corp Gov/Mon Off,Revenue,Energy Costs,FACILITIES AND MANGEMENT SERV
http://thanet.gov.uk/supplierspend,Thanet District Council,24/04/2019,473714,1290,,Kent County Council (Kcs),KCC003,Dir Ops/Commercial Serv,Revenue,Energy Costs,FACILITIES AND MANGEMENT SERV
http://thanet.gov.uk/supplierspend,Thanet District Council,24/04/2019,473765,17396.49,,Kent County Council (Kcs),KCC003,Director Of Corp Gov/Mon Off,Revenue,Energy Costs,FACILITIES AND MANGEMENT SERV
http://thanet.gov.uk/supplierspend,Thanet District Council,24/04/2019,473766,19565.83,,Kent County Council (Kcs),KCC003,Director Of Corp Gov/Mon Off,Revenue,Energy Costs,FACILITIES AND MANGEMENT SERV
http://thanet.gov.uk/supplierspend,Thanet District Council,24/04/2019,473767,18899.22,,Kent County Council (Kcs),KCC003,Director Of Corp Gov/Mon Off,Revenue,Energy Costs,FACILITIES AND MANGEMENT SERV
http://thanet.gov.uk/supplierspend,Thanet District Council,24/04/2019,473768,-19592.91,,Kent County Council (Kcs),KCC003,Director Of Corp Gov/Mon Off,Revenue,Energy Costs,FACILITIES AND MANGEMENT SERV
http://thanet.gov.uk/supplierspend,Thanet District Council,24/04/2019,473258,1311.51,,L W Burt & Son Ltd,BUR027,Director Of Corp Gov/Mon Off,Revenue,"Repairs,  Alter & Mtce - Build",CONSTRUCTION-REPAIR AND MAINT
http://thanet.gov.uk/supplierspend,Thanet District Council,24/04/2019,473259,886.26,,L W Burt & Son Ltd,BUR027,Director Of Corp Gov/Mon Off,Revenue,"Repairs,  Alter & Mtce - Build",CONSTRUCTION-REPAIR AND MAINT
http://thanet.gov.uk/supplierspend,Thanet District Council,24/04/2019,473270,540.41,,Lexisnexis Uk,LEX002,Director Of Corp Gov/Mon Off,Revenue,"Print, Stat And Gen Off Exps",HUMAN RESOURCES
http://thanet.gov.uk/supplierspend,Thanet District Council,24/04/2019,472889,526.38,,Lister Wilder Limited,LIS002,Dir Ops/Commercial Serv,Revenue,"Equip, Furniture And Materials",HORTICULTURAL
http://thanet.gov.uk/supplierspend,Thanet District Council,24/04/2019,473903,1000,,Lovetts Birchington Ltd,LOV006,Deputy Chief Executive/S151,Revenue,Grants & Subscriptions,RENT DEPOSITS
http://thanet.gov.uk/supplierspend,Thanet District Council,24/04/2019,473336,474,,Lyreco Uk Limited,LYR001,Director Of Corp Gov/Mon Off,Revenue,"Print, Stat And Gen Off Exps",STATIONERY
http://thanet.gov.uk/supplierspend,Thanet District Council,24/04/2019,472606,468,,Main Man Supplies Ltd,MAI001,Dir Ops/Commercial Serv,Revenue,"Clothes, Uniforms & Laundry",CLOTHING
http://thanet.gov.uk/supplierspend,Thanet District Council,24/04/2019,473004,560,,Matrix Communications Ltd,MAT004,Dir Ops/Commercial Serv,Revenue,Communications & Computing,ICT
http://thanet.gov.uk/supplierspend,Thanet District Council,24/04/2019,473898,1000,,Miles & Barr Property Man  Ltd,MIL048,Deputy Chief Executive/S151,Revenue,Grants & Subscriptions,RENT DEPOSITS
http://thanet.gov.uk/supplierspend,Thanet District Council,24/04/2019,473905,1750,,Miles & Barr Property Man  Ltd,MIL048,Deputy Chief Executive/S151,Revenue,Grants & Subscriptions,RENT DEPOSITS
http://thanet.gov.uk/supplierspend,Thanet District Council,24/04/2019,473906,1500,,Miles & Barr Property Man  Ltd,MIL048,Deputy Chief Executive/S151,Revenue,Grants & Subscriptions,RENT DEPOSITS
http://thanet.gov.uk/supplierspend,Thanet District Council,24/04/2019,473933,917.99,,Peabody South East Limited,PEA024,Director of Corporate Resources and S151,Balance Sheet,Capital Exp-Non Council Assets,GRANTS
http://thanet.gov.uk/supplierspend,Thanet District Council,24/04/2019,473935,1114.48,,Peabody South East Limited,PEA024,Director of Corporate Resources and S151,Balance Sheet,Capital Exp-Non Council Assets,GRANTS
http://thanet.gov.uk/supplierspend,Thanet District Council,24/04/2019,473937,913.69,,Peabody South East Limited,PEA024,Director of Corporate Resources and S151,Balance Sheet,Capital Exp-Non Council Assets,GRANTS
http://thanet.gov.uk/supplierspend,Thanet District Council,24/04/2019,473939,900.94,,Peabody South East Limited,PEA024,Director of Corporate Resources and S151,Balance Sheet,Capital Exp-Non Council Assets,GRANTS
http://thanet.gov.uk/supplierspend,Thanet District Council,24/04/2019,473941,2062.25,,Peabody South East Limited,PEA024,Director of Corporate Resources and S151,Balance Sheet,Capital Exp-Non Council Assets,GRANTS
http://thanet.gov.uk/supplierspend,Thanet District Council,24/04/2019,473947,1616.65,,Peabody South East Limited,PEA024,Director of Corporate Resources and S151,Balance Sheet,Capital Exp-Non Council Assets,GRANTS
http://thanet.gov.uk/supplierspend,Thanet District Council,24/04/2019,473955,1587.8,,Peabody South East Limited,PEA024,Director of Corporate Resources and S151,Balance Sheet,Capital Exp-Non Council Assets,GRANTS
http://thanet.gov.uk/supplierspend,Thanet District Council,24/04/2019,473823,1491.66,,Performance Networks Limited,PER020,Deputy Chief Executive/S151,Revenue,Communications & Computing,ICT
http://thanet.gov.uk/supplierspend,Thanet District Council,24/04/2019,473823,2983.34,,Performance Networks Limited,PER020,East Kent Shared Services,Revenue,Communications & Computing,ICT
http://thanet.gov.uk/supplierspend,Thanet District Council,24/04/2019,473252,3148,,Portakabin Ltd,POR001,Director of Corporate Resources and S151,Balance Sheet,Plant And Equipment,FACILITIES AND MANGEMENT SERV
http://thanet.gov.uk/supplierspend,Thanet District Council,24/04/2019,473908,1500,,Prospects Assured Uk Ltd,PRO032,Deputy Chief Executive/S151,Revenue,Grants & Subscriptions,RENT DEPOSITS
http://thanet.gov.uk/supplierspend,Thanet District Council,24/04/2019,473909,1250,,Prospects Assured Uk Ltd,PRO032,Deputy Chief Executive/S151,Revenue,Grants & Subscriptions,RENT DEPOSITS
http://thanet.gov.uk/supplierspend,Thanet District Council,24/04/2019,472961,721.5,,R S S (Wessex) Limited,RSS002,Dir Ops/Commercial Serv,Revenue,Agency Staff,HUMAN RESOURCES
http://thanet.gov.uk/supplierspend,Thanet District Council,24/04/2019,473787,1851.99,,Scottish Water Business Stream Ltd,SCO019,Dir Ops/Commercial Serv,Revenue,Water Services,UTILITIES
http://thanet.gov.uk/supplierspend,Thanet District Council,24/04/2019,472970,1917,,Sellick Partnership Ltd,SEL011,Director Of Corp Gov/Mon Off,Revenue,Agency Staff,HUMAN RESOURCES
http://thanet.gov.uk/supplierspend,Thanet District Council,24/04/2019,471750,2765.71,,Serveco Ltd,SER009,Deputy Chief Executive/S151,Revenue,Rents,SPECIAL COMMUNITY CARE
http://thanet.gov.uk/supplierspend,Thanet District Council,24/04/2019,472375,442,,Sideways Media Limited,SID002,Dir Ops/Commercial Serv,Revenue,Miscellaneous Expenses,FACILITIES AND MANGEMENT SERV
http://thanet.gov.uk/supplierspend,Thanet District Council,24/04/2019,473928,1572.98,,Signway Supplies (Datchet) Limited,SIG013,Dir Ops/Commercial Serv,Revenue,"Repairs,  Alter & Mtce - Build",HIGHWAY EQUIPMENT AND MATERIAL
http://thanet.gov.uk/supplierspend,Thanet District Council,24/04/2019,473945,3490.7,,South East Building Company Limited,SEB001,Director of Corporate Resources and S151,Balance Sheet,Capital Exp-Non Council Assets,GRANTS
http://thanet.gov.uk/supplierspend,Thanet District Council,24/04/2019,472192,472.86,,Southern Electric,SEL007,Director Of Corp Gov/Mon Off,Revenue,Energy Costs,UTILITIES
http://thanet.gov.uk/supplierspend,Thanet District Council,24/04/2019,472407,1752.69,,Southern Electric,SEL007,Director Of Corp Gov/Mon Off,Revenue,Energy Costs,UTILITIES
http://thanet.gov.uk/supplierspend,Thanet District Council,24/04/2019,473333,5.52,,Southern Electric,SEL007,Deputy Chief Executive/S151,Revenue,Energy Costs,UTILITIES
http://thanet.gov.uk/supplierspend,Thanet District Council,24/04/2019,473333,591.11,,Southern Electric,SEL007,Dir Ops/Commercial Serv,Revenue,Energy Costs,UTILITIES
http://thanet.gov.uk/supplierspend,Thanet District Council,24/04/2019,473425,-1752.69,,Southern Electric,SEL007,Director Of Corp Gov/Mon Off,Revenue,Energy Costs,UTILITIES
http://thanet.gov.uk/supplierspend,Thanet District Council,24/04/2019,473956,1046.15,,Southern Water,SWA001,Director Of Corp Gov/Mon Off,Revenue,"Repairs,  Alter & Mtce - Build",UTILITIES
http://thanet.gov.uk/supplierspend,Thanet District Council,24/04/2019,473732,1767,,St Augustines College Ltd,STA061,Dir Ops/Commercial Serv,Revenue,Expenses,CATERING
http://thanet.gov.uk/supplierspend,Thanet District Council,24/04/2019,473917,565.5,,Tennants Distribution Limited,TEN005,Dir Ops/Commercial Serv,Revenue,Direct Transport Costs,VEHICLE MANAGEMENT
http://thanet.gov.uk/supplierspend,Thanet District Council,24/04/2019,473194,1952,,The Oyster Partnership Ltd,OYS001,Director Of Corp Gov/Mon Off,Revenue,Agency Staff,HUMAN RESOURCES
http://thanet.gov.uk/supplierspend,Thanet District Council,24/04/2019,473916,744.9,,The Oyster Partnership Ltd,OYS001,Dir Ops/Commercial Serv,Revenue,Agency Staff,HUMAN RESOURCES
http://thanet.gov.uk/supplierspend,Thanet District Council,24/04/2019,473940,18067.06,,Trueden Disability Adaptations Ltd,TRU012,Director of Corporate Resources and S151,Balance Sheet,Capital Exp-Non Council Assets,GRANTS
http://thanet.gov.uk/supplierspend,Thanet District Council,24/04/2019,473167,507.5,,Veale Wasbrough Vizards Llp,VEA001,Director Of Corp Gov/Mon Off,Revenue,Services,LEGAL SERVICES
http://thanet.gov.uk/supplierspend,Thanet District Council,24/04/2019,473837,1292.69,,Veale Wasbrough Vizards Llp,VEA001,Director Of Corp Gov/Mon Off,Revenue,Services,LEGAL SERVICES
http://thanet.gov.uk/supplierspend,Thanet District Council,24/04/2019,473907,1000,,Votta Lettings,VOT002,Deputy Chief Executive/S151,Revenue,Grants & Subscriptions,RENT DEPOSITS
http://thanet.gov.uk/supplierspend,Thanet District Council,24/04/2019,473366,440,,W Brazil & Bros,BRA001,Director of Corporate Resources and S151,Balance Sheet,Repairs And Mtce Holding A/C,ENVIRONMENTAL SERVICES
http://thanet.gov.uk/supplierspend,Thanet District Council,24/04/2019,473367,650,,W Brazil & Bros,BRA001,Director of Corporate Resources and S151,Balance Sheet,Repairs And Mtce Holding A/C,ENVIRONMENTAL SERVICES
http://thanet.gov.uk/supplierspend,Thanet District Council,24/04/2019,473950,4812.36,,Westbrook Construction (Margate) Ltd,WES021,Director of Corporate Resources and S151,Balance Sheet,Capital Exp-Non Council Assets,VARIOUS CATEGORIES
http://thanet.gov.uk/supplierspend,Thanet District Council,24/04/2019,473929,650,,Your Move,YOU014,Deputy Chief Executive/S151,Revenue,Grants & Subscriptions,RENT DEPOSITS
http://thanet.gov.uk/supplierspend,Thanet District Council,26/04/2019,474150,3773,,Nat West Bank,NWE001,Deputy Chief Executive/S151,Revenue,Services,VARIOUS CATEGORIES
http://thanet.gov.uk/supplierspend,Thanet District Council,26/04/2019,474150,-48,,Nat West Bank,NWE001,Director of Corporate Resources and S151,Balance Sheet,Debit Interest And Expenses,VARIOUS CATEGORIES
http://thanet.gov.uk/supplierspend,Thanet District Council,26/04/2019,474077,30900,,Public Works Loan Board,PWL001,Director of Corporate Resources and S151,Balance Sheet,Debit Interest And Expenses,INVESTMENTS AND LOANS
http://thanet.gov.uk/supplierspend,Thanet District Council,26/04/2019,474079,42857.14,,Public Works Loan Board,PWL001,Director of Corporate Resources and S151,Balance Sheet,Borrowing Repayable>1 Yr,INVESTMENTS AND LOANS
http://thanet.gov.uk/supplierspend,Thanet District Council,26/04/2019,474079,22440,,Public Works Loan Board,PWL001,Director of Corporate Resources and S151,Balance Sheet,Debit Interest And Expenses,INVESTMENTS AND LOANS
http://thanet.gov.uk/supplierspend,Thanet District Council,26/04/2019,474088,960035.6,,Public Works Loan Board,PWL001,Director of Corporate Resources and S151,Balance Sheet,Borrowing Repayable>1 Yr,INVESTMENTS AND LOANS
http://thanet.gov.uk/supplierspend,Thanet District Council,26/04/2019,474088,166278.16,,Public Works Loan Board,PWL001,Director of Corporate Resources and S151,Balance Sheet,Debit Interest And Expenses,INVESTMENTS AND LOANS
http://thanet.gov.uk/supplierspend,Thanet District Council,26/04/2019,474099,3478.97,,Worldpay Ltd,WOR008,Deputy Chief Executive/S151,Revenue,Services,FINANCIAL SERVICES
http://thanet.gov.uk/supplierspend,Thanet District Council,26/04/2019,474102,975.02,,Worldpay Ltd,WOR008,Deputy Chief Executive/S151,Revenue,Services,FINANCIAL SERVICES
http://thanet.gov.uk/supplierspend,Thanet District Council,26/04/2019,474140,2693.75,,Worldpay Ltd,WOR008,Deputy Chief Executive/S151,Revenue,Services,FINANCIAL SERVICES
http://thanet.gov.uk/supplierspend,Thanet District Council,29/04/2019,474188,1470,,Acol Parish Council,ACO001,Director of Corporate Resources and S151,Balance Sheet,Collection Fund,VARIOUS CATS-PUBLIC SECTOR
http://thanet.gov.uk/supplierspend,Thanet District Council,29/04/2019,474188,135.5,,Acol Parish Council,ACO001,Dir Ops/Commercial Serv,Revenue,Other Local Authorities,VARIOUS CATS-PUBLIC SECTOR
http://thanet.gov.uk/supplierspend,Thanet District Council,29/04/2019,474189,52496,,Birchington Parish Council,BIR001,Director of Corporate Resources and S151,Balance Sheet,Collection Fund,VARIOUS CATS-PUBLIC SECTOR
http://thanet.gov.uk/supplierspend,Thanet District Council,29/04/2019,474190,283806,,Broadstairs & St Peters Town Council,BRO005,Director of Corporate Resources and S151,Balance Sheet,Collection Fund,VARIOUS CATS-PUBLIC SECTOR
http://thanet.gov.uk/supplierspend,Thanet District Council,29/04/2019,474191,7988,,Cliffsend Parish Council,CLI015,Director of Corporate Resources and S151,Balance Sheet,Collection Fund,VARIOUS CATS-PUBLIC SECTOR
http://thanet.gov.uk/supplierspend,Thanet District Council,29/04/2019,474192,9500,,Manston Parish Council,MAN001,Director of Corporate Resources and S151,Balance Sheet,Collection Fund,VARIOUS CATS-PUBLIC SECTOR
http://thanet.gov.uk/supplierspend,Thanet District Council,29/04/2019,474192,866.5,,Manston Parish Council,MAN001,Dir Ops/Commercial Serv,Revenue,Other Local Authorities,VARIOUS CATS-PUBLIC SECTOR
http://thanet.gov.uk/supplierspend,Thanet District Council,29/04/2019,474193,64750,,Margate Charter Trustees,MCT001,Director of Corporate Resources and S151,Balance Sheet,Collection Fund,VARIOUS CATS-PUBLIC SECTOR
http://thanet.gov.uk/supplierspend,Thanet District Council,29/04/2019,474194,36515.5,,Minster Parish Council,MIN001,Director of Corporate Resources and S151,Balance Sheet,Collection Fund,VARIOUS CATS-PUBLIC SECTOR
http://thanet.gov.uk/supplierspend,Thanet District Council,29/04/2019,474194,12642,,Minster Parish Council,MIN001,Dir Ops/Commercial Serv,Revenue,Other Local Authorities,VARIOUS CATS-PUBLIC SECTOR
http://thanet.gov.uk/supplierspend,Thanet District Council,29/04/2019,474195,6997.5,,Monkton Parish Council,MON001,Director of Corporate Resources and S151,Balance Sheet,Collection Fund,VARIOUS CATS-PUBLIC SECTOR
http://thanet.gov.uk/supplierspend,Thanet District Council,29/04/2019,474195,908.5,,Monkton Parish Council,MON001,Dir Ops/Commercial Serv,Revenue,Other Local Authorities,VARIOUS CATS-PUBLIC SECTOR
http://thanet.gov.uk/supplierspend,Thanet District Council,29/04/2019,474196,380250,,Ramsgate Town Council,RAM031,Director of Corporate Resources and S151,Balance Sheet,Collection Fund,VARIOUS CATS-PUBLIC SECTOR
http://thanet.gov.uk/supplierspend,Thanet District Council,29/04/2019,474213,4322,,Salix Finance Ltd,SAL016,Director of Corporate Resources and S151,Balance Sheet,Borrowing Repayable>1 Yr,INVESTMENTS AND LOANS
http://thanet.gov.uk/supplierspend,Thanet District Council,29/04/2019,474197,11149,,St Nicholas At Wade & Sarre P Counc,STN001,Director of Corporate Resources and S151,Balance Sheet,Collection Fund,VARIOUS CATS-PUBLIC SECTOR
http://thanet.gov.uk/supplierspend,Thanet District Council,29/04/2019,474197,3947.5,,St Nicholas At Wade & Sarre P Counc,STN001,Dir Ops/Commercial Serv,Revenue,Other Local Authorities,VARIOUS CATS-PUBLIC SECTOR
http://thanet.gov.uk/supplierspend,Thanet District Council,29/04/2019,474198,68453,,Westgate On Sea Town Council,WES052,Director of Corporate Resources and S151,Balance Sheet,Collection Fund,VARIOUS CATS-PUBLIC SECTOR
http://thanet.gov.uk/supplierspend,Thanet District Council,30/04/2019,473372,1153.68,,Aebi Schmidt Uk Limited,AEB002,Dir Ops/Commercial Serv,Revenue,Direct Transport Costs,VEHICLE MANAGEMENT
http://thanet.gov.uk/supplierspend,Thanet District Council,30/04/2019,474185,1312.08,,Allstar Business Solutions Ltd,ALL038,Dir Ops/Commercial Serv,Revenue,Direct Transport Costs,VEHICLE MANAGEMENT
http://thanet.gov.uk/supplierspend,Thanet District Council,30/04/2019,473729,3528.88,,Ass Of Electoral Administrators,AEA001,Director Of Corp Gov/Mon Off,Revenue,Services,HUMAN RESOURCES
http://thanet.gov.uk/supplierspend,Thanet District Council,30/04/2019,473453,23610,,Business Computer Solutions Ltd,BUS002,Director Of Corp Gov/Mon Off,Revenue,Communications & Computing,ICT
http://thanet.gov.uk/supplierspend,Thanet District Council,30/04/2019,473215,35628.98,,Certas Energy Uk Ltd,CER005,Dir Ops/Commercial Serv,Revenue,Direct Transport Costs,VEHICLE MANAGEMENT
http://thanet.gov.uk/supplierspend,Thanet District Council,30/04/2019,473185,425.78,,Channel Commercials Plc,CCO001,Dir Ops/Commercial Serv,Revenue,Direct Transport Costs,VEHICLE MANAGEMENT
http://thanet.gov.uk/supplierspend,Thanet District Council,30/04/2019,473072,1688235.94,,Civica Uk Ltd,CIV003,East Kent Shared Services,Revenue,Private Contractors,ICT
http://thanet.gov.uk/supplierspend,Thanet District Council,30/04/2019,472736,450,,Corvid Paygate Limited,COR025,East Kent Shared Services,Revenue,Communications & Computing,ICT
http://thanet.gov.uk/supplierspend,Thanet District Council,30/04/2019,473369,456.32,,Dennis Eagle Limited,TER011,Dir Ops/Commercial Serv,Revenue,Direct Transport Costs,VEHICLE MANAGEMENT
http://thanet.gov.uk/supplierspend,Thanet District Council,30/04/2019,473500,1408.51,,E Saunders Margate Ltd,SAU001,Dir Ops/Commercial Serv,Revenue,"Repairs,  Alter & Mtce - Build",CONSTRUCTION-REPAIR AND MAINT
http://thanet.gov.uk/supplierspend,Thanet District Council,30/04/2019,473175,2895.88,,Gemini Consultants Ltd,GEM001,Deputy Chief Executive/S151,Revenue,Services,ICT
http://thanet.gov.uk/supplierspend,Thanet District Council,30/04/2019,473176,1831.77,,Gemini Consultants Ltd,GEM001,Deputy Chief Executive/S151,Revenue,Communications & Computing,ICT
http://thanet.gov.uk/supplierspend,Thanet District Council,30/04/2019,472944,4207.5,,Gl Hearn Limited,GLH001,Deputy Chief Executive/S151,Revenue,Services,CONSULTANCY
http://thanet.gov.uk/supplierspend,Thanet District Council,30/04/2019,472945,2000,,Gl Hearn Limited,GLH001,Deputy Chief Executive/S151,Revenue,Services,CONSULTANCY
http://thanet.gov.uk/supplierspend,Thanet District Council,30/04/2019,474183,2250,,Hemming Group Limited,HEM002,Director Of Corp Gov/Mon Off,Revenue,Advertising Expenses,FINANCIAL SERVICES
http://thanet.gov.uk/supplierspend,Thanet District Council,30/04/2019,473248,2536.39,,Hr Go (Kent) Ltd,HRG001,Dir Ops/Commercial Serv,Revenue,Agency Staff,HUMAN RESOURCES
http://thanet.gov.uk/supplierspend,Thanet District Council,30/04/2019,473696,700,,Hutton Design Associates Limited,HUT002,Dir Ops/Commercial Serv,Revenue,"Print, Stat And Gen Off Exps",FACILITIES AND MANGEMENT SERV
http://thanet.gov.uk/supplierspend,Thanet District Council,30/04/2019,473652,800,,James Davies,DAV031,Dir Ops/Commercial Serv,Revenue,"Equip, Furniture And Materials",STATIONERY
http://thanet.gov.uk/supplierspend,Thanet District Council,30/04/2019,472988,1634,,Jon Lambourne Arboricultural Consult,LAM015,Deputy Chief Executive/S151,Revenue,Services,CONSULTANCY
http://thanet.gov.uk/supplierspend,Thanet District Council,30/04/2019,474135,7581,,Kent County Council,KCC002,Dir Ops/Commercial Serv,Revenue,"Repairs,  Alter & Mtce - Build",VARIOUS CATS-PUBLIC SECTOR
http://thanet.gov.uk/supplierspend,Thanet District Council,30/04/2019,473475,1523.98,,Loadwise International Ltd,LOA001,Dir Ops/Commercial Serv,Revenue,"Repairs,  Alter & Mtce - Build",MARITIME SERVICES
http://thanet.gov.uk/supplierspend,Thanet District Council,30/04/2019,473216,1079.72,,Lobster Van Hire Ltd,LOB001,Dir Ops/Commercial Serv,Revenue,Cont Hire & Operating Lease,VEHICLE MANAGEMENT
http://thanet.gov.uk/supplierspend,Thanet District Council,30/04/2019,473443,790,,Modus Film Productions Limited,MOD005,Dir Ops/Commercial Serv,Revenue,Services,FACILITIES AND MANGEMENT SERV
http://thanet.gov.uk/supplierspend,Thanet District Council,30/04/2019,473181,4699,,Overton (Uk) Ltd,OVE004,Dir Ops/Commercial Serv,Revenue,"Equip, Furniture And Materials",VEHICLE MANAGEMENT
http://thanet.gov.uk/supplierspend,Thanet District Council,30/04/2019,473182,9600,,Overton (Uk) Ltd,OVE004,Dir Ops/Commercial Serv,Revenue,"Equip, Furniture And Materials",VEHICLE MANAGEMENT
http://thanet.gov.uk/supplierspend,Thanet District Council,30/04/2019,473499,1128.2,,Peer 1 (Uk) Limited,PEE003,East Kent Shared Services,Revenue,Communications & Computing,ICT
http://thanet.gov.uk/supplierspend,Thanet District Council,30/04/2019,474212,21308.91,,Ravestein Bv,RAV001,Director of Corporate Resources and S151,Balance Sheet,Other Land And Buildings-Hra,MARITIME SERVICES
http://thanet.gov.uk/supplierspend,Thanet District Council,30/04/2019,474229,43781.5,,River Stour (Kent) Int Drainage Brd,RIV001,Dir Ops/Commercial Serv,Revenue,Rates,VARIOUS CATEGORIES
http://thanet.gov.uk/supplierspend,Thanet District Council,30/04/2019,473889,840.25,,Scottish Water Business Stream Ltd,SCO019,Dir Ops/Commercial Serv,Revenue,Water Services,UTILITIES
http://thanet.gov.uk/supplierspend,Thanet District Council,30/04/2019,473891,951.79,,Scottish Water Business Stream Ltd,SCO019,Dir Ops/Commercial Serv,Revenue,Water Services,UTILITIES
http://thanet.gov.uk/supplierspend,Thanet District Council,30/04/2019,473892,953.97,,Scottish Water Business Stream Ltd,SCO019,Dir Ops/Commercial Serv,Revenue,Water Services,UTILITIES
http://thanet.gov.uk/supplierspend,Thanet District Council,30/04/2019,473632,511.6,,Sellick Partnership Ltd,SEL011,Director Of Corp Gov/Mon Off,Revenue,Services,HUMAN RESOURCES
http://thanet.gov.uk/supplierspend,Thanet District Council,30/04/2019,473681,1917,,Sellick Partnership Ltd,SEL011,Director Of Corp Gov/Mon Off,Revenue,Agency Staff,HUMAN RESOURCES
http://thanet.gov.uk/supplierspend,Thanet District Council,30/04/2019,473730,510,,Sellick Partnership Ltd,SEL011,Director Of Corp Gov/Mon Off,Revenue,Services,HUMAN RESOURCES
http://thanet.gov.uk/supplierspend,Thanet District Council,30/04/2019,474226,1750,,Simply Homes 4 U Ltd,SIM012,Deputy Chief Executive/S151,Revenue,Grants & Subscriptions,RENT DEPOSITS
http://thanet.gov.uk/supplierspend,Thanet District Council,30/04/2019,473614,801,,Skyguard Limited,SKY001,Dir Ops/Commercial Serv,Revenue,Services,ICT
http://thanet.gov.uk/supplierspend,Thanet District Council,30/04/2019,472652,2561,,Solarwinds Software Europe Limited,SOL016,East Kent Shared Services,Revenue,Communications & Computing,ICT
http://thanet.gov.uk/supplierspend,Thanet District Council,30/04/2019,473855,15061.5,,Thintech Ltd,THI009,Deputy Chief Executive/S151,Revenue,Communications & Computing,ICT
http://thanet.gov.uk/supplierspend,Thanet District Council,30/04/2019,473855,2811.48,,Thintech Ltd,THI009,East Kent Shared Services,Revenue,Communications & Computing,ICT
http://thanet.gov.uk/supplierspend,Thanet District Council,30/04/2019,474187,8776,,Thomson Reuters,THO043,Director Of Corp Gov/Mon Off,Revenue,"Print, Stat And Gen Off Exps",HUMAN RESOURCES
http://thanet.gov.uk/supplierspend,Thanet District Council,30/04/2019,473470,1208.4,,Total Supplies Ltd,TOT009,Dir Ops/Commercial Serv,Revenue,"Equip, Furniture And Materials",CLEANING AND JANITORIAL
http://thanet.gov.uk/supplierspend,Thanet District Council,30/04/2019,473489,6195,,Visit Kent Ltd,VIS005,Dir Ops/Commercial Serv,Revenue,Grants & Subscriptions,ARTS AND LEISURE SERVICES
http://thanet.gov.uk/supplierspend,Thanet District Council,30/04/2019,472680,4647.09,,Xchanging Global Insurance Sols Ltd,XCH001,East Kent Shared Services,Revenue,Communications & Computing,ICT
http://thanet.gov.uk/supplierspend,Thanet District Council,30/04/2019,472608,5000,,Xynomix Limited,XYN001,East Kent Shared Services,Revenue,Communications & Computing,ICT
http://thanet.gov.uk/supplierspend,Thanet District Council,02/05/2019,473639,1666.67,,24 Hour Bailiffs Limited,24H001,Dir Ops/Commercial Serv,Revenue,Services,FINANCIAL SERVICES
http://thanet.gov.uk/supplierspend,Thanet District Council,02/05/2019,473254,7025,,Advanced Business Solutions,COA011,Deputy Chief Executive/S151,Revenue,Communications & Computing,ICT
http://thanet.gov.uk/supplierspend,Thanet District Council,02/05/2019,473493,1101.25,,Aebi Schmidt Uk Limited,AEB002,Dir Ops/Commercial Serv,Revenue,Direct Transport Costs,VEHICLE MANAGEMENT
http://thanet.gov.uk/supplierspend,Thanet District Council,02/05/2019,472535,962.6,,Canterbury City Council,CAN004,Deputy Chief Executive/S151,Revenue,Services,VARIOUS CATS-PUBLIC SECTOR
http://thanet.gov.uk/supplierspend,Thanet District Council,02/05/2019,472845,174540.01,,Canterbury City Council,CAN004,East Kent Shared Services,Revenue,Grants & Subscriptions,VARIOUS CATS-PUBLIC SECTOR
http://thanet.gov.uk/supplierspend,Thanet District Council,02/05/2019,473661,966.27,,Dennis Eagle Ltd,DEN005,Dir Ops/Commercial Serv,Revenue,Direct Transport Costs,VEHICLE MANAGEMENT
http://thanet.gov.uk/supplierspend,Thanet District Council,02/05/2019,472655,3778.2,,Dha Planning Limited,DHA002,Deputy Chief Executive/S151,Revenue,Services,CONSULTANCY
http://thanet.gov.uk/supplierspend,Thanet District Council,02/05/2019,473683,70857.5,,Dover District Council,DOV001,Deputy Chief Executive/S151,Revenue,Services,VARIOUS CATS-PUBLIC SECTOR
http://thanet.gov.uk/supplierspend,Thanet District Council,02/05/2019,473684,14747.5,,Dover District Council,DOV001,Deputy Chief Executive/S151,Revenue,Services,VARIOUS CATS-PUBLIC SECTOR
http://thanet.gov.uk/supplierspend,Thanet District Council,02/05/2019,473868,1290.6,,E Saunders Margate Ltd,SAU001,Dir Ops/Commercial Serv,Revenue,"Repairs,  Alter & Mtce - Build",CONSTRUCTION-REPAIR AND MAINT
http://thanet.gov.uk/supplierspend,Thanet District Council,02/05/2019,473832,376955.25,,East Kent Housing Ltd,EKH002,Deputy Chief Executive/S151,Revenue,Other Agencies,HOUSING MANAGEMENT
http://thanet.gov.uk/supplierspend,Thanet District Council,02/05/2019,473511,574,,Faun Zoeller (Uk) Ltd,FAU001,Dir Ops/Commercial Serv,Revenue,Direct Transport Costs,VEHICLE MANAGEMENT
http://thanet.gov.uk/supplierspend,Thanet District Council,02/05/2019,473781,750,,Forecourt Installation Services Ltd,FOR021,Dir Ops/Commercial Serv,Revenue,"Equip, Furniture And Materials",MARITIME SERVICES
http://thanet.gov.uk/supplierspend,Thanet District Council,02/05/2019,473480,600,,Hays Specialist Recruitment Ltd,HAY020,Deputy Chief Executive/S151,Revenue,Advertising Expenses,HUMAN RESOURCES
http://thanet.gov.uk/supplierspend,Thanet District Council,02/05/2019,473482,3600,,Hays Specialist Recruitment Ltd,HAY020,Deputy Chief Executive/S151,Revenue,Advertising Expenses,HUMAN RESOURCES
http://thanet.gov.uk/supplierspend,Thanet District Council,02/05/2019,473250,3921.93,,Hr Go (Kent) Ltd,HRG001,Dir Ops/Commercial Serv,Revenue,Agency Staff,HUMAN RESOURCES
http://thanet.gov.uk/supplierspend,Thanet District Council,02/05/2019,473393,2151.54,,Hr Go (Kent) Ltd,HRG001,Dir Ops/Commercial Serv,Revenue,Agency Staff,HUMAN RESOURCES
http://thanet.gov.uk/supplierspend,Thanet District Council,02/05/2019,473627,932.3,,Hr Go (Kent) Ltd,HRG001,Dir Ops/Commercial Serv,Revenue,Agency Staff,HUMAN RESOURCES
http://thanet.gov.uk/supplierspend,Thanet District Council,02/05/2019,473630,1277.19,,Hr Go (Kent) Ltd,HRG001,Dir Ops/Commercial Serv,Revenue,Agency Staff,HUMAN RESOURCES
http://thanet.gov.uk/supplierspend,Thanet District Council,02/05/2019,473721,769.47,,Hr Go (Kent) Ltd,HRG001,Dir Ops/Commercial Serv,Revenue,Agency Staff,HUMAN RESOURCES
http://thanet.gov.uk/supplierspend,Thanet District Council,02/05/2019,473843,1115.42,,Hr Go (Kent) Ltd,HRG001,Dir Ops/Commercial Serv,Revenue,Agency Staff,HUMAN RESOURCES
http://thanet.gov.uk/supplierspend,Thanet District Council,02/05/2019,472692,15575.9,,Kent County Council,KCC002,Deputy Chief Executive/S151,Revenue,Communications & Computing,VARIOUS CATS-PUBLIC SECTOR
http://thanet.gov.uk/supplierspend,Thanet District Council,02/05/2019,472692,17959.71,,Kent County Council,KCC002,East Kent Shared Services,Revenue,Communications & Computing,VARIOUS CATS-PUBLIC SECTOR
http://thanet.gov.uk/supplierspend,Thanet District Council,02/05/2019,473834,3505.9,,Main Man Supplies Ltd,MAI001,Dir Ops/Commercial Serv,Revenue,"Clothes, Uniforms & Laundry",CLOTHING
http://thanet.gov.uk/supplierspend,Thanet District Council,02/05/2019,473487,862.33,,Med Clean South Ltd,MED015,Dir Ops/Commercial Serv,Revenue,Cleaning & Domestic Supplies,CLEANING AND JANITORIAL
http://thanet.gov.uk/supplierspend,Thanet District Council,02/05/2019,473715,69.12,,Meter Macs Ltd,MET014,Dir Ops/Commercial Serv,Revenue,Services,STREET AND TRAFFIC MANAGEMENT
http://thanet.gov.uk/supplierspend,Thanet District Council,02/05/2019,473715,3225.6,,Meter Macs Ltd,MET014,Dir Ops/Commercial Serv,Revenue,"Equip, Furniture And Materials",STREET AND TRAFFIC MANAGEMENT
http://thanet.gov.uk/supplierspend,Thanet District Council,02/05/2019,473638,780,,Michael Page Int Recruitment Ltd,PAG008,Deputy Chief Executive/S151,Revenue,Agency Staff,HUMAN RESOURCES
http://thanet.gov.uk/supplierspend,Thanet District Council,02/05/2019,473740,780,,Michael Page Int Recruitment Ltd,PAG008,Deputy Chief Executive/S151,Revenue,Agency Staff,HUMAN RESOURCES
http://thanet.gov.uk/supplierspend,Thanet District Council,02/05/2019,473774,639,,Northrop Sails Ltd,NOR013,Dir Ops/Commercial Serv,Revenue,"Equip, Furniture And Materials",MARITIME SERVICES
http://thanet.gov.uk/supplierspend,Thanet District Council,02/05/2019,473455,13048.05,,Ntm-Gb Limited,NTM001,Dir Ops/Commercial Serv,Revenue,Direct Transport Costs,VEHICLE MANAGEMENT
http://thanet.gov.uk/supplierspend,Thanet District Council,02/05/2019,473654,767.88,,Ohuk Limited,OHU001,Dir Ops/Commercial Serv,Revenue,Agency Staff,HUMAN RESOURCES
http://thanet.gov.uk/supplierspend,Thanet District Council,02/05/2019,473673,639.9,,Ohuk Limited,OHU001,Dir Ops/Commercial Serv,Revenue,Agency Staff,HUMAN RESOURCES
http://thanet.gov.uk/supplierspend,Thanet District Council,02/05/2019,473644,1890.32,,Page Plan Prints,PAG009,Deputy Chief Executive/S151,Revenue,"Print, Stat And Gen Off Exps",FACILITIES AND MANGEMENT SERV
http://thanet.gov.uk/supplierspend,Thanet District Council,02/05/2019,472801,950,,Redactive Publishing Limited,RED020,Deputy Chief Executive/S151,Revenue,Advertising Expenses,FACILITIES AND MANGEMENT SERV
http://thanet.gov.uk/supplierspend,Thanet District Council,02/05/2019,473616,1295,,Reed Specialist Recruitment Ltd,REE015,Deputy Chief Executive/S151,Revenue,Agency Staff,HUMAN RESOURCES
http://thanet.gov.uk/supplierspend,Thanet District Council,02/05/2019,473735,1295,,Reed Specialist Recruitment Ltd,REE015,Deputy Chief Executive/S151,Revenue,Agency Staff,HUMAN RESOURCES
http://thanet.gov.uk/supplierspend,Thanet District Council,02/05/2019,473830,1295,,Reed Specialist Recruitment Ltd,REE015,Deputy Chief Executive/S151,Revenue,Agency Staff,HUMAN RESOURCES
http://thanet.gov.uk/supplierspend,Thanet District Council,02/05/2019,473510,1307.2,,Rolec Services Limited,ROL001,Dir Ops/Commercial Serv,Revenue,"Equip, Furniture And Materials",BUILDING CONSTRUCTION MATERIAL
http://thanet.gov.uk/supplierspend,Thanet District Council,02/05/2019,473002,3415,,Serveco Ltd,SER009,Deputy Chief Executive/S151,Revenue,Rents,SPECIAL COMMUNITY CARE
http://thanet.gov.uk/supplierspend,Thanet District Council,02/05/2019,473468,1540.88,,The Copyright Licensing Agency Ltd,COP001,Deputy Chief Executive/S151,Revenue,Grants & Subscriptions,FINANCIAL SERVICES
http://thanet.gov.uk/supplierspend,Thanet District Council,02/05/2019,473479,782.5,,The Oyster Partnership Ltd,OYS001,Dir Ops/Commercial Serv,Revenue,Agency Staff,HUMAN RESOURCES
http://thanet.gov.uk/supplierspend,Thanet District Council,02/05/2019,473761,753,,The Oyster Partnership Ltd,OYS001,Dir Ops/Commercial Serv,Revenue,Agency Staff,HUMAN RESOURCES
http://thanet.gov.uk/supplierspend,Thanet District Council,02/05/2019,472821,1930,,Thomson Reuters,THO043,Deputy Chief Executive/S151,Revenue,"Print, Stat And Gen Off Exps",HUMAN RESOURCES
http://thanet.gov.uk/supplierspend,Thanet District Council,02/05/2019,473694,8636.69,,W G Burbridge,BUR016,Dir Ops/Commercial Serv,Revenue,"Repairs,  Alter & Mtce - Build",BUILDING CONSTRUCTION MATERIAL
http://thanet.gov.uk/supplierspend,Thanet District Council,02/05/2019,472987,109139.59,,W W Martin Ltd,MAR003,Director of Corporate Resources and S151,Balance Sheet,Council Dwellings,CONSTRUCTION-REPAIR AND MAINT
http://thanet.gov.uk/supplierspend,Thanet District Council,02/05/2019,473788,3580,,Weld Of Fabrications Limited,WEL010,Dir Ops/Commercial Serv,Revenue,"Repairs,  Alter & Mtce - Build",BUILDING CONSTRUCTION MATERIAL
http://thanet.gov.uk/supplierspend,Thanet District Council,03/05/2019,474418,7894.89,,Acorn Maintenance Services Ltd,ACO010,Director of Corporate Resources and S151,Balance Sheet,Capital Exp-Non Council Assets,GRANTS
http://thanet.gov.uk/supplierspend,Thanet District Council,03/05/2019,474430,1620.11,,Acorn Maintenance Services Ltd,ACO010,Director of Corporate Resources and S151,Balance Sheet,Capital Exp-Non Council Assets,GRANTS
http://thanet.gov.uk/supplierspend,Thanet District Council,03/05/2019,474442,6937.73,,Acorn Maintenance Services Ltd,ACO010,Director of Corporate Resources and S151,Balance Sheet,Capital Exp-Non Council Assets,GRANTS
http://thanet.gov.uk/supplierspend,Thanet District Council,03/05/2019,474440,26406.6,,Bramling Construction Ltd,BRA020,Director of Corporate Resources and S151,Balance Sheet,Capital Exp-Non Council Assets,GRANTS
http://thanet.gov.uk/supplierspend,Thanet District Council,03/05/2019,474444,20335,,Bramling Construction Ltd,BRA020,Director of Corporate Resources and S151,Balance Sheet,Capital Exp-Non Council Assets,GRANTS
http://thanet.gov.uk/supplierspend,Thanet District Council,03/05/2019,474483,51993.48,,Coombs (Canterbury) Ltd,COO033,Director of Corporate Resources and S151,Balance Sheet,Council Dwellings,CONSTRUCTION-REPAIR AND MAINT
http://thanet.gov.uk/supplierspend,Thanet District Council,03/05/2019,474414,5700,,Dolphin Lifts Kent,DOL003,Director of Corporate Resources and S151,Balance Sheet,Capital Exp-Non Council Assets,GRANTS
http://thanet.gov.uk/supplierspend,Thanet District Council,03/05/2019,474421,5700,,Dolphin Lifts Kent,DOL003,Director of Corporate Resources and S151,Balance Sheet,Capital Exp-Non Council Assets,GRANTS
http://thanet.gov.uk/supplierspend,Thanet District Council,03/05/2019,474408,1825,,Dr Alexander Marshall,MAR100,Dir Ops/Commercial Serv,Revenue,Services,CEMETERY AND CREMATORIUM
http://thanet.gov.uk/supplierspend,Thanet District Council,03/05/2019,474407,1425,,Dr R K Chhabra,CHH001,Dir Ops/Commercial Serv,Revenue,"Equip, Furniture And Materials",CEMETERY AND CREMATORIUM
http://thanet.gov.uk/supplierspend,Thanet District Council,03/05/2019,473780,700,,East Kent Training,EKT003,Dir Ops/Commercial Serv,Revenue,Training,HUMAN RESOURCES
http://thanet.gov.uk/supplierspend,Thanet District Council,03/05/2019,474410,9580,,Evermech Services Ltd,EVE011,Director of Corporate Resources and S151,Balance Sheet,Capital Exp-Non Council Assets,GRANTS
http://thanet.gov.uk/supplierspend,Thanet District Council,03/05/2019,474413,7609.72,,Evermech Services Ltd,EVE011,Director of Corporate Resources and S151,Balance Sheet,Capital Exp-Non Council Assets,GRANTS
http://thanet.gov.uk/supplierspend,Thanet District Council,03/05/2019,474415,11723,,Evermech Services Ltd,EVE011,Director of Corporate Resources and S151,Balance Sheet,Capital Exp-Non Council Assets,GRANTS
http://thanet.gov.uk/supplierspend,Thanet District Council,03/05/2019,472299,510,,Florence Court Hotel Ltd,FLO009,Deputy Chief Executive/S151,Revenue,Services,HOUSING MANAGEMENT
http://thanet.gov.uk/supplierspend,Thanet District Council,03/05/2019,473505,420,,Guard It Limited,GUA008,Dir Ops/Commercial Serv,Revenue,Services,FACILITIES AND MANGEMENT SERV
http://thanet.gov.uk/supplierspend,Thanet District Council,03/05/2019,471121,872.72,,Hands On Suppliers Ltd,HAN007,Dir Ops/Commercial Serv,Revenue,"Equip, Furniture And Materials",CLOTHING
http://thanet.gov.uk/supplierspend,Thanet District Council,03/05/2019,471116,1295,,High Five Training Limited,HIG009,Dir Ops/Commercial Serv,Revenue,Training,HUMAN RESOURCES
http://thanet.gov.uk/supplierspend,Thanet District Council,03/05/2019,470591,449.55,,Hr Go (Kent) Ltd,HRG001,Dir Ops/Commercial Serv,Revenue,Agency Staff,HUMAN RESOURCES
http://thanet.gov.uk/supplierspend,Thanet District Council,03/05/2019,471242,449.55,,Hr Go (Kent) Ltd,HRG001,Dir Ops/Commercial Serv,Revenue,Agency Staff,HUMAN RESOURCES
http://thanet.gov.uk/supplierspend,Thanet District Council,03/05/2019,473717,449.55,,Hr Go (Kent) Ltd,HRG001,Dir Ops/Commercial Serv,Revenue,Agency Staff,HUMAN RESOURCES
http://thanet.gov.uk/supplierspend,Thanet District Council,03/05/2019,474427,11758.97,,Hubbard & Houghton Construction Ltd,HUB003,Director of Corporate Resources and S151,Balance Sheet,Capital Exp-Non Council Assets,GRANTS
http://thanet.gov.uk/supplierspend,Thanet District Council,03/05/2019,474456,54045,,Kent And Medway Nhs & Scpt,KEN057,Deputy Chief Executive/S151,Revenue,Grants & Subscriptions,ARTS AND LEISURE SERVICES
http://thanet.gov.uk/supplierspend,Thanet District Council,03/05/2019,473872,490,,Ovenden Tipper Services Ltd,OVE001,Dir Ops/Commercial Serv,Revenue,"Equip, Furniture And Materials",VEHICLE MANAGEMENT
http://thanet.gov.uk/supplierspend,Thanet District Council,03/05/2019,473873,490,,Ovenden Tipper Services Ltd,OVE001,Dir Ops/Commercial Serv,Revenue,"Equip, Furniture And Materials",VEHICLE MANAGEMENT
http://thanet.gov.uk/supplierspend,Thanet District Council,03/05/2019,473874,490,,Ovenden Tipper Services Ltd,OVE001,Dir Ops/Commercial Serv,Revenue,"Equip, Furniture And Materials",VEHICLE MANAGEMENT
http://thanet.gov.uk/supplierspend,Thanet District Council,03/05/2019,473875,735,,Ovenden Tipper Services Ltd,OVE001,Dir Ops/Commercial Serv,Revenue,"Equip, Furniture And Materials",VEHICLE MANAGEMENT
http://thanet.gov.uk/supplierspend,Thanet District Council,03/05/2019,473876,735,,Ovenden Tipper Services Ltd,OVE001,Dir Ops/Commercial Serv,Revenue,"Equip, Furniture And Materials",VEHICLE MANAGEMENT
http://thanet.gov.uk/supplierspend,Thanet District Council,03/05/2019,474416,951.39,,Peabody South East Limited,PEA024,Director of Corporate Resources and S151,Balance Sheet,Capital Exp-Non Council Assets,GRANTS
http://thanet.gov.uk/supplierspend,Thanet District Council,03/05/2019,474419,640,,Peabody South East Limited,PEA024,Director of Corporate Resources and S151,Balance Sheet,Capital Exp-Non Council Assets,GRANTS
http://thanet.gov.uk/supplierspend,Thanet District Council,03/05/2019,474424,1415.08,,Peabody South East Limited,PEA024,Director of Corporate Resources and S151,Balance Sheet,Capital Exp-Non Council Assets,GRANTS
http://thanet.gov.uk/supplierspend,Thanet District Council,03/05/2019,474429,2086.48,,Peabody South East Limited,PEA024,Director of Corporate Resources and S151,Balance Sheet,Capital Exp-Non Council Assets,GRANTS
http://thanet.gov.uk/supplierspend,Thanet District Council,03/05/2019,474438,2988,,Peabody South East Limited,PEA024,Director of Corporate Resources and S151,Balance Sheet,Capital Exp-Non Council Assets,GRANTS
http://thanet.gov.uk/supplierspend,Thanet District Council,03/05/2019,474441,871,,Peabody South East Limited,PEA024,Director of Corporate Resources and S151,Balance Sheet,Capital Exp-Non Council Assets,GRANTS
http://thanet.gov.uk/supplierspend,Thanet District Council,03/05/2019,474443,2440.2,,Peabody South East Limited,PEA024,Director of Corporate Resources and S151,Balance Sheet,Capital Exp-Non Council Assets,GRANTS
http://thanet.gov.uk/supplierspend,Thanet District Council,03/05/2019,474447,1250,,Prospects Assured Uk Ltd,PRO032,Deputy Chief Executive/S151,Revenue,Grants & Subscriptions,RENT DEPOSITS
http://thanet.gov.uk/supplierspend,Thanet District Council,03/05/2019,474448,1750,,Prospects Assured Uk Ltd,PRO032,Deputy Chief Executive/S151,Revenue,Grants & Subscriptions,RENT DEPOSITS
http://thanet.gov.uk/supplierspend,Thanet District Council,03/05/2019,470763,721.5,,R S S (Wessex) Limited,RSS002,Dir Ops/Commercial Serv,Revenue,Agency Staff,HUMAN RESOURCES
http://thanet.gov.uk/supplierspend,Thanet District Council,03/05/2019,471194,721.5,,R S S (Wessex) Limited,RSS002,Dir Ops/Commercial Serv,Revenue,Agency Staff,HUMAN RESOURCES
http://thanet.gov.uk/supplierspend,Thanet District Council,03/05/2019,474380,908,,Rigby Taylor Ltd,RIG002,Dir Ops/Commercial Serv,Revenue,"Equip, Furniture And Materials",HORTICULTURAL
http://thanet.gov.uk/supplierspend,Thanet District Council,03/05/2019,474412,8319.71,,South East Building Company Limited,SEB001,Director of Corporate Resources and S151,Balance Sheet,Capital Exp-Non Council Assets,GRANTS
http://thanet.gov.uk/supplierspend,Thanet District Council,03/05/2019,473883,1807.12,,Spaldings  Ltd,SPA006,Dir Ops/Commercial Serv,Revenue,"Equip, Furniture And Materials",HORTICULTURAL
http://thanet.gov.uk/supplierspend,Thanet District Council,03/05/2019,473884,707.9,,Spaldings  Ltd,SPA006,Dir Ops/Commercial Serv,Revenue,"Equip, Furniture And Materials",HORTICULTURAL
http://thanet.gov.uk/supplierspend,Thanet District Council,03/05/2019,472031,8502.74,,Specialist Building Products Ltd,SPE027,Director of Corporate Resources and S151,Balance Sheet,Repairs And Mtce Holding A/C,BUILDING CONSTRUCTION MATERIAL
http://thanet.gov.uk/supplierspend,Thanet District Council,03/05/2019,472650,622.68,,Steadline Ltd,STE017,Director of Corporate Resources and S151,Balance Sheet,Repairs And Mtce Holding A/C,CONSTRUCTION-REPAIR AND MAINT
http://thanet.gov.uk/supplierspend,Thanet District Council,03/05/2019,470115,810.5,,Streetmaster (S.Wales) Limited,STR001,Dir Ops/Commercial Serv,Revenue,"Equip, Furniture And Materials",HIGHWAY EQUIPMENT AND MATERIAL
http://thanet.gov.uk/supplierspend,Thanet District Council,03/05/2019,474435,2590.12,,Trueden Disability Adaptations Ltd,TRU012,Director of Corporate Resources and S151,Balance Sheet,Capital Exp-Non Council Assets,GRANTS
http://thanet.gov.uk/supplierspend,Thanet District Council,08/05/2019,474762,1255.76,,Amenity Horticultural Serv Ltd,AME001,Dir Ops/Commercial Serv,Revenue,"Repairs,  Alter & Mtce - Build",HORTICULTURAL
http://thanet.gov.uk/supplierspend,Thanet District Council,08/05/2019,474779,25000,,Bsag,BSA001,Dir Ops/Commercial Serv,Revenue,Grants & Subscriptions,GRANTS
http://thanet.gov.uk/supplierspend,Thanet District Council,08/05/2019,473869,8998.66,,Canterbury City Council,CAN004,Dir Ops/Commercial Serv,Revenue,"Repairs,  Alter & Mtce - Build",VARIOUS CATS-PUBLIC SECTOR
http://thanet.gov.uk/supplierspend,Thanet District Council,08/05/2019,473458,7098,,Chapel Print Limited,CHA069,Dir Ops/Commercial Serv,Revenue,"Print, Stat And Gen Off Exps",STATIONERY
http://thanet.gov.uk/supplierspend,Thanet District Council,08/05/2019,474318,769.5,,Csl Power Systems Ltd,CSL002,Dir Ops/Commercial Serv,Revenue,"Repairs,  Alter & Mtce - Build",BUILDING CONSTRUCTION MATERIAL
http://thanet.gov.uk/supplierspend,Thanet District Council,08/05/2019,474759,1800,,Dr Alexander Marshall,MAR100,Dir Ops/Commercial Serv,Revenue,Services,CEMETERY AND CREMATORIUM
http://thanet.gov.uk/supplierspend,Thanet District Council,08/05/2019,473501,2984.61,,E Saunders Margate Ltd,SAU001,Dir Ops/Commercial Serv,Revenue,"Repairs,  Alter & Mtce - Build",CONSTRUCTION-REPAIR AND MAINT
http://thanet.gov.uk/supplierspend,Thanet District Council,08/05/2019,473645,5014.77,,E Saunders Margate Ltd,SAU001,Dir Ops/Commercial Serv,Revenue,"Repairs,  Alter & Mtce - Build",CONSTRUCTION-REPAIR AND MAINT
http://thanet.gov.uk/supplierspend,Thanet District Council,08/05/2019,473646,3937.5,,E Saunders Margate Ltd,SAU001,Dir Ops/Commercial Serv,Revenue,"Repairs,  Alter & Mtce - Build",CONSTRUCTION-REPAIR AND MAINT
http://thanet.gov.uk/supplierspend,Thanet District Council,08/05/2019,472998,1090,,Estuary Services Ltd,EST002,Dir Ops/Commercial Serv,Revenue,Cont Hire & Operating Lease,MARITIME SERVICES
http://thanet.gov.uk/supplierspend,Thanet District Council,08/05/2019,473742,14827.21,,Facultatieve Technologies,FAC003,Dir Ops/Commercial Serv,Revenue,"Repairs,  Alter & Mtce - Build",CEMETERY AND CREMATORIUM
http://thanet.gov.uk/supplierspend,Thanet District Council,08/05/2019,474744,1550,,Florence Court Hotel Ltd,FLO009,Deputy Chief Executive/S151,Revenue,Rents,HOUSING MANAGEMENT
http://thanet.gov.uk/supplierspend,Thanet District Council,08/05/2019,474745,870,,Florence Court Hotel Ltd,FLO009,Deputy Chief Executive/S151,Revenue,Rents,HOUSING MANAGEMENT
http://thanet.gov.uk/supplierspend,Thanet District Council,08/05/2019,473392,5682.06,,Hr Go (Kent) Ltd,HRG001,Dir Ops/Commercial Serv,Revenue,Agency Staff,HUMAN RESOURCES
http://thanet.gov.uk/supplierspend,Thanet District Council,08/05/2019,473626,965.88,,Hr Go (Kent) Ltd,HRG001,Dir Ops/Commercial Serv,Revenue,Agency Staff,HUMAN RESOURCES
http://thanet.gov.uk/supplierspend,Thanet District Council,08/05/2019,473671,4747.37,,Hr Go (Kent) Ltd,HRG001,Dir Ops/Commercial Serv,Revenue,Agency Staff,HUMAN RESOURCES
http://thanet.gov.uk/supplierspend,Thanet District Council,08/05/2019,473718,630.67,,Hr Go (Kent) Ltd,HRG001,Dir Ops/Commercial Serv,Revenue,Agency Staff,HUMAN RESOURCES
http://thanet.gov.uk/supplierspend,Thanet District Council,08/05/2019,473775,-630.67,,Hr Go (Kent) Ltd,HRG001,Dir Ops/Commercial Serv,Revenue,Agency Staff,HUMAN RESOURCES
http://thanet.gov.uk/supplierspend,Thanet District Council,08/05/2019,473844,1074.34,,Hr Go (Kent) Ltd,HRG001,Dir Ops/Commercial Serv,Revenue,Agency Staff,HUMAN RESOURCES
http://thanet.gov.uk/supplierspend,Thanet District Council,08/05/2019,473845,449.55,,Hr Go (Kent) Ltd,HRG001,Dir Ops/Commercial Serv,Revenue,Agency Staff,HUMAN RESOURCES
http://thanet.gov.uk/supplierspend,Thanet District Council,08/05/2019,473846,1005.96,,Hr Go (Kent) Ltd,HRG001,Dir Ops/Commercial Serv,Revenue,Agency Staff,HUMAN RESOURCES
http://thanet.gov.uk/supplierspend,Thanet District Council,08/05/2019,473887,773.74,,Hr Go (Kent) Ltd,HRG001,Dir Ops/Commercial Serv,Revenue,Agency Staff,HUMAN RESOURCES
http://thanet.gov.uk/supplierspend,Thanet District Council,08/05/2019,473893,1748.03,,Hr Go (Kent) Ltd,HRG001,Dir Ops/Commercial Serv,Revenue,Agency Staff,HUMAN RESOURCES
http://thanet.gov.uk/supplierspend,Thanet District Council,08/05/2019,474755,421.27,,Hr Go (Kent) Ltd,HRG001,Dir Ops/Commercial Serv,Revenue,Agency Staff,HUMAN RESOURCES
http://thanet.gov.uk/supplierspend,Thanet District Council,08/05/2019,473648,11296.89,,Imperial Civil Enforcement Sols Ltd,IMP008,Dir Ops/Commercial Serv,Revenue,Services,STREET AND TRAFFIC MANAGEMENT
http://thanet.gov.uk/supplierspend,Thanet District Council,08/05/2019,474776,1250,,Martin Neame Ltd,MAR116,Deputy Chief Executive/S151,Revenue,Grants & Subscriptions,RENT DEPOSITS
http://thanet.gov.uk/supplierspend,Thanet District Council,08/05/2019,473748,4570,,Matts Monitors Limited,MAT014,Dir Ops/Commercial Serv,Revenue,Services,ENVIRONMENTAL SERVICES
http://thanet.gov.uk/supplierspend,Thanet District Council,08/05/2019,472711,584.63,,Mears Ltd,MEA003,Dir Ops/Commercial Serv,Revenue,"Repairs,  Alter & Mtce - Build",CONSTRUCTION-REPAIR AND MAINT
http://thanet.gov.uk/supplierspend,Thanet District Council,08/05/2019,473850,501.53,,Mears Ltd,MEA003,Director Of Corp Gov/Mon Off,Revenue,"Repairs,  Alter & Mtce - Build",CONSTRUCTION-REPAIR AND MAINT
http://thanet.gov.uk/supplierspend,Thanet District Council,08/05/2019,473850,835.89,,Mears Ltd,MEA003,Dir Ops/Commercial Serv,Revenue,"Repairs,  Alter & Mtce - Build",CONSTRUCTION-REPAIR AND MAINT
http://thanet.gov.uk/supplierspend,Thanet District Council,08/05/2019,473851,475.81,,Mears Ltd,MEA003,Director Of Corp Gov/Mon Off,Revenue,"Repairs,  Alter & Mtce - Build",CONSTRUCTION-REPAIR AND MAINT
http://thanet.gov.uk/supplierspend,Thanet District Council,08/05/2019,473851,688,,Mears Ltd,MEA003,Dir Ops/Commercial Serv,Revenue,"Repairs,  Alter & Mtce - Build",CONSTRUCTION-REPAIR AND MAINT
http://thanet.gov.uk/supplierspend,Thanet District Council,08/05/2019,473863,1909.45,,Mears Ltd,MEA003,Deputy Chief Executive/S151,Revenue,"Repairs,  Alter & Mtce - Build",CONSTRUCTION-REPAIR AND MAINT
http://thanet.gov.uk/supplierspend,Thanet District Council,08/05/2019,473864,2925.26,,Mears Ltd,MEA003,Deputy Chief Executive/S151,Revenue,"Repairs,  Alter & Mtce - Build",CONSTRUCTION-REPAIR AND MAINT
http://thanet.gov.uk/supplierspend,Thanet District Council,08/05/2019,473865,459.53,,Mears Ltd,MEA003,Director Of Corp Gov/Mon Off,Revenue,"Repairs,  Alter & Mtce - Build",CONSTRUCTION-REPAIR AND MAINT
http://thanet.gov.uk/supplierspend,Thanet District Council,08/05/2019,473865,838.27,,Mears Ltd,MEA003,Dir Ops/Commercial Serv,Revenue,"Repairs,  Alter & Mtce - Build",CONSTRUCTION-REPAIR AND MAINT
http://thanet.gov.uk/supplierspend,Thanet District Council,08/05/2019,473000,845,,Meter Macs Ltd,MET014,Dir Ops/Commercial Serv,Revenue,"Repairs,  Alter & Mtce - Build",STREET AND TRAFFIC MANAGEMENT
http://thanet.gov.uk/supplierspend,Thanet District Council,08/05/2019,474774,1500,,Miles & Barr Property Man  Ltd,MIL048,Deputy Chief Executive/S151,Revenue,Grants & Subscriptions,RENT DEPOSITS
http://thanet.gov.uk/supplierspend,Thanet District Council,08/05/2019,474778,1140,,Miles & Barr Property Man  Ltd,MIL048,Deputy Chief Executive/S151,Revenue,Grants & Subscriptions,RENT DEPOSITS
http://thanet.gov.uk/supplierspend,Thanet District Council,08/05/2019,472962,962.5,,R Cannon,CAN007,Dir Ops/Commercial Serv,Revenue,Services,MARITIME SERVICES
http://thanet.gov.uk/supplierspend,Thanet District Council,08/05/2019,473471,4665,,Riba Enterprises Ltd,RIB003,Director Of Corp Gov/Mon Off,Revenue,Services,HUMAN RESOURCES
http://thanet.gov.uk/supplierspend,Thanet District Council,08/05/2019,473835,514.6,,Sellick Partnership Ltd,SEL011,Director Of Corp Gov/Mon Off,Revenue,Services,HUMAN RESOURCES
http://thanet.gov.uk/supplierspend,Thanet District Council,08/05/2019,473859,1917,,Sellick Partnership Ltd,SEL011,Director Of Corp Gov/Mon Off,Revenue,Agency Staff,HUMAN RESOURCES
http://thanet.gov.uk/supplierspend,Thanet District Council,08/05/2019,472861,6424.25,,Shoreline Surveys Limited,SHO001,Dir Ops/Commercial Serv,Revenue,"Repairs,  Alter & Mtce - Build",MARITIME SERVICES
http://thanet.gov.uk/supplierspend,Thanet District Council,08/05/2019,474760,440,,South East Netting Limited,SOU016,Dir Ops/Commercial Serv,Revenue,"Equip, Furniture And Materials",BUILDING CONSTRUCTION MATERIAL
http://thanet.gov.uk/supplierspend,Thanet District Council,08/05/2019,472887,2303.23,,Southern Electric,SEL007,Deputy Chief Executive/S151,Revenue,Energy Costs,UTILITIES
http://thanet.gov.uk/supplierspend,Thanet District Council,08/05/2019,474720,-2303.23,,Southern Electric,SEL007,Deputy Chief Executive/S151,Revenue,Energy Costs,UTILITIES
http://thanet.gov.uk/supplierspend,Thanet District Council,08/05/2019,474736,1810.03,,Southern Electric,SEL007,Deputy Chief Executive/S151,Revenue,Energy Costs,UTILITIES
http://thanet.gov.uk/supplierspend,Thanet District Council,08/05/2019,472706,660,,The Yaboo Company Limited,YAB001,Dir Ops/Commercial Serv,Revenue,"Equip, Furniture And Materials",DOMESTIC GOODS
http://thanet.gov.uk/supplierspend,Thanet District Council,08/05/2019,472707,7347.45,,The Yaboo Company Limited,YAB001,Dir Ops/Commercial Serv,Revenue,"Equip, Furniture And Materials",DOMESTIC GOODS
http://thanet.gov.uk/supplierspend,Thanet District Council,13/05/2019,473857,3500,,Ashford Borough Council,ASH001,Deputy Chief Executive/S151,Revenue,Grants & Subscriptions,VARIOUS CATS-PUBLIC SECTOR
http://thanet.gov.uk/supplierspend,Thanet District Council,13/05/2019,475093,106896.17,,Coombs (Canterbury) Ltd,COO033,Director of Corporate Resources and S151,Balance Sheet,Council Dwellings,CONSTRUCTION-REPAIR AND MAINT
http://thanet.gov.uk/supplierspend,Thanet District Council,13/05/2019,473271,810,,Florence Court Hotel Ltd,FLO009,Deputy Chief Executive/S151,Revenue,Rents,HOUSING MANAGEMENT
http://thanet.gov.uk/supplierspend,Thanet District Council,13/05/2019,473276,930,,Florence Court Hotel Ltd,FLO009,Deputy Chief Executive/S151,Revenue,Rents,HOUSING MANAGEMENT
http://thanet.gov.uk/supplierspend,Thanet District Council,13/05/2019,473277,900,,Florence Court Hotel Ltd,FLO009,Deputy Chief Executive/S151,Revenue,Rents,HOUSING MANAGEMENT
http://thanet.gov.uk/supplierspend,Thanet District Council,13/05/2019,473278,600,,Florence Court Hotel Ltd,FLO009,Deputy Chief Executive/S151,Revenue,Rents,HOUSING MANAGEMENT
http://thanet.gov.uk/supplierspend,Thanet District Council,13/05/2019,473279,510,,Florence Court Hotel Ltd,FLO009,Deputy Chief Executive/S151,Revenue,Rents,HOUSING MANAGEMENT
http://thanet.gov.uk/supplierspend,Thanet District Council,13/05/2019,473282,750,,Florence Court Hotel Ltd,FLO009,Deputy Chief Executive/S151,Revenue,Rents,HOUSING MANAGEMENT
http://thanet.gov.uk/supplierspend,Thanet District Council,13/05/2019,473649,1193,,Gillett & Johnston (Croydon) Ltd,GIL016,Director Of Corp Gov/Mon Off,Revenue,"Repairs,  Alter & Mtce - Build",CONSTRUCTION-REPAIR AND MAINT
http://thanet.gov.uk/supplierspend,Thanet District Council,13/05/2019,473827,1512.5,,Luv Corp Ltd,LUV001,Deputy Chief Executive/S151,Revenue,Services,ICT
http://thanet.gov.uk/supplierspend,Thanet District Council,13/05/2019,472088,1386,,Modus Construction Consultants Ltd,MOD007,Director of Corporate Resources and S151,Balance Sheet,Council Dwellings,CONSULTANCY
http://thanet.gov.uk/supplierspend,Thanet District Council,13/05/2019,471531,1316.7,,Posturite Ltd,POS010,Deputy Chief Executive/S151,Revenue,"Equip, Furniture And Materials",HEALTH AND SAFETY
http://thanet.gov.uk/supplierspend,Thanet District Council,13/05/2019,474866,64348.03,,W W Martin Ltd,MAR003,Director of Corporate Resources and S151,Balance Sheet,Council Dwellings,CONSTRUCTION-REPAIR AND MAINT
http://thanet.gov.uk/supplierspend,Thanet District Council,14/05/2019,475292,1345.25,,Amenity Horticultural Serv Ltd,AME001,Dir Ops/Commercial Serv,Revenue,"Repairs,  Alter & Mtce - Build",HORTICULTURAL
http://thanet.gov.uk/supplierspend,Thanet District Council,14/05/2019,475242,16467.01,,Bramling Construction Ltd,BRA020,Director of Corporate Resources and S151,Balance Sheet,Capital Exp-Non Council Assets,GRANTS
http://thanet.gov.uk/supplierspend,Thanet District Council,14/05/2019,474131,1692.01,,Certas Energy Uk Ltd,CER005,Dir Ops/Commercial Serv,Revenue,"Equip, Furniture And Materials",VEHICLE MANAGEMENT
http://thanet.gov.uk/supplierspend,Thanet District Council,14/05/2019,474387,2293.43,,Certas Energy Uk Ltd,CER005,Dir Ops/Commercial Serv,Revenue,Direct Transport Costs,VEHICLE MANAGEMENT
http://thanet.gov.uk/supplierspend,Thanet District Council,14/05/2019,474422,1676.06,,Certas Energy Uk Ltd,CER005,Dir Ops/Commercial Serv,Revenue,"Equip, Furniture And Materials",VEHICLE MANAGEMENT
http://thanet.gov.uk/supplierspend,Thanet District Council,14/05/2019,474602,769.5,,Csl Power Systems Ltd,CSL002,Dir Ops/Commercial Serv,Revenue,"Repairs,  Alter & Mtce - Build",BUILDING CONSTRUCTION MATERIAL
http://thanet.gov.uk/supplierspend,Thanet District Council,14/05/2019,472099,5173.52,,Dcb (Kent) Ltd,DCB001,Director of Corporate Resources and S151,Balance Sheet,Repairs And Mtce Holding A/C,CONSTRUCTION-REPAIR AND MAINT
http://thanet.gov.uk/supplierspend,Thanet District Council,14/05/2019,474600,1257.18,,Hands On Suppliers Ltd,HAN007,Dir Ops/Commercial Serv,Revenue,"Equip, Furniture And Materials",CLOTHING
http://thanet.gov.uk/supplierspend,Thanet District Council,14/05/2019,474119,8622,,Hipperson Builders (M & E) Limited,HIP002,Director of Corporate Resources and S151,Balance Sheet,Other Land And Buildings-Hra,CONSTRUCTION-REPAIR AND MAINT
http://thanet.gov.uk/supplierspend,Thanet District Council,14/05/2019,474314,4065,,Hipperson Builders (M & E) Limited,HIP002,Director Of Corp Gov/Mon Off,Revenue,"Repairs,  Alter & Mtce - Build",CONSTRUCTION-REPAIR AND MAINT
http://thanet.gov.uk/supplierspend,Thanet District Council,14/05/2019,474396,2347.57,,Hr Go (Kent) Ltd,HRG001,Dir Ops/Commercial Serv,Revenue,Agency Staff,HUMAN RESOURCES
http://thanet.gov.uk/supplierspend,Thanet District Council,14/05/2019,472026,6756.4,,Imperial Civil Enforcement Sols Ltd,IMP008,Dir Ops/Commercial Serv,Revenue,Communications & Computing,STREET AND TRAFFIC MANAGEMENT
http://thanet.gov.uk/supplierspend,Thanet District Council,14/05/2019,472026,7515,,Imperial Civil Enforcement Sols Ltd,IMP008,Dir Ops/Commercial Serv,Revenue,Services,STREET AND TRAFFIC MANAGEMENT
http://thanet.gov.uk/supplierspend,Thanet District Council,14/05/2019,473209,10647.1,,Kingdom Security Limited,KIN039,Dir Ops/Commercial Serv,Revenue,Services,STREET AND TRAFFIC MANAGEMENT
http://thanet.gov.uk/supplierspend,Thanet District Council,14/05/2019,474404,999.79,,Main Man Supplies Ltd,MAI001,Dir Ops/Commercial Serv,Revenue,"Clothes, Uniforms & Laundry",CLOTHING
http://thanet.gov.uk/supplierspend,Thanet District Council,14/05/2019,474833,-499.17,,Manx Telecom Limited,MAN018,Director of Corporate Resources and S151,Balance Sheet,Plant And Equipment,ICT
http://thanet.gov.uk/supplierspend,Thanet District Council,14/05/2019,474834,69.54,,Manx Telecom Limited,MAN018,Dir Ops/Commercial Serv,Revenue,Communications & Computing,ICT
http://thanet.gov.uk/supplierspend,Thanet District Council,14/05/2019,474834,499.17,,Manx Telecom Limited,MAN018,Director of Corporate Resources and S151,Balance Sheet,Plant And Equipment,ICT
http://thanet.gov.uk/supplierspend,Thanet District Council,14/05/2019,475294,1250,,Miles & Barr Property Man  Ltd,MIL048,Deputy Chief Executive/S151,Revenue,Grants & Subscriptions,RENT DEPOSITS
http://thanet.gov.uk/supplierspend,Thanet District Council,14/05/2019,474071,639.9,,Ohuk Limited,OHU001,Dir Ops/Commercial Serv,Revenue,Agency Staff,HUMAN RESOURCES
http://thanet.gov.uk/supplierspend,Thanet District Council,14/05/2019,475240,1098.3,,Peabody South East Limited,PEA024,Director of Corporate Resources and S151,Balance Sheet,Capital Exp-Non Council Assets,GRANTS
http://thanet.gov.uk/supplierspend,Thanet District Council,14/05/2019,475241,1712.36,,Peabody South East Limited,PEA024,Director of Corporate Resources and S151,Balance Sheet,Capital Exp-Non Council Assets,GRANTS
http://thanet.gov.uk/supplierspend,Thanet District Council,14/05/2019,475243,1866.04,,Peabody South East Limited,PEA024,Director of Corporate Resources and S151,Balance Sheet,Capital Exp-Non Council Assets,GRANTS
http://thanet.gov.uk/supplierspend,Thanet District Council,14/05/2019,474401,1010.21,,Profile Security Services Limited,PRO018,Dir Ops/Commercial Serv,Revenue,Services,FACILITIES AND MANGEMENT SERV
http://thanet.gov.uk/supplierspend,Thanet District Council,14/05/2019,474402,26368.81,,Profile Security Services Limited,PRO018,Dir Ops/Commercial Serv,Revenue,Services,FACILITIES AND MANGEMENT SERV
http://thanet.gov.uk/supplierspend,Thanet District Council,14/05/2019,474426,542.5,,R Cannon,CAN007,Dir Ops/Commercial Serv,Revenue,Services,MARITIME SERVICES
http://thanet.gov.uk/supplierspend,Thanet District Council,14/05/2019,474518,4215.24,,R Cannon,CAN007,Dir Ops/Commercial Serv,Revenue,"Equip, Furniture And Materials",MARITIME SERVICES
http://thanet.gov.uk/supplierspend,Thanet District Council,14/05/2019,474477,994.3,,Reactec Limited,REA008,Dir Ops/Commercial Serv,Revenue,"Equip, Furniture And Materials",VEHICLE MANAGEMENT
http://thanet.gov.uk/supplierspend,Thanet District Council,14/05/2019,474709,634.53,,Scottish Water Business Stream Ltd,SCO019,Dir Ops/Commercial Serv,Revenue,Water Services,UTILITIES
http://thanet.gov.uk/supplierspend,Thanet District Council,14/05/2019,474926,1201.71,,Scottish Water Business Stream Ltd,SCO019,Dir Ops/Commercial Serv,Revenue,Water Services,UTILITIES
http://thanet.gov.uk/supplierspend,Thanet District Council,14/05/2019,474937,1181.26,,Scottish Water Business Stream Ltd,SCO019,Dir Ops/Commercial Serv,Revenue,Water Services,UTILITIES
http://thanet.gov.uk/supplierspend,Thanet District Council,14/05/2019,474939,799.35,,Scottish Water Business Stream Ltd,SCO019,Dir Ops/Commercial Serv,Revenue,Water Services,UTILITIES
http://thanet.gov.uk/supplierspend,Thanet District Council,14/05/2019,475239,9152.52,,Trueden Disability Adaptations Ltd,TRU012,Director of Corporate Resources and S151,Balance Sheet,Capital Exp-Non Council Assets,GRANTS
http://thanet.gov.uk/supplierspend,Thanet District Council,14/05/2019,474134,612,,Uplands Engineering Ltd,UPL001,Dir Ops/Commercial Serv,Revenue,"Equip, Furniture And Materials",MARITIME SERVICES
http://thanet.gov.uk/supplierspend,Thanet District Council,15/05/2019,473771,9039.4,,Ccs Media Limited,CCS003,East Kent Shared Services,Revenue,Communications & Computing,ICT
http://thanet.gov.uk/supplierspend,Thanet District Council,15/05/2019,473836,30968,,Civica Uk Ltd,CIV003,East Kent Shared Services,Revenue,Grants & Subscriptions,ICT
http://thanet.gov.uk/supplierspend,Thanet District Council,15/05/2019,473838,25861,,Civica Uk Ltd,CIV003,East Kent Shared Services,Revenue,Communications & Computing,ICT
http://thanet.gov.uk/supplierspend,Thanet District Council,15/05/2019,474706,572.5,,Holt & Wotton Ltd,HOL001,Director of Corporate Resources and S151,Balance Sheet,Repairs And Mtce Holding A/C,BUILDING CONSTRUCTION MATERIAL
http://thanet.gov.uk/supplierspend,Thanet District Council,15/05/2019,475358,6236.33,,Hubbard & Houghton Construction Ltd,HUB003,Director of Corporate Resources and S151,Balance Sheet,Capital Exp-Non Council Assets,GRANTS
http://thanet.gov.uk/supplierspend,Thanet District Council,15/05/2019,475357,1000,,Lovetts Birchington Ltd,LOV006,Deputy Chief Executive/S151,Revenue,Grants & Subscriptions,RENT DEPOSITS
http://thanet.gov.uk/supplierspend,Thanet District Council,15/05/2019,473660,1792.11,,Mears Ltd,MEA003,Director of Corporate Resources and S151,Balance Sheet,Repairs And Mtce Holding A/C,CONSTRUCTION-REPAIR AND MAINT
http://thanet.gov.uk/supplierspend,Thanet District Council,15/05/2019,474313,19983.79,,Mears Ltd,MEA003,Director of Corporate Resources and S151,Balance Sheet,Repairs And Mtce Holding A/C,CONSTRUCTION-REPAIR AND MAINT
http://thanet.gov.uk/supplierspend,Thanet District Council,15/05/2019,474592,17110.38,,Mears Ltd,MEA003,Director of Corporate Resources and S151,Balance Sheet,Repairs And Mtce Holding A/C,CONSTRUCTION-REPAIR AND MAINT
http://thanet.gov.uk/supplierspend,Thanet District Council,15/05/2019,474593,24259.25,,Mears Ltd,MEA003,Director of Corporate Resources and S151,Balance Sheet,Repairs And Mtce Holding A/C,CONSTRUCTION-REPAIR AND MAINT
http://thanet.gov.uk/supplierspend,Thanet District Council,15/05/2019,474594,677.3,,Mears Ltd,MEA003,Director of Corporate Resources and S151,Balance Sheet,Repairs And Mtce Holding A/C,CONSTRUCTION-REPAIR AND MAINT
http://thanet.gov.uk/supplierspend,Thanet District Council,15/05/2019,474595,938.15,,Mears Ltd,MEA003,Director of Corporate Resources and S151,Balance Sheet,Repairs And Mtce Holding A/C,CONSTRUCTION-REPAIR AND MAINT
http://thanet.gov.uk/supplierspend,Thanet District Council,15/05/2019,474596,23893.71,,Mears Ltd,MEA003,Director of Corporate Resources and S151,Balance Sheet,Repairs And Mtce Holding A/C,CONSTRUCTION-REPAIR AND MAINT
http://thanet.gov.uk/supplierspend,Thanet District Council,15/05/2019,475107,5624.32,,Mears Ltd,MEA003,Director of Corporate Resources and S151,Balance Sheet,Repairs And Mtce Holding A/C,CONSTRUCTION-REPAIR AND MAINT
http://thanet.gov.uk/supplierspend,Thanet District Council,15/05/2019,473731,900,,Midland Software Limited,MID013,East Kent Shared Services,Revenue,Communications & Computing,ICT
http://thanet.gov.uk/supplierspend,Thanet District Council,15/05/2019,475353,1000,,Miles & Barr Property Man  Ltd,MIL048,Deputy Chief Executive/S151,Revenue,Grants & Subscriptions,RENT DEPOSITS
http://thanet.gov.uk/supplierspend,Thanet District Council,15/05/2019,475354,1000,,Miles & Barr Property Man  Ltd,MIL048,Deputy Chief Executive/S151,Revenue,Grants & Subscriptions,RENT DEPOSITS
http://thanet.gov.uk/supplierspend,Thanet District Council,15/05/2019,475355,1066.15,,Miles & Barr Property Man  Ltd,MIL048,Deputy Chief Executive/S151,Revenue,Grants & Subscriptions,RENT DEPOSITS
http://thanet.gov.uk/supplierspend,Thanet District Council,15/05/2019,473725,423.33,,Phoenix Software Ltd,PHO002,East Kent Shared Services,Revenue,Communications & Computing,ICT
http://thanet.gov.uk/supplierspend,Thanet District Council,15/05/2019,475360,1250,,Prospects Assured Uk Ltd,PRO032,Deputy Chief Executive/S151,Revenue,Grants & Subscriptions,RENT DEPOSITS
http://thanet.gov.uk/supplierspend,Thanet District Council,15/05/2019,N/A,10000,,Redacted Personal Data,N/A,Dir Ops/Commercial Serv,Revenue,N/A,N/A
http://thanet.gov.uk/supplierspend,Thanet District Council,15/05/2019,474478,13518.76,,Specialist Building Products Ltd,SPE027,Director of Corporate Resources and S151,Balance Sheet,Repairs And Mtce Holding A/C,BUILDING CONSTRUCTION MATERIAL
http://thanet.gov.uk/supplierspend,Thanet District Council,15/05/2019,475362,685.8,,Thanet Waste Services Ltd,TWA001,Dir Ops/Commercial Serv,Revenue,Cleaning & Domestic Supplies,ENVIRONMENTAL SERVICES
http://thanet.gov.uk/supplierspend,Thanet District Council,15/05/2019,475356,1892,,Tms Property Services Llp,TMS002,Deputy Chief Executive/S151,Revenue,Grants & Subscriptions,RENT DEPOSITS
http://thanet.gov.uk/supplierspend,Thanet District Council,15/05/2019,473828,2916.96,,Trustmarque Solutions Limited,TRU014,East Kent Shared Services,Revenue,Communications & Computing,ICT
http://thanet.gov.uk/supplierspend,Thanet District Council,15/05/2019,473783,806,,Xchanging Global Insurance Sols Ltd,XCH001,East Kent Shared Services,Revenue,Communications & Computing,ICT
http://thanet.gov.uk/supplierspend,Thanet District Council,17/05/2019,473739,54921,,Capital Prop & Con Consultants Ltd,CAP018,Director of Corporate Resources and S151,Balance Sheet,Repairs And Mtce Holding A/C,HEALTH AND SAFETY
http://thanet.gov.uk/supplierspend,Thanet District Council,17/05/2019,473186,7367.5,,Cobalt Telephone Technologies Ltd,COB002,Dir Ops/Commercial Serv,Revenue,Services,ICT
http://thanet.gov.uk/supplierspend,Thanet District Council,17/05/2019,474586,9381.7,,Cobalt Telephone Technologies Ltd,COB002,Dir Ops/Commercial Serv,Revenue,Services,ICT
http://thanet.gov.uk/supplierspend,Thanet District Council,17/05/2019,473668,441.2,,Elec-Sec Ltd,ELE014,Director Of Corp Gov/Mon Off,Revenue,"Repairs,  Alter & Mtce - Build",BUILDING CONSTRUCTION MATERIAL
http://thanet.gov.uk/supplierspend,Thanet District Council,17/05/2019,474431,501.73,,Elec-Sec Ltd,ELE014,Dir Ops/Commercial Serv,Revenue,"Repairs,  Alter & Mtce - Build",BUILDING CONSTRUCTION MATERIAL
http://thanet.gov.uk/supplierspend,Thanet District Council,17/05/2019,472291,1050,,Florence Court Hotel Ltd,FLO009,Deputy Chief Executive/S151,Revenue,Services,HOUSING MANAGEMENT
http://thanet.gov.uk/supplierspend,Thanet District Council,17/05/2019,475082,450,,Florence Court Hotel Ltd,FLO009,Deputy Chief Executive/S151,Revenue,Services,HOUSING MANAGEMENT
http://thanet.gov.uk/supplierspend,Thanet District Council,17/05/2019,474848,4308,,Gl Hearn Limited,GLH001,Deputy Chief Executive/S151,Revenue,Services,CONSULTANCY
http://thanet.gov.uk/supplierspend,Thanet District Council,17/05/2019,475401,987.5,,Gl Hearn Limited,GLH001,Director of Corporate Resources and S151,Balance Sheet,Other Land And Buildings-Hra,CONSULTANCY
http://thanet.gov.uk/supplierspend,Thanet District Council,17/05/2019,474998,25149.12,,Mears Ltd,MEA003,Director of Corporate Resources and S151,Balance Sheet,Repairs And Mtce Holding A/C,CONSTRUCTION-REPAIR AND MAINT
http://thanet.gov.uk/supplierspend,Thanet District Council,17/05/2019,473959,780,,Michael Page Int Recruitment Ltd,PAG008,Deputy Chief Executive/S151,Revenue,Agency Staff,HUMAN RESOURCES
http://thanet.gov.uk/supplierspend,Thanet District Council,17/05/2019,474574,780,,Michael Page Int Recruitment Ltd,PAG008,Deputy Chief Executive/S151,Revenue,Agency Staff,HUMAN RESOURCES
http://thanet.gov.uk/supplierspend,Thanet District Council,17/05/2019,475569,10000,,Neopost Limited Neofunds,NEO004,Director Of Corp Gov/Mon Off,Revenue,Communications & Computing,MAIL SERVICES
http://thanet.gov.uk/supplierspend,Thanet District Council,17/05/2019,474850,1639,,Paramount Ind Property Services Llp,PAR074,Deputy Chief Executive/S151,Revenue,Rents,HOUSING MANAGEMENT
http://thanet.gov.uk/supplierspend,Thanet District Council,17/05/2019,474855,900,,Paramount Ind Property Services Llp,PAR074,Deputy Chief Executive/S151,Revenue,Rents,HOUSING MANAGEMENT
http://thanet.gov.uk/supplierspend,Thanet District Council,17/05/2019,474679,9444,,Portakabin Ltd,POR001,Director of Corporate Resources and S151,Balance Sheet,Plant And Equipment,FACILITIES AND MANGEMENT SERV
http://thanet.gov.uk/supplierspend,Thanet District Council,17/05/2019,473441,721.5,,R S S (Wessex) Limited,RSS002,Dir Ops/Commercial Serv,Revenue,Agency Staff,HUMAN RESOURCES
http://thanet.gov.uk/supplierspend,Thanet District Council,17/05/2019,473445,721.5,,R S S (Wessex) Limited,RSS002,Dir Ops/Commercial Serv,Revenue,Agency Staff,HUMAN RESOURCES
http://thanet.gov.uk/supplierspend,Thanet District Council,17/05/2019,N/A,760,,Redacted Personal Data,N/A,Deputy Chief Executive/S151,Revenue,Grants & Subscriptions,RENT DEPOSITS
http://thanet.gov.uk/supplierspend,Thanet District Council,17/05/2019,N/A,800,,Redacted Personal Data,N/A,Deputy Chief Executive/S151,Revenue,N/A,NON TRADE PAYEE
http://thanet.gov.uk/supplierspend,Thanet District Council,17/05/2019,474707,3488.56,,Royal Mail,ROY004,Director Of Corp Gov/Mon Off,Revenue,Communications & Computing,MAIL SERVICES
http://thanet.gov.uk/supplierspend,Thanet District Council,17/05/2019,475072,1581.94,,Royal Mail,ROY004,Director Of Corp Gov/Mon Off,Revenue,Communications & Computing,MAIL SERVICES
http://thanet.gov.uk/supplierspend,Thanet District Council,17/05/2019,475496,45844,,The Forward Trust,FOR023,Deputy Chief Executive/S151,Revenue,Grants & Subscriptions,SPECIAL COMMUNITY CARE
http://thanet.gov.uk/supplierspend,Thanet District Council,19/05/2019,N/A,540.96,,Redacted Personal Data,N/A,Dir Ops/Commercial Serv,Revenue,Expenses - Accomodation,
http://thanet.gov.uk/supplierspend,Thanet District Council,19/05/2019,N/A,588,,Redacted Personal Data,N/A,Dir Ops/Commercial Serv,Revenue,Expenses - Equipment,
http://thanet.gov.uk/supplierspend,Thanet District Council,19/05/2019,N/A,27.3,,Redacted Personal Data,N/A,Dir Ops/Commercial Serv,Revenue,Expenses - Travel/Fares,
http://thanet.gov.uk/supplierspend,Thanet District Council,19/05/2019,N/A,110.64,,Redacted Personal Data,N/A,Dir Ops/Commercial Serv,Revenue,Mileage,
http://thanet.gov.uk/supplierspend,Thanet District Council,20/05/2019,475666,454.66,,Brandon Hire Plc,BRA005,Dir Ops/Commercial Serv,Revenue,"Repairs,  Alter & Mtce - Build",MARITIME SERVICES
http://thanet.gov.uk/supplierspend,Thanet District Council,20/05/2019,474887,3888,,British Polythene Ltd,BPI002,Dir Ops/Commercial Serv,Revenue,"Equip, Furniture And Materials",ENVIRONMENTAL SERVICES
http://thanet.gov.uk/supplierspend,Thanet District Council,20/05/2019,474888,2656.8,,British Polythene Ltd,BPI002,Dir Ops/Commercial Serv,Revenue,"Equip, Furniture And Materials",ENVIRONMENTAL SERVICES
http://thanet.gov.uk/supplierspend,Thanet District Council,20/05/2019,474618,36640.09,,Certas Energy Uk Ltd,CER005,Dir Ops/Commercial Serv,Revenue,Direct Transport Costs,VEHICLE MANAGEMENT
http://thanet.gov.uk/supplierspend,Thanet District Council,20/05/2019,474770,1503.08,,Dennis Eagle Ltd,DEN005,Dir Ops/Commercial Serv,Revenue,Direct Transport Costs,VEHICLE MANAGEMENT
http://thanet.gov.uk/supplierspend,Thanet District Council,20/05/2019,475663,1796.71,,Dennis Eagle Ltd,DEN005,Dir Ops/Commercial Serv,Revenue,Direct Transport Costs,VEHICLE MANAGEMENT
http://thanet.gov.uk/supplierspend,Thanet District Council,20/05/2019,475475,5405,,Eagle Security Alarms Ltd,EAG005,Dir Ops/Commercial Serv,Revenue,Services,FACILITIES AND MANGEMENT SERV
http://thanet.gov.uk/supplierspend,Thanet District Council,20/05/2019,474738,4842,,Environment Agency,ENV001,Dir Ops/Commercial Serv,Revenue,Services,ENVIRONMENTAL SERVICES
http://thanet.gov.uk/supplierspend,Thanet District Council,20/05/2019,475474,1063,,Freight Transport Association,FRE007,Dir Ops/Commercial Serv,Revenue,Grants & Subscriptions,HUMAN RESOURCES
http://thanet.gov.uk/supplierspend,Thanet District Council,20/05/2019,475201,2183.4,,Graffiti Removal Ltd,GRA039,Dir Ops/Commercial Serv,Revenue,"Equip, Furniture And Materials",CLEANING AND JANITORIAL
http://thanet.gov.uk/supplierspend,Thanet District Council,20/05/2019,474980,1848.64,,Haynes Of Maidstone Ltd,HAY008,Dir Ops/Commercial Serv,Revenue,Direct Transport Costs,VEHICLE MANAGEMENT
http://thanet.gov.uk/supplierspend,Thanet District Council,20/05/2019,474733,1828.05,,Hr Go (Kent) Ltd,HRG001,Dir Ops/Commercial Serv,Revenue,Agency Staff,HUMAN RESOURCES
http://thanet.gov.uk/supplierspend,Thanet District Council,20/05/2019,474735,995.63,,Hr Go (Kent) Ltd,HRG001,Dir Ops/Commercial Serv,Revenue,Agency Staff,HUMAN RESOURCES
http://thanet.gov.uk/supplierspend,Thanet District Council,20/05/2019,474739,2419.64,,Hr Go (Kent) Ltd,HRG001,Dir Ops/Commercial Serv,Revenue,Agency Staff,HUMAN RESOURCES
http://thanet.gov.uk/supplierspend,Thanet District Council,20/05/2019,474740,10361.8,,Hr Go (Kent) Ltd,HRG001,Dir Ops/Commercial Serv,Revenue,Agency Staff,HUMAN RESOURCES
http://thanet.gov.uk/supplierspend,Thanet District Council,20/05/2019,474746,2357.61,,Hr Go (Kent) Ltd,HRG001,Dir Ops/Commercial Serv,Revenue,Agency Staff,HUMAN RESOURCES
http://thanet.gov.uk/supplierspend,Thanet District Council,20/05/2019,474830,1443.24,,Hr Go (Kent) Ltd,HRG001,Dir Ops/Commercial Serv,Revenue,Agency Staff,HUMAN RESOURCES
http://thanet.gov.uk/supplierspend,Thanet District Council,20/05/2019,474878,1731.83,,Hr Go (Kent) Ltd,HRG001,Dir Ops/Commercial Serv,Revenue,Agency Staff,HUMAN RESOURCES
http://thanet.gov.uk/supplierspend,Thanet District Council,20/05/2019,474879,1440.7,,Hr Go (Kent) Ltd,HRG001,Dir Ops/Commercial Serv,Revenue,Agency Staff,HUMAN RESOURCES
http://thanet.gov.uk/supplierspend,Thanet District Council,20/05/2019,474885,10560.91,,Hr Go (Kent) Ltd,HRG001,Dir Ops/Commercial Serv,Revenue,Agency Staff,HUMAN RESOURCES
http://thanet.gov.uk/supplierspend,Thanet District Council,20/05/2019,475655,917.1,,Hr Go (Kent) Ltd,HRG001,Dir Ops/Commercial Serv,Revenue,Agency Staff,HUMAN RESOURCES
http://thanet.gov.uk/supplierspend,Thanet District Council,20/05/2019,475658,1066.1,,Hr Go (Kent) Ltd,HRG001,Dir Ops/Commercial Serv,Revenue,Agency Staff,HUMAN RESOURCES
http://thanet.gov.uk/supplierspend,Thanet District Council,20/05/2019,475660,767.01,,Hr Go (Kent) Ltd,HRG001,Dir Ops/Commercial Serv,Revenue,Agency Staff,HUMAN RESOURCES
http://thanet.gov.uk/supplierspend,Thanet District Council,20/05/2019,475469,287313,,Kent & Medway Towns Fire Authority,KMT001,Director of Corporate Resources and S151,Balance Sheet,Collection Fund,VARIOUS CATS-PUBLIC SECTOR
http://thanet.gov.uk/supplierspend,Thanet District Council,20/05/2019,475465,4810431,,Kent County Council,KCC022,Director of Corporate Resources and S151,Balance Sheet,Collection Fund,VARIOUS CATS-PUBLIC SECTOR
http://thanet.gov.uk/supplierspend,Thanet District Council,20/05/2019,475467,711400,,Kent Police & Crime Commissioner,KPA003,Director of Corporate Resources and S151,Balance Sheet,Collection Fund,VARIOUS CATS-PUBLIC SECTOR
http://thanet.gov.uk/supplierspend,Thanet District Council,20/05/2019,474701,10826.5,,Ling Metals Limited,LIN004,Dir Ops/Commercial Serv,Revenue,Services,ENVIRONMENTAL SERVICES
http://thanet.gov.uk/supplierspend,Thanet District Council,20/05/2019,475151,526.48,,Lister Wilder Limited,LIS002,Dir Ops/Commercial Serv,Revenue,"Equip, Furniture And Materials",HORTICULTURAL
http://thanet.gov.uk/supplierspend,Thanet District Council,20/05/2019,475193,2854.92,,Mears Ltd,MEA003,Dir Ops/Commercial Serv,Revenue,"Repairs,  Alter & Mtce - Build",CONSTRUCTION-REPAIR AND MAINT
http://thanet.gov.uk/supplierspend,Thanet District Council,20/05/2019,475194,1250.73,,Mears Ltd,MEA003,Dir Ops/Commercial Serv,Revenue,"Repairs,  Alter & Mtce - Build",CONSTRUCTION-REPAIR AND MAINT
http://thanet.gov.uk/supplierspend,Thanet District Council,20/05/2019,475195,1771.14,,Mears Ltd,MEA003,Dir Ops/Commercial Serv,Revenue,"Repairs,  Alter & Mtce - Build",CONSTRUCTION-REPAIR AND MAINT
http://thanet.gov.uk/supplierspend,Thanet District Council,20/05/2019,474700,487.5,,Mike Beer Transport Ltd,BEE006,Dir Ops/Commercial Serv,Revenue,Direct Transport Costs,VEHICLE MANAGEMENT
http://thanet.gov.uk/supplierspend,Thanet District Council,20/05/2019,475069,3163.85,,Ntm-Gb Limited,NTM001,Dir Ops/Commercial Serv,Revenue,Direct Transport Costs,VEHICLE MANAGEMENT
http://thanet.gov.uk/supplierspend,Thanet District Council,20/05/2019,474912,9525,,One 51 Es Plastics (Uk) Limited,ONE006,Dir Ops/Commercial Serv,Revenue,"Equip, Furniture And Materials",ENVIRONMENTAL SERVICES
http://thanet.gov.uk/supplierspend,Thanet District Council,20/05/2019,474680,908,,Rigby Taylor Ltd,RIG002,Dir Ops/Commercial Serv,Revenue,"Equip, Furniture And Materials",HORTICULTURAL
http://thanet.gov.uk/supplierspend,Thanet District Council,20/05/2019,475668,651.5,,Streetmaster (S.Wales) Limited,STR001,Dir Ops/Commercial Serv,Revenue,"Equip, Furniture And Materials",HIGHWAY EQUIPMENT AND MATERIAL
http://thanet.gov.uk/supplierspend,Thanet District Council,20/05/2019,475670,641.5,,Streetmaster (S.Wales) Limited,STR001,Dir Ops/Commercial Serv,Revenue,"Equip, Furniture And Materials",HIGHWAY EQUIPMENT AND MATERIAL
http://thanet.gov.uk/supplierspend,Thanet District Council,20/05/2019,475200,1851.02,,Total Supplies Ltd,TOT009,Dir Ops/Commercial Serv,Revenue,"Equip, Furniture And Materials",CLEANING AND JANITORIAL
http://thanet.gov.uk/supplierspend,Thanet District Council,21/05/2019,475539,853.52,,Air Liquide Uk Ltd,AIR013,Dir Ops/Commercial Serv,Revenue,Services,UTILITIES
http://thanet.gov.uk/supplierspend,Thanet District Council,21/05/2019,474397,1200,,A-Skip 4 U,ASK003,Director Of Corp Gov/Mon Off,Revenue,Services,ENVIRONMENTAL SERVICES
http://thanet.gov.uk/supplierspend,Thanet District Council,21/05/2019,475023,787.5,,Bookpoint Limited,BOO003,Director Of Corp Gov/Mon Off,Revenue,"Equip, Furniture And Materials",STATIONERY
http://thanet.gov.uk/supplierspend,Thanet District Council,21/05/2019,474669,534.2,,Cannon Hygiene Limited,CAN030,Director Of Corp Gov/Mon Off,Revenue,Fixtures & Fittings,ENVIRONMENTAL SERVICES
http://thanet.gov.uk/supplierspend,Thanet District Council,21/05/2019,474085,774,,Canon (Uk) Ltd,CAN021,Director Of Corp Gov/Mon Off,Revenue,"Print, Stat And Gen Off Exps",FACILITIES AND MANGEMENT SERV
http://thanet.gov.uk/supplierspend,Thanet District Council,21/05/2019,474716,1211.67,,Canterbury City Council,CAN004,Director Of Corp Gov/Mon Off,Revenue,Services,VARIOUS CATS-PUBLIC SECTOR
http://thanet.gov.uk/supplierspend,Thanet District Council,21/05/2019,474717,2911.25,,Canterbury City Council,CAN004,Director Of Corp Gov/Mon Off,Revenue,Services,VARIOUS CATS-PUBLIC SECTOR
http://thanet.gov.uk/supplierspend,Thanet District Council,21/05/2019,474117,627.36,,Ccs Media Limited,CCS003,Director of Corporate Resources and S151,Balance Sheet,Plant And Equipment,ICT
http://thanet.gov.uk/supplierspend,Thanet District Council,21/05/2019,474698,704.16,,Cdw Limited,CDW002,East Kent Shared Services,Revenue,Communications & Computing,ICT
http://thanet.gov.uk/supplierspend,Thanet District Council,21/05/2019,475150,1186.85,,Centurylink Communications Uk Ltd,CEN021,Director of Corporate Resources and S151,Balance Sheet,Telephone Holding Account,ICT
http://thanet.gov.uk/supplierspend,Thanet District Council,21/05/2019,474400,700,,Cieh,CIE001,Deputy Chief Executive/S151,Revenue,Miscellaneous Expenses,HUMAN RESOURCES
http://thanet.gov.uk/supplierspend,Thanet District Council,21/05/2019,474455,2447.96,,Clague Llp,CLA038,Director of Corporate Resources and S151,Balance Sheet,Community Assets,CONSTRUCTION-REPAIR AND MAINT
http://thanet.gov.uk/supplierspend,Thanet District Council,21/05/2019,474118,456.38,,Corporate Direct (Europe) Ltd,COR006,East Kent Shared Services,Revenue,Communications & Computing,ICT
http://thanet.gov.uk/supplierspend,Thanet District Council,21/05/2019,474377,441.95,,Digital Id Ltd,DIG008,Director Of Corp Gov/Mon Off,Revenue,"Print, Stat And Gen Off Exps",FACILITIES AND MANGEMENT SERV
http://thanet.gov.uk/supplierspend,Thanet District Council,21/05/2019,473708,15540,,Dover District Council,DOV001,East Kent Shared Services,Revenue,Services,VARIOUS CATS-PUBLIC SECTOR
http://thanet.gov.uk/supplierspend,Thanet District Council,21/05/2019,473710,30905,,Dover District Council,DOV001,East Kent Shared Services,Revenue,Services,VARIOUS CATS-PUBLIC SECTOR
http://thanet.gov.uk/supplierspend,Thanet District Council,21/05/2019,474464,1363.63,,Dover District Council,DOV001,Deputy Chief Executive/S151,Revenue,Communications & Computing,VARIOUS CATS-PUBLIC SECTOR
http://thanet.gov.uk/supplierspend,Thanet District Council,21/05/2019,474851,30905,,Dover District Council,DOV001,East Kent Shared Services,Revenue,Services,VARIOUS CATS-PUBLIC SECTOR
http://thanet.gov.uk/supplierspend,Thanet District Council,21/05/2019,474854,15540,,Dover District Council,DOV001,East Kent Shared Services,Revenue,Services,VARIOUS CATS-PUBLIC SECTOR
http://thanet.gov.uk/supplierspend,Thanet District Council,21/05/2019,474861,39710,,Dover District Council,DOV001,Deputy Chief Executive/S151,Revenue,Services,VARIOUS CATS-PUBLIC SECTOR
http://thanet.gov.uk/supplierspend,Thanet District Council,21/05/2019,474853,983.25,,Jon Lambourne Arboricultural Consult,LAM015,Deputy Chief Executive/S151,Revenue,Services,CONSULTANCY
http://thanet.gov.uk/supplierspend,Thanet District Council,21/05/2019,474902,2373,,Kent County Council,KCC002,Director Of Corp Gov/Mon Off,Revenue,Services,VARIOUS CATS-PUBLIC SECTOR
http://thanet.gov.uk/supplierspend,Thanet District Council,21/05/2019,475719,539.96,,Machine Mart Ltd,MAC003,Dir Ops/Commercial Serv,Revenue,"Equip, Furniture And Materials",VEHICLE MANAGEMENT
http://thanet.gov.uk/supplierspend,Thanet District Council,21/05/2019,474091,1862.89,,Medway Council,MED003,Director Of Corp Gov/Mon Off,Revenue,Services,VARIOUS CATS-PUBLIC SECTOR
http://thanet.gov.uk/supplierspend,Thanet District Council,21/05/2019,474987,780,,Michael Page Int Recruitment Ltd,PAG008,Deputy Chief Executive/S151,Revenue,Agency Staff,HUMAN RESOURCES
http://thanet.gov.uk/supplierspend,Thanet District Council,21/05/2019,474635,103.58,,Mr Darren Osborne,OSB008,Dir Ops/Commercial Serv,Revenue,Cleaning & Domestic Supplies,CLEANING AND JANITORIAL
http://thanet.gov.uk/supplierspend,Thanet District Council,21/05/2019,474635,421.65,,Mr Darren Osborne,OSB008,Director Of Corp Gov/Mon Off,Revenue,Cleaning & Domestic Supplies,CLEANING AND JANITORIAL
http://thanet.gov.uk/supplierspend,Thanet District Council,21/05/2019,474608,881.75,,Ncc Mechanical Services Limited,NCC006,Director Of Corp Gov/Mon Off,Revenue,"Repairs,  Alter & Mtce - Build",CONSTRUCTION-REPAIR AND MAINT
http://thanet.gov.uk/supplierspend,Thanet District Council,21/05/2019,474681,423.21,,Neopost Ltd,NEO003,Director Of Corp Gov/Mon Off,Revenue,"Equip, Furniture And Materials",MAIL SERVICES
http://thanet.gov.uk/supplierspend,Thanet District Council,21/05/2019,475070,1128.2,,Peer 1 (Uk) Limited,PEE003,East Kent Shared Services,Revenue,Communications & Computing,ICT
http://thanet.gov.uk/supplierspend,Thanet District Council,21/05/2019,474522,607.65,,Potter Raper Partnership,POT006,Director of Corporate Resources and S151,Balance Sheet,Council Dwellings,CONSULTANCY
http://thanet.gov.uk/supplierspend,Thanet District Council,21/05/2019,474601,2140,,Red Kite Environment Ltd,RED024,Dir Ops/Commercial Serv,Revenue,Services,ARTS AND LEISURE SERVICES
http://thanet.gov.uk/supplierspend,Thanet District Council,21/05/2019,475187,1295,,Reed Specialist Recruitment Ltd,REE015,Deputy Chief Executive/S151,Revenue,Agency Staff,HUMAN RESOURCES
http://thanet.gov.uk/supplierspend,Thanet District Council,21/05/2019,474460,8400,,Ricardo-Aea Limited,RIC028,Deputy Chief Executive/S151,Revenue,Services,CONSULTANCY
http://thanet.gov.uk/supplierspend,Thanet District Council,21/05/2019,475140,1488.94,,Scottish Water Business Stream Ltd,SCO019,Dir Ops/Commercial Serv,Revenue,Water Services,UTILITIES
http://thanet.gov.uk/supplierspend,Thanet District Council,21/05/2019,475142,859.03,,Scottish Water Business Stream Ltd,SCO019,Dir Ops/Commercial Serv,Revenue,Water Services,UTILITIES
http://thanet.gov.uk/supplierspend,Thanet District Council,21/05/2019,475144,931.25,,Scottish Water Business Stream Ltd,SCO019,Dir Ops/Commercial Serv,Revenue,Water Services,UTILITIES
http://thanet.gov.uk/supplierspend,Thanet District Council,21/05/2019,475148,5599.29,,Scottish Water Business Stream Ltd,SCO019,Director Of Corp Gov/Mon Off,Revenue,Water Services,UTILITIES
http://thanet.gov.uk/supplierspend,Thanet District Council,21/05/2019,475228,1185.46,,Scottish Water Business Stream Ltd,SCO019,Dir Ops/Commercial Serv,Revenue,Water Services,UTILITIES
http://thanet.gov.uk/supplierspend,Thanet District Council,21/05/2019,475512,959.43,,Scottish Water Business Stream Ltd,SCO019,Dir Ops/Commercial Serv,Revenue,Water Services,UTILITIES
http://thanet.gov.uk/supplierspend,Thanet District Council,21/05/2019,475516,856.66,,Scottish Water Business Stream Ltd,SCO019,Dir Ops/Commercial Serv,Revenue,Water Services,UTILITIES
http://thanet.gov.uk/supplierspend,Thanet District Council,21/05/2019,475518,1313.83,,Scottish Water Business Stream Ltd,SCO019,Dir Ops/Commercial Serv,Revenue,Water Services,UTILITIES
http://thanet.gov.uk/supplierspend,Thanet District Council,21/05/2019,474467,1917,,Sellick Partnership Ltd,SEL011,Director Of Corp Gov/Mon Off,Revenue,Agency Staff,HUMAN RESOURCES
http://thanet.gov.uk/supplierspend,Thanet District Council,21/05/2019,474526,514.6,,Sellick Partnership Ltd,SEL011,Director Of Corp Gov/Mon Off,Revenue,Services,HUMAN RESOURCES
http://thanet.gov.uk/supplierspend,Thanet District Council,21/05/2019,474636,601.6,,Sellick Partnership Ltd,SEL011,Director Of Corp Gov/Mon Off,Revenue,Services,HUMAN RESOURCES
http://thanet.gov.uk/supplierspend,Thanet District Council,21/05/2019,474637,1917,,Sellick Partnership Ltd,SEL011,Director Of Corp Gov/Mon Off,Revenue,Agency Staff,HUMAN RESOURCES
http://thanet.gov.uk/supplierspend,Thanet District Council,21/05/2019,475275,515,,Sellick Partnership Ltd,SEL011,Director Of Corp Gov/Mon Off,Revenue,Services,HUMAN RESOURCES
http://thanet.gov.uk/supplierspend,Thanet District Council,21/05/2019,475632,590,,Sellick Partnership Ltd,SEL011,Director Of Corp Gov/Mon Off,Revenue,Services,HUMAN RESOURCES
http://thanet.gov.uk/supplierspend,Thanet District Council,21/05/2019,475645,1917,,Sellick Partnership Ltd,SEL011,Director Of Corp Gov/Mon Off,Revenue,Agency Staff,HUMAN RESOURCES
http://thanet.gov.uk/supplierspend,Thanet District Council,21/05/2019,475044,5.48,,Southern Electric,SEL007,Deputy Chief Executive/S151,Revenue,Energy Costs,UTILITIES
http://thanet.gov.uk/supplierspend,Thanet District Council,21/05/2019,475044,584.4,,Southern Electric,SEL007,Dir Ops/Commercial Serv,Revenue,Energy Costs,UTILITIES
http://thanet.gov.uk/supplierspend,Thanet District Council,21/05/2019,474509,5065.8,,St Augustines College Ltd,STA061,Deputy Chief Executive/S151,Revenue,Services,CATERING
http://thanet.gov.uk/supplierspend,Thanet District Council,21/05/2019,473679,4824.05,,Standage & Co Limited,STA058,Director of Corporate Resources and S151,Balance Sheet,Council Dwellings,CONSTRUCTION-REPAIR AND MAINT
http://thanet.gov.uk/supplierspend,Thanet District Council,21/05/2019,474891,2809.1,,Swale Borough Council,SWA008,Dir Ops/Commercial Serv,Revenue,Grants & Subscriptions,VARIOUS CATS-PUBLIC SECTOR
http://thanet.gov.uk/supplierspend,Thanet District Council,21/05/2019,475078,735,,The Oyster Partnership Ltd,OYS001,Dir Ops/Commercial Serv,Revenue,Agency Staff,HUMAN RESOURCES
http://thanet.gov.uk/supplierspend,Thanet District Council,21/05/2019,474865,482.08,,Trustmarque Solutions Limited,TRU014,East Kent Shared Services,Revenue,Communications & Computing,ICT
http://thanet.gov.uk/supplierspend,Thanet District Council,21/05/2019,475000,4381,,Uk Power Networks (Operations) Ltd,UKP001,Dir Ops/Commercial Serv,Revenue,Services,UTILITIES
http://thanet.gov.uk/supplierspend,Thanet District Council,21/05/2019,474136,1297.92,,Veale Wasbrough Vizards Llp,VEA001,Director Of Corp Gov/Mon Off,Revenue,Services,LEGAL SERVICES
http://thanet.gov.uk/supplierspend,Thanet District Council,21/05/2019,474137,440,,Veale Wasbrough Vizards Llp,VEA001,Director Of Corp Gov/Mon Off,Revenue,Services,LEGAL SERVICES
http://thanet.gov.uk/supplierspend,Thanet District Council,21/05/2019,474481,3500,,Veale Wasbrough Vizards Llp,VEA001,Dir Ops/Commercial Serv,Revenue,Services,LEGAL SERVICES
http://thanet.gov.uk/supplierspend,Thanet District Council,21/05/2019,474843,1048,,Veale Wasbrough Vizards Llp,VEA001,Director Of Corp Gov/Mon Off,Revenue,Services,LEGAL SERVICES
http://thanet.gov.uk/supplierspend,Thanet District Council,21/05/2019,475416,3262,,Veale Wasbrough Vizards Llp,VEA001,Director Of Corp Gov/Mon Off,Revenue,Services,LEGAL SERVICES
http://thanet.gov.uk/supplierspend,Thanet District Council,21/05/2019,475417,3603,,Veale Wasbrough Vizards Llp,VEA001,Director Of Corp Gov/Mon Off,Revenue,Services,LEGAL SERVICES
http://thanet.gov.uk/supplierspend,Thanet District Council,21/05/2019,474930,539.64,,Water Wellbeing Ltd,WAT014,Director Of Corp Gov/Mon Off,Revenue,"Equip, Furniture And Materials",CATERING
http://thanet.gov.uk/supplierspend,Thanet District Council,23/05/2019,475835,7571.98,,Acorn Maintenance Services Ltd,ACO010,Director of Corporate Resources and S151,Balance Sheet,Capital Exp-Non Council Assets,GRANTS
http://thanet.gov.uk/supplierspend,Thanet District Council,23/05/2019,475843,11735,,Ascendit Lifts Ltd,ASC001,Director of Corporate Resources and S151,Balance Sheet,Capital Exp-Non Council Assets,GRANTS
http://thanet.gov.uk/supplierspend,Thanet District Council,23/05/2019,475842,4300,,Bramling Construction Ltd,BRA020,Director of Corporate Resources and S151,Balance Sheet,Capital Exp-Non Council Assets,GRANTS
http://thanet.gov.uk/supplierspend,Thanet District Council,23/05/2019,475864,990,,Countrywide Residential Lettings,COU030,Deputy Chief Executive/S151,Revenue,Grants & Subscriptions,RENT DEPOSITS
http://thanet.gov.uk/supplierspend,Thanet District Council,23/05/2019,475834,5100,,Dolphin Lifts Kent,DOL003,Director of Corporate Resources and S151,Balance Sheet,Capital Exp-Non Council Assets,GRANTS
http://thanet.gov.uk/supplierspend,Thanet District Council,23/05/2019,475844,2207.59,,Evermech Services Ltd,EVE011,Director of Corporate Resources and S151,Balance Sheet,Capital Exp-Non Council Assets,GRANTS
http://thanet.gov.uk/supplierspend,Thanet District Council,23/05/2019,471085,420,,Florence Court Hotel Ltd,FLO009,Deputy Chief Executive/S151,Revenue,Services,HOUSING MANAGEMENT
http://thanet.gov.uk/supplierspend,Thanet District Council,23/05/2019,474525,772.3,,Freight Transport Association,FRE007,Dir Ops/Commercial Serv,Revenue,Communications & Computing,HUMAN RESOURCES
http://thanet.gov.uk/supplierspend,Thanet District Council,23/05/2019,474078,1771.63,,Hr Go (Kent) Ltd,HRG001,Dir Ops/Commercial Serv,Revenue,Agency Staff,HUMAN RESOURCES
http://thanet.gov.uk/supplierspend,Thanet District Council,23/05/2019,474080,7244.45,,Hr Go (Kent) Ltd,HRG001,Dir Ops/Commercial Serv,Revenue,Agency Staff,HUMAN RESOURCES
http://thanet.gov.uk/supplierspend,Thanet District Council,23/05/2019,474108,915.49,,Hr Go (Kent) Ltd,HRG001,Dir Ops/Commercial Serv,Revenue,Agency Staff,HUMAN RESOURCES
http://thanet.gov.uk/supplierspend,Thanet District Council,23/05/2019,474111,1504.1,,Hr Go (Kent) Ltd,HRG001,Dir Ops/Commercial Serv,Revenue,Agency Staff,HUMAN RESOURCES
http://thanet.gov.uk/supplierspend,Thanet District Council,23/05/2019,474112,2025,,Hr Go (Kent) Ltd,HRG001,Dir Ops/Commercial Serv,Revenue,Agency Staff,HUMAN RESOURCES
http://thanet.gov.uk/supplierspend,Thanet District Council,23/05/2019,474114,9521.07,,Hr Go (Kent) Ltd,HRG001,Dir Ops/Commercial Serv,Revenue,Agency Staff,HUMAN RESOURCES
http://thanet.gov.uk/supplierspend,Thanet District Council,23/05/2019,474317,872.36,,Hr Go (Kent) Ltd,HRG001,Dir Ops/Commercial Serv,Revenue,Agency Staff,HUMAN RESOURCES
http://thanet.gov.uk/supplierspend,Thanet District Council,23/05/2019,474390,622.2,,Hr Go (Kent) Ltd,HRG001,Dir Ops/Commercial Serv,Revenue,Agency Staff,HUMAN RESOURCES
http://thanet.gov.uk/supplierspend,Thanet District Council,23/05/2019,474392,1235.03,,Hr Go (Kent) Ltd,HRG001,Dir Ops/Commercial Serv,Revenue,Agency Staff,HUMAN RESOURCES
http://thanet.gov.uk/supplierspend,Thanet District Council,23/05/2019,474579,1165.28,,Hr Go (Kent) Ltd,HRG001,Dir Ops/Commercial Serv,Revenue,Agency Staff,HUMAN RESOURCES
http://thanet.gov.uk/supplierspend,Thanet District Council,23/05/2019,475836,1596.5,,John Gale,GAL001,Director of Corporate Resources and S151,Balance Sheet,Capital Exp-Non Council Assets,GRANTS
http://thanet.gov.uk/supplierspend,Thanet District Council,23/05/2019,475837,678.9,,John Gale,GAL001,Director of Corporate Resources and S151,Balance Sheet,Capital Exp-Non Council Assets,GRANTS
http://thanet.gov.uk/supplierspend,Thanet District Council,23/05/2019,475838,693.7,,John Gale,GAL001,Director of Corporate Resources and S151,Balance Sheet,Capital Exp-Non Council Assets,GRANTS
http://thanet.gov.uk/supplierspend,Thanet District Council,23/05/2019,475866,1292.31,,Lovetts Birchington Ltd,LOV006,Deputy Chief Executive/S151,Revenue,Grants & Subscriptions,RENT DEPOSITS
http://thanet.gov.uk/supplierspend,Thanet District Council,23/05/2019,475899,294514,,Maidstone Borough Council,MAI002,Director of Corporate Resources and S151,Balance Sheet,Collection Fund,VARIOUS CATS-PUBLIC SECTOR
http://thanet.gov.uk/supplierspend,Thanet District Council,23/05/2019,475899,702648,,Maidstone Borough Council,MAI002,Deputy Chief Executive/S151,Revenue,Revenue Financing,VARIOUS CATS-PUBLIC SECTOR
http://thanet.gov.uk/supplierspend,Thanet District Council,23/05/2019,475869,1000,,Miles & Barr Property Man  Ltd,MIL048,Deputy Chief Executive/S151,Revenue,Grants & Subscriptions,RENT DEPOSITS
http://thanet.gov.uk/supplierspend,Thanet District Council,23/05/2019,475839,6789,,Northwood Builders,NOR002,Director of Corporate Resources and S151,Balance Sheet,Capital Exp-Non Council Assets,GRANTS
http://thanet.gov.uk/supplierspend,Thanet District Council,23/05/2019,475878,132975,,Paramount Ind Property Services Llp,PAR074,Deputy Chief Executive/S151,Revenue,Services,HOUSING MANAGEMENT
http://thanet.gov.uk/supplierspend,Thanet District Council,23/05/2019,475827,2385.12,,Peabody South East Limited,PEA024,Director of Corporate Resources and S151,Balance Sheet,Capital Exp-Non Council Assets,GRANTS
http://thanet.gov.uk/supplierspend,Thanet District Council,23/05/2019,475828,1690.8,,Peabody South East Limited,PEA024,Director of Corporate Resources and S151,Balance Sheet,Capital Exp-Non Council Assets,GRANTS
http://thanet.gov.uk/supplierspend,Thanet District Council,23/05/2019,475829,1377.21,,Peabody South East Limited,PEA024,Director of Corporate Resources and S151,Balance Sheet,Capital Exp-Non Council Assets,GRANTS
http://thanet.gov.uk/supplierspend,Thanet District Council,23/05/2019,475830,837.47,,Peabody South East Limited,PEA024,Director of Corporate Resources and S151,Balance Sheet,Capital Exp-Non Council Assets,GRANTS
http://thanet.gov.uk/supplierspend,Thanet District Council,23/05/2019,475831,908.64,,Peabody South East Limited,PEA024,Director of Corporate Resources and S151,Balance Sheet,Capital Exp-Non Council Assets,GRANTS
http://thanet.gov.uk/supplierspend,Thanet District Council,23/05/2019,475832,1586.22,,Peabody South East Limited,PEA024,Director of Corporate Resources and S151,Balance Sheet,Capital Exp-Non Council Assets,GRANTS
http://thanet.gov.uk/supplierspend,Thanet District Council,23/05/2019,475833,984.85,,Peabody South East Limited,PEA024,Director of Corporate Resources and S151,Balance Sheet,Capital Exp-Non Council Assets,GRANTS
http://thanet.gov.uk/supplierspend,Thanet District Council,23/05/2019,N/A,516,,Redacted Personal Data,N/A,Deputy Chief Executive/S151,Revenue,Grants & Subscriptions,RENT DEPOSITS
http://thanet.gov.uk/supplierspend,Thanet District Council,23/05/2019,475913,570.71,,Santander Uk Plc,SAN017,Deputy Chief Executive/S151,Revenue,Services,VARIOUS CATEGORIES
http://thanet.gov.uk/supplierspend,Thanet District Council,23/05/2019,475825,8035.94,,South East Building Company Limited,SEB001,Director of Corporate Resources and S151,Balance Sheet,Capital Exp-Non Council Assets,GRANTS
http://thanet.gov.uk/supplierspend,Thanet District Council,23/05/2019,475826,16870,,South East Building Company Limited,SEB001,Director of Corporate Resources and S151,Balance Sheet,Capital Exp-Non Council Assets,GRANTS
http://thanet.gov.uk/supplierspend,Thanet District Council,23/05/2019,475894,2900,,The Information Commissioner,INF005,Deputy Chief Executive/S151,Revenue,Grants & Subscriptions,ICT
http://thanet.gov.uk/supplierspend,Thanet District Council,23/05/2019,474520,1261.5,,Total Supplies Ltd,TOT009,Dir Ops/Commercial Serv,Revenue,"Equip, Furniture And Materials",CLEANING AND JANITORIAL
http://thanet.gov.uk/supplierspend,Thanet District Council,23/05/2019,475840,6937,,Trueden Disability Adaptations Ltd,TRU012,Director of Corporate Resources and S151,Balance Sheet,Capital Exp-Non Council Assets,GRANTS
http://thanet.gov.uk/supplierspend,Thanet District Council,23/05/2019,475841,6946.56,,Trueden Disability Adaptations Ltd,TRU012,Director of Corporate Resources and S151,Balance Sheet,Capital Exp-Non Council Assets,GRANTS
http://thanet.gov.uk/supplierspend,Thanet District Council,23/05/2019,475862,1400,,Yo Street Zone,YOS001,Dir Ops/Commercial Serv,Revenue,Grants & Subscriptions,ARTS AND LEISURE SERVICES
http://thanet.gov.uk/supplierspend,Thanet District Council,23/05/2019,475875,9000,,Your Leisure Kent Limited,YOU016,Dir Ops/Commercial Serv,Revenue,Grants & Subscriptions,ARTS AND LEISURE SERVICES
http://thanet.gov.uk/supplierspend,Thanet District Council,23/05/2019,475871,12993.01,,Zurich Insurance Plc,ZUR007,Director of Corporate Resources and S151,Balance Sheet,Insurance Holding Account,FINANCIAL SERVICES
http://thanet.gov.uk/supplierspend,Thanet District Council,23/05/2019,475872,9195.67,,Zurich Insurance Plc,ZUR007,Director of Corporate Resources and S151,Balance Sheet,Insurance Holding Account,FINANCIAL SERVICES
http://thanet.gov.uk/supplierspend,Thanet District Council,23/05/2019,475873,1495,,Zurich Insurance Plc,ZUR007,Director of Corporate Resources and S151,Balance Sheet,Insurance Holding Account,FINANCIAL SERVICES
http://thanet.gov.uk/supplierspend,Thanet District Council,24/05/2019,476011,6647.18,,Acorn Maintenance Services Ltd,ACO010,Director of Corporate Resources and S151,Balance Sheet,Capital Exp-Non Council Assets,GRANTS
http://thanet.gov.uk/supplierspend,Thanet District Council,24/05/2019,473860,2460,,Amber Driver Training,AMB004,Dir Ops/Commercial Serv,Revenue,Training,HUMAN RESOURCES
http://thanet.gov.uk/supplierspend,Thanet District Council,24/05/2019,476059,1500,,Cipfa Business Ltd,CIP008,Deputy Chief Executive/S151,Revenue,Grants & Subscriptions,FINANCIAL SERVICES
http://thanet.gov.uk/supplierspend,Thanet District Council,24/05/2019,476097,43240.51,,Civica Uk Ltd,CIV003,Deputy Chief Executive/S151,Revenue,Communications & Computing,ICT
http://thanet.gov.uk/supplierspend,Thanet District Council,24/05/2019,476009,13000,,Dolphin Lifts Kent,DOL003,Director of Corporate Resources and S151,Balance Sheet,Capital Exp-Non Council Assets,GRANTS
http://thanet.gov.uk/supplierspend,Thanet District Council,24/05/2019,474450,506.67,,Dover District Council,DOV001,Deputy Chief Executive/S151,Revenue,Employee Related Schemes,VARIOUS CATS-PUBLIC SECTOR
http://thanet.gov.uk/supplierspend,Thanet District Council,24/05/2019,474452,9377.39,,Dover District Council,DOV001,Deputy Chief Executive/S151,Revenue,Communications & Computing,VARIOUS CATS-PUBLIC SECTOR
http://thanet.gov.uk/supplierspend,Thanet District Council,24/05/2019,474406,7657.48,,East Kent Housing Ltd,EKH002,Deputy Chief Executive/S151,Revenue,Services,HOUSING MANAGEMENT
http://thanet.gov.uk/supplierspend,Thanet District Council,24/05/2019,476007,4800,,Evermech Services Ltd,EVE011,Director of Corporate Resources and S151,Balance Sheet,Capital Exp-Non Council Assets,GRANTS
http://thanet.gov.uk/supplierspend,Thanet District Council,24/05/2019,476090,7745.2,,Gas & Electricity Connections Ltd,GAS013,Director of Corporate Resources and S151,Balance Sheet,Repairs And Mtce Holding A/C,UTILITIES
http://thanet.gov.uk/supplierspend,Thanet District Council,24/05/2019,476010,773.54,,Hubbard & Houghton Construction Ltd,HUB003,Director of Corporate Resources and S151,Balance Sheet,Capital Exp-Non Council Assets,GRANTS
http://thanet.gov.uk/supplierspend,Thanet District Council,24/05/2019,473643,1837,,New Tech Security Ltd,NEW027,Director Of Corp Gov/Mon Off,Revenue,"Repairs,  Alter & Mtce - Build",FACILITIES AND MANGEMENT SERV
http://thanet.gov.uk/supplierspend,Thanet District Council,24/05/2019,475458,626.4,,Pa Group Ltd,PAG011,Director of Corporate Resources and S151,Balance Sheet,Repairs And Mtce Holding A/C,ENVIRONMENTAL SERVICES
http://thanet.gov.uk/supplierspend,Thanet District Council,24/05/2019,476012,1577.06,,Peabody South East Limited,PEA024,Director of Corporate Resources and S151,Balance Sheet,Capital Exp-Non Council Assets,GRANTS
http://thanet.gov.uk/supplierspend,Thanet District Council,24/05/2019,476014,797.66,,Peabody South East Limited,PEA024,Director of Corporate Resources and S151,Balance Sheet,Capital Exp-Non Council Assets,GRANTS
http://thanet.gov.uk/supplierspend,Thanet District Council,24/05/2019,476015,872.82,,Peabody South East Limited,PEA024,Director of Corporate Resources and S151,Balance Sheet,Capital Exp-Non Council Assets,GRANTS
http://thanet.gov.uk/supplierspend,Thanet District Council,24/05/2019,N/A,1750,,Redacted Personal Data,N/A,Deputy Chief Executive/S151,Revenue,Grants & Subscriptions,RENT DEPOSITS
http://thanet.gov.uk/supplierspend,Thanet District Council,24/05/2019,474581,1050,,Reed Specialist Recruitment Ltd,REE015,Deputy Chief Executive/S151,Revenue,Agency Staff,HUMAN RESOURCES
http://thanet.gov.uk/supplierspend,Thanet District Council,24/05/2019,474604,1050,,Reed Specialist Recruitment Ltd,REE015,Deputy Chief Executive/S151,Revenue,Agency Staff,HUMAN RESOURCES
http://thanet.gov.uk/supplierspend,Thanet District Council,24/05/2019,476095,891.59,,Scottish Water Business Stream Ltd,SCO019,Dir Ops/Commercial Serv,Revenue,Water Services,UTILITIES
http://thanet.gov.uk/supplierspend,Thanet District Council,24/05/2019,473260,745,,Thanet Waste Services Ltd,TWA001,Dir Ops/Commercial Serv,Revenue,"Repairs,  Alter & Mtce - Build",ENVIRONMENTAL SERVICES
http://thanet.gov.uk/supplierspend,Thanet District Council,24/05/2019,476006,13108.78,,Trueden Disability Adaptations Ltd,TRU012,Director of Corporate Resources and S151,Balance Sheet,Capital Exp-Non Council Assets,GRANTS
http://thanet.gov.uk/supplierspend,Thanet District Council,24/05/2019,475919,765.33,,Worldpay Ltd,WOR008,Deputy Chief Executive/S151,Revenue,Services,FINANCIAL SERVICES
http://thanet.gov.uk/supplierspend,Thanet District Council,29/05/2019,475446,522,,Advanced Business Solutions,COA011,Deputy Chief Executive/S151,Revenue,Communications & Computing,ICT
http://thanet.gov.uk/supplierspend,Thanet District Council,29/05/2019,473449,2390,,Alpha Parking Ltd,ALP006,Dir Ops/Commercial Serv,Revenue,"Equip, Furniture And Materials",HUMAN RESOURCES
http://thanet.gov.uk/supplierspend,Thanet District Council,29/05/2019,475575,1345.25,,Amenity Horticultural Serv Ltd,AME001,Dir Ops/Commercial Serv,Revenue,"Repairs,  Alter & Mtce - Build",HORTICULTURAL
http://thanet.gov.uk/supplierspend,Thanet District Council,29/05/2019,473737,698.7,,Arco Limited,ARC001,Dir Ops/Commercial Serv,Revenue,"Clothes, Uniforms & Laundry",CLOTHING
http://thanet.gov.uk/supplierspend,Thanet District Council,29/05/2019,473187,5000,,Bournemouth Borough Council,BOU010,Dir Ops/Commercial Serv,Revenue,Grants & Subscriptions,GRANTS
http://thanet.gov.uk/supplierspend,Thanet District Council,29/05/2019,476161,966.33,,Calibre Cleaning Ltd,CAL010,Director Of Corp Gov/Mon Off,Revenue,Cleaning & Domestic Supplies,CLEANING AND JANITORIAL
http://thanet.gov.uk/supplierspend,Thanet District Council,29/05/2019,475014,1300,,Cobalt Telephone Technologies Ltd,COB002,Dir Ops/Commercial Serv,Revenue,"Equip, Furniture And Materials",ICT
http://thanet.gov.uk/supplierspend,Thanet District Council,29/05/2019,475236,1503.08,,Dennis Eagle Ltd,DEN005,Dir Ops/Commercial Serv,Revenue,Direct Transport Costs,VEHICLE MANAGEMENT
http://thanet.gov.uk/supplierspend,Thanet District Council,29/05/2019,474846,74520.66,,Dover District Council,DOV001,Deputy Chief Executive/S151,Revenue,Services,VARIOUS CATS-PUBLIC SECTOR
http://thanet.gov.uk/supplierspend,Thanet District Council,29/05/2019,474860,7204.34,,Dover District Council,DOV001,Deputy Chief Executive/S151,Revenue,Services,VARIOUS CATS-PUBLIC SECTOR
http://thanet.gov.uk/supplierspend,Thanet District Council,29/05/2019,475073,6067.5,,Dover District Council,DOV001,Deputy Chief Executive/S151,Revenue,Employee Related Schemes,VARIOUS CATS-PUBLIC SECTOR
http://thanet.gov.uk/supplierspend,Thanet District Council,29/05/2019,473699,850,,Eagle Security Alarms Ltd,EAG005,Dir Ops/Commercial Serv,Revenue,"Repairs,  Alter & Mtce - Build",FACILITIES AND MANGEMENT SERV
http://thanet.gov.uk/supplierspend,Thanet District Council,29/05/2019,474896,3492.72,,Flowbird Smart City Uk Limited,FLO011,Dir Ops/Commercial Serv,Revenue,Communications & Computing,STREET AND TRAFFIC MANAGEMENT
http://thanet.gov.uk/supplierspend,Thanet District Council,29/05/2019,475267,1005.96,,Hr Go (Kent) Ltd,HRG001,Dir Ops/Commercial Serv,Revenue,Agency Staff,HUMAN RESOURCES
http://thanet.gov.uk/supplierspend,Thanet District Council,29/05/2019,475270,1397.63,,Hr Go (Kent) Ltd,HRG001,Dir Ops/Commercial Serv,Revenue,Agency Staff,HUMAN RESOURCES
http://thanet.gov.uk/supplierspend,Thanet District Council,29/05/2019,475271,858.26,,Hr Go (Kent) Ltd,HRG001,Dir Ops/Commercial Serv,Revenue,Agency Staff,HUMAN RESOURCES
http://thanet.gov.uk/supplierspend,Thanet District Council,29/05/2019,475486,8627.72,,Hr Go (Kent) Ltd,HRG001,Dir Ops/Commercial Serv,Revenue,Agency Staff,HUMAN RESOURCES
http://thanet.gov.uk/supplierspend,Thanet District Council,29/05/2019,475487,1527.02,,Hr Go (Kent) Ltd,HRG001,Dir Ops/Commercial Serv,Revenue,Agency Staff,HUMAN RESOURCES
http://thanet.gov.uk/supplierspend,Thanet District Council,29/05/2019,475488,1101.75,,Hr Go (Kent) Ltd,HRG001,Dir Ops/Commercial Serv,Revenue,Agency Staff,HUMAN RESOURCES
http://thanet.gov.uk/supplierspend,Thanet District Council,29/05/2019,475557,767.01,,Hr Go (Kent) Ltd,HRG001,Dir Ops/Commercial Serv,Revenue,Agency Staff,HUMAN RESOURCES
http://thanet.gov.uk/supplierspend,Thanet District Council,29/05/2019,473450,430.45,,Keltic Ltd,KEL007,Dir Ops/Commercial Serv,Revenue,"Clothes, Uniforms & Laundry",CLOTHING
http://thanet.gov.uk/supplierspend,Thanet District Council,29/05/2019,476029,519.41,,Kent County Council (Kcs),KCC003,Dir Ops/Commercial Serv,Revenue,Energy Costs,FACILITIES AND MANGEMENT SERV
http://thanet.gov.uk/supplierspend,Thanet District Council,29/05/2019,476031,7274.07,,Kent County Council (Kcs),KCC003,Director Of Corp Gov/Mon Off,Revenue,Energy Costs,FACILITIES AND MANGEMENT SERV
http://thanet.gov.uk/supplierspend,Thanet District Council,29/05/2019,476032,3453.52,,Kent County Council (Kcs),KCC003,Dir Ops/Commercial Serv,Revenue,Energy Costs,FACILITIES AND MANGEMENT SERV
http://thanet.gov.uk/supplierspend,Thanet District Council,29/05/2019,476033,1661.8,,Kent County Council (Kcs),KCC003,Dir Ops/Commercial Serv,Revenue,Energy Costs,FACILITIES AND MANGEMENT SERV
http://thanet.gov.uk/supplierspend,Thanet District Council,29/05/2019,476034,1411.06,,Kent County Council (Kcs),KCC003,Dir Ops/Commercial Serv,Revenue,Energy Costs,FACILITIES AND MANGEMENT SERV
http://thanet.gov.uk/supplierspend,Thanet District Council,29/05/2019,476035,1081.38,,Kent County Council (Kcs),KCC003,Dir Ops/Commercial Serv,Revenue,Energy Costs,FACILITIES AND MANGEMENT SERV
http://thanet.gov.uk/supplierspend,Thanet District Council,29/05/2019,476036,1236.14,,Kent County Council (Kcs),KCC003,Director Of Corp Gov/Mon Off,Revenue,Energy Costs,FACILITIES AND MANGEMENT SERV
http://thanet.gov.uk/supplierspend,Thanet District Council,29/05/2019,476037,887.24,,Kent County Council (Kcs),KCC003,Deputy Chief Executive/S151,Revenue,Energy Costs,FACILITIES AND MANGEMENT SERV
http://thanet.gov.uk/supplierspend,Thanet District Council,29/05/2019,476173,620,,Kew (Electrical Distributors) Ltd,KEW001,Dir Ops/Commercial Serv,Revenue,"Equip, Furniture And Materials",BUILDING CONSTRUCTION MATERIAL
http://thanet.gov.uk/supplierspend,Thanet District Council,29/05/2019,474697,836,,Ling Metals Limited,LIN004,Dir Ops/Commercial Serv,Revenue,Cleaning & Domestic Supplies,ENVIRONMENTAL SERVICES
http://thanet.gov.uk/supplierspend,Thanet District Council,29/05/2019,474388,1647,,M.T.S. Cleansing Services Ltd,MTS001,Dir Ops/Commercial Serv,Revenue,"Repairs,  Alter & Mtce - Build",ENVIRONMENTAL SERVICES
http://thanet.gov.uk/supplierspend,Thanet District Council,29/05/2019,475544,1629.8,,M.T.S. Cleansing Services Ltd,MTS001,Dir Ops/Commercial Serv,Revenue,"Repairs,  Alter & Mtce - Build",ENVIRONMENTAL SERVICES
http://thanet.gov.uk/supplierspend,Thanet District Council,29/05/2019,473460,971.94,,Machine Mart Ltd,MAC003,Dir Ops/Commercial Serv,Revenue,"Equip, Furniture And Materials",VEHICLE MANAGEMENT
http://thanet.gov.uk/supplierspend,Thanet District Council,29/05/2019,473703,1409.65,,Medway Council,MED003,Director Of Corp Gov/Mon Off,Revenue,Services,VARIOUS CATS-PUBLIC SECTOR
http://thanet.gov.uk/supplierspend,Thanet District Council,29/05/2019,475277,780,,Michael Page Int Recruitment Ltd,PAG008,Deputy Chief Executive/S151,Revenue,Agency Staff,HUMAN RESOURCES
http://thanet.gov.uk/supplierspend,Thanet District Council,29/05/2019,476160,1576.77,,National Express Ltd,NAT010,Dir Ops/Commercial Serv,Revenue,Services,AGENCY PAYMENTS
http://thanet.gov.uk/supplierspend,Thanet District Council,29/05/2019,475541,630,,Ncc Services Ltd,NCC003,Deputy Chief Executive/S151,Revenue,Communications & Computing,ICT
http://thanet.gov.uk/supplierspend,Thanet District Council,29/05/2019,475016,5892,,Ove Arup & Partners Ltd,ARU004,Deputy Chief Executive/S151,Revenue,Services,CONSULTANCY
http://thanet.gov.uk/supplierspend,Thanet District Council,29/05/2019,473368,25000,,Ovenden Plant Hire Ltd,OVE002,Dir Ops/Commercial Serv,Revenue,"Repairs,  Alter & Mtce - Build",VEHICLE MANAGEMENT
http://thanet.gov.uk/supplierspend,Thanet District Council,29/05/2019,474382,78493.8,,Paul Shadarevian,SHA031,Deputy Chief Executive/S151,Revenue,Services,HUMAN RESOURCES
http://thanet.gov.uk/supplierspend,Thanet District Council,29/05/2019,475633,874.4,,Phoenix Software Ltd,PHO002,Dir Ops/Commercial Serv,Revenue,Communications & Computing,ICT
http://thanet.gov.uk/supplierspend,Thanet District Council,29/05/2019,475635,585,,R S S (Wessex) Limited,RSS002,Dir Ops/Commercial Serv,Revenue,Agency Staff,HUMAN RESOURCES
http://thanet.gov.uk/supplierspend,Thanet District Council,29/05/2019,475628,1050,,Reed Specialist Recruitment Ltd,REE015,Deputy Chief Executive/S151,Revenue,Agency Staff,HUMAN RESOURCES
http://thanet.gov.uk/supplierspend,Thanet District Council,29/05/2019,475459,5935.48,,Rostrvm Solutions Ltd,ROS019,East Kent Shared Services,Revenue,Communications & Computing,ICT
http://thanet.gov.uk/supplierspend,Thanet District Council,29/05/2019,476043,-623.7,,Scottish Water Business Stream Ltd,SCO019,Deputy Chief Executive/S151,Revenue,Water Services,UTILITIES
http://thanet.gov.uk/supplierspend,Thanet District Council,29/05/2019,476044,1428.55,,Scottish Water Business Stream Ltd,SCO019,Dir Ops/Commercial Serv,Revenue,Water Services,UTILITIES
http://thanet.gov.uk/supplierspend,Thanet District Council,29/05/2019,476047,1304.55,,Scottish Water Business Stream Ltd,SCO019,Dir Ops/Commercial Serv,Revenue,Water Services,UTILITIES
http://thanet.gov.uk/supplierspend,Thanet District Council,29/05/2019,476072,521.28,,Scottish Water Business Stream Ltd,SCO019,Dir Ops/Commercial Serv,Revenue,Water Services,UTILITIES
http://thanet.gov.uk/supplierspend,Thanet District Council,29/05/2019,476082,1909.99,,Scottish Water Business Stream Ltd,SCO019,Director Of Corp Gov/Mon Off,Revenue,Water Services,UTILITIES
http://thanet.gov.uk/supplierspend,Thanet District Council,29/05/2019,476084,1867.78,,Scottish Water Business Stream Ltd,SCO019,Dir Ops/Commercial Serv,Revenue,Water Services,UTILITIES
http://thanet.gov.uk/supplierspend,Thanet District Council,29/05/2019,476085,641.06,,Scottish Water Business Stream Ltd,SCO019,Dir Ops/Commercial Serv,Revenue,Water Services,UTILITIES
http://thanet.gov.uk/supplierspend,Thanet District Council,29/05/2019,476086,1586.22,,Scottish Water Business Stream Ltd,SCO019,Dir Ops/Commercial Serv,Revenue,Water Services,UTILITIES
http://thanet.gov.uk/supplierspend,Thanet District Council,29/05/2019,473675,3351.58,,Securitas Security Services (Uk) Ltd,SEC019,Director Of Corp Gov/Mon Off,Revenue,Services,FACILITIES AND MANGEMENT SERV
http://thanet.gov.uk/supplierspend,Thanet District Council,29/05/2019,475489,3039.64,,Spaldings  Ltd,SPA006,Dir Ops/Commercial Serv,Revenue,"Equip, Furniture And Materials",HORTICULTURAL
http://thanet.gov.uk/supplierspend,Thanet District Council,29/05/2019,473709,728,,Stagecoach Services Limited,STA023,Director of Corporate Resources and S151,Balance Sheet,Staff Bus Permits Holding A/C,PUBLIC TRANSPORT
http://thanet.gov.uk/supplierspend,Thanet District Council,29/05/2019,474616,9360,,Standfast Burglar Alarm Co (Ek) Ltd,STA003,Dir Ops/Commercial Serv,Revenue,"Equip, Furniture And Materials",FACILITIES AND MANGEMENT SERV
http://thanet.gov.uk/supplierspend,Thanet District Council,29/05/2019,475278,749,,Streetmaster (S.Wales) Limited,STR001,Dir Ops/Commercial Serv,Revenue,"Equip, Furniture And Materials",HIGHWAY EQUIPMENT AND MATERIAL
http://thanet.gov.uk/supplierspend,Thanet District Council,29/05/2019,475279,829,,Streetmaster (S.Wales) Limited,STR001,Dir Ops/Commercial Serv,Revenue,"Equip, Furniture And Materials",HIGHWAY EQUIPMENT AND MATERIAL
http://thanet.gov.uk/supplierspend,Thanet District Council,29/05/2019,475281,669,,Streetmaster (S.Wales) Limited,STR001,Dir Ops/Commercial Serv,Revenue,"Equip, Furniture And Materials",HIGHWAY EQUIPMENT AND MATERIAL
http://thanet.gov.uk/supplierspend,Thanet District Council,29/05/2019,474517,840,,Survey And Test,SUR015,Director Of Corp Gov/Mon Off,Revenue,"Repairs,  Alter & Mtce - Build",UTILITIES
http://thanet.gov.uk/supplierspend,Thanet District Council,29/05/2019,475283,565.7,,The Bell Brush Company,BEL018,Dir Ops/Commercial Serv,Revenue,"Equip, Furniture And Materials",CLEANING AND JANITORIAL
http://thanet.gov.uk/supplierspend,Thanet District Council,29/05/2019,474132,3701.12,,The Oyster Partnership Ltd,OYS001,Director Of Corp Gov/Mon Off,Revenue,Agency Staff,HUMAN RESOURCES
http://thanet.gov.uk/supplierspend,Thanet District Council,29/05/2019,473494,700,,Uplands Engineering Ltd,UPL001,Dir Ops/Commercial Serv,Revenue,"Repairs,  Alter & Mtce - Build",MARITIME SERVICES
http://thanet.gov.uk/supplierspend,Thanet District Council,29/05/2019,473495,1270,,Uplands Engineering Ltd,UPL001,Dir Ops/Commercial Serv,Revenue,"Equip, Furniture And Materials",MARITIME SERVICES
http://thanet.gov.uk/supplierspend,Thanet District Council,29/05/2019,473495,1430,,Uplands Engineering Ltd,UPL001,Dir Ops/Commercial Serv,Revenue,"Repairs,  Alter & Mtce - Build",MARITIME SERVICES
http://thanet.gov.uk/supplierspend,Thanet District Council,29/05/2019,473496,860,,Uplands Engineering Ltd,UPL001,Dir Ops/Commercial Serv,Revenue,"Repairs,  Alter & Mtce - Build",MARITIME SERVICES
http://thanet.gov.uk/supplierspend,Thanet District Council,29/05/2019,473613,900,,Viatec (Uk) Limited,VIA002,Dir Ops/Commercial Serv,Revenue,"Equip, Furniture And Materials",CONSTRUCTION-REPAIR AND MAINT
http://thanet.gov.uk/supplierspend,Thanet District Council,29/05/2019,475075,3253.98,,Visit Kent Ltd,VIS005,Dir Ops/Commercial Serv,Revenue,Communications & Computing,ARTS AND LEISURE SERVICES
http://thanet.gov.uk/supplierspend,Thanet District Council,29/05/2019,475820,1500,,Visit Kent Ltd,VIS005,Dir Ops/Commercial Serv,Revenue,Miscellaneous Expenses,ARTS AND LEISURE SERVICES
http://thanet.gov.uk/supplierspend,Thanet District Council,30/05/2019,475348,1969.76,,Allstar Business Solutions Ltd,ALL038,Dir Ops/Commercial Serv,Revenue,Direct Transport Costs,VEHICLE MANAGEMENT
http://thanet.gov.uk/supplierspend,Thanet District Council,30/05/2019,476298,294514,,Maidstone Borough Council,MAI002,Director of Corporate Resources and S151,Balance Sheet,Collection Fund,VARIOUS CATS-PUBLIC SECTOR
http://thanet.gov.uk/supplierspend,Thanet District Council,30/05/2019,476298,702648,,Maidstone Borough Council,MAI002,Deputy Chief Executive/S151,Revenue,Revenue Financing,VARIOUS CATS-PUBLIC SECTOR
http://thanet.gov.uk/supplierspend,Thanet District Council,30/05/2019,476296,11969.29,,Public Works Loan Board,PWL001,Director of Corporate Resources and S151,Balance Sheet,Debit Interest And Expenses,INVESTMENTS AND LOANS
http://thanet.gov.uk/supplierspend,Thanet District Council,30/05/2019,476296,196428.57,,Public Works Loan Board,PWL001,Director of Corporate Resources and S151,Balance Sheet,Borrowing Repayable>1 Yr,INVESTMENTS AND LOANS
http://thanet.gov.uk/supplierspend,Thanet District Council,30/05/2019,475917,3848.15,,Worldpay Ltd,WOR008,Deputy Chief Executive/S151,Revenue,Services,FINANCIAL SERVICES
http://thanet.gov.uk/supplierspend,Thanet District Council,30/05/2019,475918,4801.53,,Worldpay Ltd,WOR008,Deputy Chief Executive/S151,Revenue,Services,FINANCIAL SERVICES
http://thanet.gov.uk/supplierspend,Thanet District Council,30/05/2019,475921,925.15,,Worldpay Ltd,WOR008,Deputy Chief Executive/S151,Revenue,Services,FINANCIAL SERVICES
http://thanet.gov.uk/supplierspend,Thanet District Council,31/05/2019,474093,1627.16,,Capita Business Services Ltd,CAP001,Deputy Chief Executive/S151,Revenue,Services,HUMAN RESOURCES
http://thanet.gov.uk/supplierspend,Thanet District Council,31/05/2019,475874,2293.23,,Capita Business Services Ltd,CAP001,Deputy Chief Executive/S151,Revenue,Services,HUMAN RESOURCES
http://thanet.gov.uk/supplierspend,Thanet District Council,31/05/2019,476309,725.97,,Capita Business Services Ltd,CAP001,Deputy Chief Executive/S151,Revenue,Services,HUMAN RESOURCES
http://thanet.gov.uk/supplierspend,Thanet District Council,31/05/2019,476414,7166.72,,Hubbard & Houghton Construction Ltd,HUB003,Director of Corporate Resources and S151,Balance Sheet,Capital Exp-Non Council Assets,GRANTS
http://thanet.gov.uk/supplierspend,Thanet District Council,31/05/2019,476411,666.9,,John Gale,GAL001,Director of Corporate Resources and S151,Balance Sheet,Capital Exp-Non Council Assets,GRANTS
http://thanet.gov.uk/supplierspend,Thanet District Council,31/05/2019,476408,140279,,Paramount Ind Property Services Llp,PAR074,Deputy Chief Executive/S151,Revenue,Grants & Subscriptions,HOUSING MANAGEMENT
http://thanet.gov.uk/supplierspend,Thanet District Council,31/05/2019,476413,860,,Peabody South East Limited,PEA024,Director of Corporate Resources and S151,Balance Sheet,Capital Exp-Non Council Assets,GRANTS
http://thanet.gov.uk/supplierspend,Thanet District Council,31/05/2019,476366,1000,,Prospects Assured Uk Ltd,PRO032,Deputy Chief Executive/S151,Revenue,Grants & Subscriptions,RENT DEPOSITS
http://thanet.gov.uk/supplierspend,Thanet District Council,31/05/2019,476368,2286,,Prospects Assured Uk Ltd,PRO032,Deputy Chief Executive/S151,Revenue,Grants & Subscriptions,RENT DEPOSITS
http://thanet.gov.uk/supplierspend,Thanet District Council,31/05/2019,N/A,57500,,Redacted Personal Data,N/A,Director Of Corp Gov/Mon Off,Revenue,N/A,NON TRADE PAYEE
http://thanet.gov.uk/supplierspend,Thanet District Council,31/05/2019,476415,1100,,Thanet Property Rental,TPR001,Deputy Chief Executive/S151,Revenue,Grants & Subscriptions,RENT DEPOSITS
http://thanet.gov.uk/supplierspend,Thanet District Council,31/05/2019,476412,6669,,Trueden Disability Adaptations Ltd,TRU012,Director of Corporate Resources and S151,Balance Sheet,Capital Exp-Non Council Assets,GRANTS
http://thanet.gov.uk/supplierspend,Thanet District Council,31/05/2019,476406,900,,Westbrook Construction (Margate) Ltd,WES021,Director of Corporate Resources and S151,Balance Sheet,Capital Exp-Non Council Assets,VARIOUS CATEGORIES
http://thanet.gov.uk/supplierspend,Thanet District Council,04/06/2019,475276,10154.5,,Allen Scott Ltd,ALL046,Director of Corporate Resources and S151,Balance Sheet,Community Assets,CONSTRUCTION-REPAIR AND MAINT
http://thanet.gov.uk/supplierspend,Thanet District Council,04/06/2019,475280,811.99,,Barnard And Westwood Ltd,BAR064,Chief Executive,Revenue,Expenses,STATIONERY
http://thanet.gov.uk/supplierspend,Thanet District Council,04/06/2019,476403,1731.93,,Bt Payment Services Ltd,BTE003,Director of Corporate Resources and S151,Balance Sheet,Telephone Holding Account,ICT
http://thanet.gov.uk/supplierspend,Thanet District Council,04/06/2019,476534,471.8,,Cannon Hygiene Limited,CAN030,Dir Ops/Commercial Serv,Revenue,"Equip, Furniture And Materials",ENVIRONMENTAL SERVICES
http://thanet.gov.uk/supplierspend,Thanet District Council,04/06/2019,475453,1133.25,,Canon (Uk) Ltd,CAN021,Director Of Corp Gov/Mon Off,Revenue,"Equip, Furniture And Materials",FACILITIES AND MANGEMENT SERV
http://thanet.gov.uk/supplierspend,Thanet District Council,04/06/2019,475453,848.52,,Canon (Uk) Ltd,CAN021,Dir Ops/Commercial Serv,Revenue,"Equip, Furniture And Materials",FACILITIES AND MANGEMENT SERV
http://thanet.gov.uk/supplierspend,Thanet District Council,04/06/2019,474724,9327.53,,Capita Business Services Ltd,CAP001,Deputy Chief Executive/S151,Revenue,Communications & Computing,HUMAN RESOURCES
http://thanet.gov.uk/supplierspend,Thanet District Council,04/06/2019,476506,611,,Electrical Lighting Solutions Ltd,ELE013,Dir Ops/Commercial Serv,Revenue,"Repairs,  Alter & Mtce - Build",BUILDING CONSTRUCTION MATERIAL
http://thanet.gov.uk/supplierspend,Thanet District Council,04/06/2019,475630,3500,,Kent County Council,KCC002,Chief Executive,Revenue,Grants & Subscriptions,VARIOUS CATS-PUBLIC SECTOR
http://thanet.gov.uk/supplierspend,Thanet District Council,04/06/2019,475457,1532.51,,Kent County Council (Kcs),KCC003,Director Of Corp Gov/Mon Off,Revenue,Energy Costs,FACILITIES AND MANGEMENT SERV
http://thanet.gov.uk/supplierspend,Thanet District Council,04/06/2019,475468,472.81,,Kent County Council (Kcs),KCC003,Dir Ops/Commercial Serv,Revenue,Energy Costs,FACILITIES AND MANGEMENT SERV
http://thanet.gov.uk/supplierspend,Thanet District Council,04/06/2019,475712,7250.08,,Kent County Council (Kcs),KCC003,Dir Ops/Commercial Serv,Revenue,Energy Costs,FACILITIES AND MANGEMENT SERV
http://thanet.gov.uk/supplierspend,Thanet District Council,04/06/2019,475713,1377.32,,Kent County Council (Kcs),KCC003,Dir Ops/Commercial Serv,Revenue,Energy Costs,FACILITIES AND MANGEMENT SERV
http://thanet.gov.uk/supplierspend,Thanet District Council,04/06/2019,475890,1249.38,,L W Burt & Son Ltd,BUR027,Dir Ops/Commercial Serv,Revenue,"Repairs,  Alter & Mtce - Build",CONSTRUCTION-REPAIR AND MAINT
http://thanet.gov.uk/supplierspend,Thanet District Council,04/06/2019,474895,1090,,Local Government Association,LGA001,Chief Executive,Revenue,Expenses,VARIOUS CATEGORIES
http://thanet.gov.uk/supplierspend,Thanet District Council,04/06/2019,475625,474,,Lyreco Uk Limited,LYR001,Director Of Corp Gov/Mon Off,Revenue,"Print, Stat And Gen Off Exps",STATIONERY
http://thanet.gov.uk/supplierspend,Thanet District Council,04/06/2019,476489,1427.88,,Medway Council,MED003,Director Of Corp Gov/Mon Off,Revenue,Services,VARIOUS CATS-PUBLIC SECTOR
http://thanet.gov.uk/supplierspend,Thanet District Council,04/06/2019,475570,15209.59,,Neopost Limited Neofunds,NEO004,Director Of Corp Gov/Mon Off,Revenue,Communications & Computing,MAIL SERVICES
http://thanet.gov.uk/supplierspend,Thanet District Council,04/06/2019,476143,983.07,,Regent Gas Ltd,REG012,Dir Ops/Commercial Serv,Revenue,Energy Costs,UTILITIES
http://thanet.gov.uk/supplierspend,Thanet District Council,04/06/2019,476147,855.83,,Regent Gas Ltd,REG012,Dir Ops/Commercial Serv,Revenue,Energy Costs,UTILITIES
http://thanet.gov.uk/supplierspend,Thanet District Council,04/06/2019,476148,-983.07,,Regent Gas Ltd,REG012,Dir Ops/Commercial Serv,Revenue,Energy Costs,UTILITIES
http://thanet.gov.uk/supplierspend,Thanet District Council,04/06/2019,475500,1659.26,,Scottish Water Business Stream Ltd,SCO019,Dir Ops/Commercial Serv,Revenue,Water Services,UTILITIES
http://thanet.gov.uk/supplierspend,Thanet District Council,04/06/2019,476345,609.39,,Scottish Water Business Stream Ltd,SCO019,Dir Ops/Commercial Serv,Revenue,Water Services,UTILITIES
http://thanet.gov.uk/supplierspend,Thanet District Council,04/06/2019,476346,1080.99,,Scottish Water Business Stream Ltd,SCO019,Dir Ops/Commercial Serv,Revenue,Water Services,UTILITIES
http://thanet.gov.uk/supplierspend,Thanet District Council,04/06/2019,476347,-1838.08,,Scottish Water Business Stream Ltd,SCO019,Dir Ops/Commercial Serv,Revenue,Water Services,UTILITIES
http://thanet.gov.uk/supplierspend,Thanet District Council,04/06/2019,475578,3351.58,,Securitas Security Services (Uk) Ltd,SEC019,Director Of Corp Gov/Mon Off,Revenue,Services,FACILITIES AND MANGEMENT SERV
http://thanet.gov.uk/supplierspend,Thanet District Council,04/06/2019,476463,1078.68,,South East Employers,SEE001,Deputy Chief Executive/S151,Revenue,Training,HUMAN RESOURCES
http://thanet.gov.uk/supplierspend,Thanet District Council,04/06/2019,476331,520.1,,Southern Electric,SEL007,Dir Ops/Commercial Serv,Revenue,Energy Costs,UTILITIES
http://thanet.gov.uk/supplierspend,Thanet District Council,04/06/2019,476335,1788.75,,Southern Electric,SEL007,Deputy Chief Executive/S151,Revenue,Energy Costs,UTILITIES
http://thanet.gov.uk/supplierspend,Thanet District Council,04/06/2019,476354,1518.12,,Southern Electric,SEL007,Dir Ops/Commercial Serv,Revenue,Energy Costs,UTILITIES
http://thanet.gov.uk/supplierspend,Thanet District Council,04/06/2019,476355,6010.74,,Southern Electric,SEL007,Dir Ops/Commercial Serv,Revenue,Energy Costs,UTILITIES
http://thanet.gov.uk/supplierspend,Thanet District Council,04/06/2019,476356,1094.07,,Southern Electric,SEL007,Dir Ops/Commercial Serv,Revenue,Energy Costs,UTILITIES
http://thanet.gov.uk/supplierspend,Thanet District Council,04/06/2019,476390,970.75,,Southern Electric,SEL007,Dir Ops/Commercial Serv,Revenue,Energy Costs,UTILITIES
http://thanet.gov.uk/supplierspend,Thanet District Council,04/06/2019,476395,1252.54,,Southern Electric,SEL007,Deputy Chief Executive/S151,Revenue,Energy Costs,UTILITIES
http://thanet.gov.uk/supplierspend,Thanet District Council,04/06/2019,476398,1036.41,,Southern Electric,SEL007,Deputy Chief Executive/S151,Revenue,Energy Costs,UTILITIES
http://thanet.gov.uk/supplierspend,Thanet District Council,04/06/2019,476399,3739.58,,Southern Electric,SEL007,Deputy Chief Executive/S151,Revenue,Energy Costs,UTILITIES
http://thanet.gov.uk/supplierspend,Thanet District Council,04/06/2019,476401,571.93,,Southern Electric,SEL007,Dir Ops/Commercial Serv,Revenue,Energy Costs,UTILITIES
http://thanet.gov.uk/supplierspend,Thanet District Council,04/06/2019,474488,750,,Survey And Test,SUR015,Director Of Corp Gov/Mon Off,Revenue,"Repairs,  Alter & Mtce - Build",UTILITIES
http://thanet.gov.uk/supplierspend,Thanet District Council,04/06/2019,473472,1802.88,,The Oyster Partnership Ltd,OYS001,Director Of Corp Gov/Mon Off,Revenue,Agency Staff,HUMAN RESOURCES
http://thanet.gov.uk/supplierspend,Thanet District Council,04/06/2019,474875,1952,,The Oyster Partnership Ltd,OYS001,Director Of Corp Gov/Mon Off,Revenue,Agency Staff,HUMAN RESOURCES
http://thanet.gov.uk/supplierspend,Thanet District Council,04/06/2019,475572,1472,,The Oyster Partnership Ltd,OYS001,Director Of Corp Gov/Mon Off,Revenue,Agency Staff,HUMAN RESOURCES
http://thanet.gov.uk/supplierspend,Thanet District Council,04/06/2019,476492,7771,,Thomson Reuters,THO043,Director Of Corp Gov/Mon Off,Revenue,"Print, Stat And Gen Off Exps",HUMAN RESOURCES
http://thanet.gov.uk/supplierspend,Thanet District Council,04/06/2019,475444,1650,,Tyco Fire & Integrated Sol (Uk) Ltd,TYC001,Director Of Corp Gov/Mon Off,Revenue,"Repairs,  Alter & Mtce - Build",FACILITIES AND MANGEMENT SERV
http://thanet.gov.uk/supplierspend,Thanet District Council,04/06/2019,476491,904,,Veale Wasbrough Vizards Llp,VEA001,Director Of Corp Gov/Mon Off,Revenue,Services,LEGAL SERVICES
http://thanet.gov.uk/supplierspend,Thanet District Council,04/06/2019,476357,4642.3,,Vodafone Limited,VOD001,Director of Corporate Resources and S151,Balance Sheet,Mobile Phone Holding A/C,ICT
http://thanet.gov.uk/supplierspend,Thanet District Council,04/06/2019,476555,13871.27,,Xpress Software Solutions Ltd,XPR002,Director Of Corp Gov/Mon Off,Revenue,Communications & Computing,ICT
http://thanet.gov.uk/supplierspend,Thanet District Council,06/06/2019,474908,1027.5,,Andy Morris,MOR028,Dir Ops/Commercial Serv,Revenue,Services,ARTS AND LEISURE SERVICES
http://thanet.gov.uk/supplierspend,Thanet District Council,06/06/2019,476751,19226.76,,Bramling Construction Ltd,BRA020,Director of Corporate Resources and S151,Balance Sheet,Capital Exp-Non Council Assets,GRANTS
http://thanet.gov.uk/supplierspend,Thanet District Council,06/06/2019,476752,7500.57,,Bramling Construction Ltd,BRA020,Director of Corporate Resources and S151,Balance Sheet,Capital Exp-Non Council Assets,GRANTS
http://thanet.gov.uk/supplierspend,Thanet District Council,06/06/2019,476754,7644.51,,Bramling Construction Ltd,BRA020,Director of Corporate Resources and S151,Balance Sheet,Capital Exp-Non Council Assets,GRANTS
http://thanet.gov.uk/supplierspend,Thanet District Council,06/06/2019,474605,3087.5,,Dha Planning Limited,DHA002,Deputy Chief Executive/S151,Revenue,Services,CONSULTANCY
http://thanet.gov.uk/supplierspend,Thanet District Council,06/06/2019,476750,5369.6,,Evermech Services Ltd,EVE011,Director of Corporate Resources and S151,Balance Sheet,Capital Exp-Non Council Assets,GRANTS
http://thanet.gov.uk/supplierspend,Thanet District Council,06/06/2019,475892,1811.14,,Faun Zoeller (Uk) Ltd,FAU001,Dir Ops/Commercial Serv,Revenue,Direct Transport Costs,VEHICLE MANAGEMENT
http://thanet.gov.uk/supplierspend,Thanet District Council,06/06/2019,475102,900,,Florence Court Hotel Ltd,FLO009,Deputy Chief Executive/S151,Revenue,Rents,HOUSING MANAGEMENT
http://thanet.gov.uk/supplierspend,Thanet District Council,06/06/2019,475105,850,,Florence Court Hotel Ltd,FLO009,Deputy Chief Executive/S151,Revenue,Rents,HOUSING MANAGEMENT
http://thanet.gov.uk/supplierspend,Thanet District Council,06/06/2019,475106,900,,Florence Court Hotel Ltd,FLO009,Deputy Chief Executive/S151,Revenue,Rents,HOUSING MANAGEMENT
http://thanet.gov.uk/supplierspend,Thanet District Council,06/06/2019,475893,1620,,Flowbird Smart City Uk Limited,FLO011,Dir Ops/Commercial Serv,Revenue,Communications & Computing,STREET AND TRAFFIC MANAGEMENT
http://thanet.gov.uk/supplierspend,Thanet District Council,06/06/2019,476292,2474.34,,G2v Recruitment Group Limited,G2V001,Deputy Chief Executive/S151,Revenue,Agency Staff,HUMAN RESOURCES
http://thanet.gov.uk/supplierspend,Thanet District Council,06/06/2019,476772,1006.17,,G2v Recruitment Group Limited,G2V001,Deputy Chief Executive/S151,Revenue,Agency Staff,HUMAN RESOURCES
http://thanet.gov.uk/supplierspend,Thanet District Council,06/06/2019,475808,1332.47,,Hr Go (Kent) Ltd,HRG001,Dir Ops/Commercial Serv,Revenue,Agency Staff,HUMAN RESOURCES
http://thanet.gov.uk/supplierspend,Thanet District Council,06/06/2019,475811,738.76,,Hr Go (Kent) Ltd,HRG001,Dir Ops/Commercial Serv,Revenue,Agency Staff,HUMAN RESOURCES
http://thanet.gov.uk/supplierspend,Thanet District Council,06/06/2019,476018,1009.43,,Hr Go (Kent) Ltd,HRG001,Dir Ops/Commercial Serv,Revenue,Agency Staff,HUMAN RESOURCES
http://thanet.gov.uk/supplierspend,Thanet District Council,06/06/2019,476019,891.75,,Hr Go (Kent) Ltd,HRG001,Dir Ops/Commercial Serv,Revenue,Agency Staff,HUMAN RESOURCES
http://thanet.gov.uk/supplierspend,Thanet District Council,06/06/2019,476020,1066.4,,Hr Go (Kent) Ltd,HRG001,Dir Ops/Commercial Serv,Revenue,Agency Staff,HUMAN RESOURCES
http://thanet.gov.uk/supplierspend,Thanet District Council,06/06/2019,476021,1059.36,,Hr Go (Kent) Ltd,HRG001,Dir Ops/Commercial Serv,Revenue,Agency Staff,HUMAN RESOURCES
http://thanet.gov.uk/supplierspend,Thanet District Council,06/06/2019,476022,13136.49,,Hr Go (Kent) Ltd,HRG001,Dir Ops/Commercial Serv,Revenue,Agency Staff,HUMAN RESOURCES
http://thanet.gov.uk/supplierspend,Thanet District Council,06/06/2019,476753,8000,,Hubbard & Houghton Construction Ltd,HUB003,Director of Corporate Resources and S151,Balance Sheet,Capital Exp-Non Council Assets,GRANTS
http://thanet.gov.uk/supplierspend,Thanet District Council,06/06/2019,475644,13226.05,,Imperial Civil Enforcement Sols Ltd,IMP008,Dir Ops/Commercial Serv,Revenue,Services,STREET AND TRAFFIC MANAGEMENT
http://thanet.gov.uk/supplierspend,Thanet District Council,06/06/2019,476746,1750,,Lovetts Birchington Ltd,LOV006,Deputy Chief Executive/S151,Revenue,Grants & Subscriptions,RENT DEPOSITS
http://thanet.gov.uk/supplierspend,Thanet District Council,06/06/2019,476748,1000,,Lovetts Birchington Ltd,LOV006,Deputy Chief Executive/S151,Revenue,Grants & Subscriptions,RENT DEPOSITS
http://thanet.gov.uk/supplierspend,Thanet District Council,06/06/2019,476761,1250,,Martin Neame Ltd,MAR116,Deputy Chief Executive/S151,Revenue,Grants & Subscriptions,RENT DEPOSITS
http://thanet.gov.uk/supplierspend,Thanet District Council,06/06/2019,470780,-800,,Mears Ltd,MEA003,Director of Corporate Resources and S151,Balance Sheet,Repairs And Mtce Holding A/C,CONSTRUCTION-REPAIR AND MAINT
http://thanet.gov.uk/supplierspend,Thanet District Council,06/06/2019,476576,64082.15,,Mears Ltd,MEA003,Director of Corporate Resources and S151,Balance Sheet,Repairs And Mtce Holding A/C,CONSTRUCTION-REPAIR AND MAINT
http://thanet.gov.uk/supplierspend,Thanet District Council,06/06/2019,476577,29243.81,,Mears Ltd,MEA003,Director of Corporate Resources and S151,Balance Sheet,Repairs And Mtce Holding A/C,CONSTRUCTION-REPAIR AND MAINT
http://thanet.gov.uk/supplierspend,Thanet District Council,06/06/2019,476744,1250,,Miles & Barr Property Man  Ltd,MIL048,Deputy Chief Executive/S151,Revenue,Grants & Subscriptions,RENT DEPOSITS
http://thanet.gov.uk/supplierspend,Thanet District Council,06/06/2019,473647,1724.4,,Patrol,PAT004,Dir Ops/Commercial Serv,Revenue,Services,STREET AND TRAFFIC MANAGEMENT
http://thanet.gov.uk/supplierspend,Thanet District Council,06/06/2019,476756,819.18,,Peabody South East Limited,PEA024,Director of Corporate Resources and S151,Balance Sheet,Capital Exp-Non Council Assets,GRANTS
http://thanet.gov.uk/supplierspend,Thanet District Council,06/06/2019,476757,2867.8,,Peabody South East Limited,PEA024,Director of Corporate Resources and S151,Balance Sheet,Capital Exp-Non Council Assets,GRANTS
http://thanet.gov.uk/supplierspend,Thanet District Council,06/06/2019,476758,2197.22,,Peabody South East Limited,PEA024,Director of Corporate Resources and S151,Balance Sheet,Capital Exp-Non Council Assets,GRANTS
http://thanet.gov.uk/supplierspend,Thanet District Council,06/06/2019,N/A,780,,Redacted Personal Data,N/A,Deputy Chief Executive/S151,Revenue,Grants & Subscriptions,RENT DEPOSITS
http://thanet.gov.uk/supplierspend,Thanet District Council,06/06/2019,476472,2455,,Serveco Ltd,SER009,Deputy Chief Executive/S151,Revenue,Rents,SPECIAL COMMUNITY CARE
http://thanet.gov.uk/supplierspend,Thanet District Council,06/06/2019,475247,545.66,,Signway Supplies (Datchet) Limited,SIG013,Dir Ops/Commercial Serv,Revenue,"Repairs,  Alter & Mtce - Build",HIGHWAY EQUIPMENT AND MATERIAL
http://thanet.gov.uk/supplierspend,Thanet District Council,06/06/2019,476362,1750,,Simply Homes 4 U Ltd,SIM012,Deputy Chief Executive/S151,Revenue,Grants & Subscriptions,RENT DEPOSITS
http://thanet.gov.uk/supplierspend,Thanet District Council,06/06/2019,476760,1184.61,,Simply Homes 4 U Ltd,SIM012,Deputy Chief Executive/S151,Revenue,Grants & Subscriptions,RENT DEPOSITS
http://thanet.gov.uk/supplierspend,Thanet District Council,06/06/2019,476755,6826.54,,South East Building Company Limited,SEB001,Director of Corporate Resources and S151,Balance Sheet,Capital Exp-Non Council Assets,GRANTS
http://thanet.gov.uk/supplierspend,Thanet District Council,06/06/2019,476537,5750,,The Fulker Consultancy Limited,FUL005,Director of Corporate Resources and S151,Balance Sheet,Repairs And Mtce Holding A/C,CONSULTANCY
http://thanet.gov.uk/supplierspend,Thanet District Council,06/06/2019,476767,83993.64,,W W Martin Ltd,MAR003,Director of Corporate Resources and S151,Balance Sheet,Council Dwellings,CONSTRUCTION-REPAIR AND MAINT
http://thanet.gov.uk/supplierspend,Thanet District Council,06/06/2019,476773,69787.58,,W W Martin Ltd,MAR003,Director of Corporate Resources and S151,Balance Sheet,Council Dwellings,CONSTRUCTION-REPAIR AND MAINT
http://thanet.gov.uk/supplierspend,Thanet District Council,06/06/2019,476775,56478.1,,W W Martin Ltd,MAR003,Director of Corporate Resources and S151,Balance Sheet,Council Dwellings,CONSTRUCTION-REPAIR AND MAINT
http://thanet.gov.uk/supplierspend,Thanet District Council,06/06/2019,476027,634,,Watling Jcb Limited,WAT024,Dir Ops/Commercial Serv,Revenue,Direct Transport Costs,VEHICLE MANAGEMENT
http://thanet.gov.uk/supplierspend,Thanet District Council,06/06/2019,476778,21332.71,,Zurich Insurance Plc,ZUR007,Director of Corporate Resources and S151,Balance Sheet,Insurance Holding Account,FINANCIAL SERVICES
http://thanet.gov.uk/supplierspend,Thanet District Council,11/06/2019,475099,945,,A& C Pumps Ltd,ACP001,Dir Ops/Commercial Serv,Revenue,"Equip, Furniture And Materials",BUILDING CONSTRUCTION MATERIAL
http://thanet.gov.uk/supplierspend,Thanet District Council,11/06/2019,474863,790,,All Access Ltd,ALL031,Dir Ops/Commercial Serv,Revenue,"Equip, Furniture And Materials",BUILDING CONSTRUCTION MATERIAL
http://thanet.gov.uk/supplierspend,Thanet District Council,11/06/2019,475274,823.75,,Aspli Safety Limited,ASP005,Dir Ops/Commercial Serv,Revenue,"Equip, Furniture And Materials",MARITIME SERVICES
http://thanet.gov.uk/supplierspend,Thanet District Council,11/06/2019,474859,2833.12,,Certas Energy Uk Ltd,CER005,Dir Ops/Commercial Serv,Revenue,"Equip, Furniture And Materials",VEHICLE MANAGEMENT
http://thanet.gov.uk/supplierspend,Thanet District Council,11/06/2019,475079,2327.78,,Certas Energy Uk Ltd,CER005,Dir Ops/Commercial Serv,Revenue,"Equip, Furniture And Materials",VEHICLE MANAGEMENT
http://thanet.gov.uk/supplierspend,Thanet District Council,11/06/2019,475126,31450.25,,Crown Estate,CRO022,Dir Ops/Commercial Serv,Revenue,Rents,MARITIME SERVICES
http://thanet.gov.uk/supplierspend,Thanet District Council,11/06/2019,475127,4877.5,,Crown Estate,CRO022,Dir Ops/Commercial Serv,Revenue,Rents,MARITIME SERVICES
http://thanet.gov.uk/supplierspend,Thanet District Council,11/06/2019,475128,25264.75,,Crown Estate,CRO022,Dir Ops/Commercial Serv,Revenue,Rents,MARITIME SERVICES
http://thanet.gov.uk/supplierspend,Thanet District Council,11/06/2019,474960,2596,,Disclosure And Barring Service,DIS017,Dir Ops/Commercial Serv,Revenue,"Equip, Furniture And Materials",HUMAN RESOURCES
http://thanet.gov.uk/supplierspend,Thanet District Council,11/06/2019,474966,3300,,Hometrack Data Systems Ltd,HOM011,Deputy Chief Executive/S151,Revenue,Grants & Subscriptions,FINANCIAL SERVICES
http://thanet.gov.uk/supplierspend,Thanet District Council,11/06/2019,475250,2451.33,,Hr Go (Kent) Ltd,HRG001,Dir Ops/Commercial Serv,Revenue,Agency Staff,HUMAN RESOURCES
http://thanet.gov.uk/supplierspend,Thanet District Council,11/06/2019,475268,449.55,,Hr Go (Kent) Ltd,HRG001,Dir Ops/Commercial Serv,Revenue,Agency Staff,HUMAN RESOURCES
http://thanet.gov.uk/supplierspend,Thanet District Council,11/06/2019,475272,486.55,,Hr Go (Kent) Ltd,HRG001,Dir Ops/Commercial Serv,Revenue,Agency Staff,HUMAN RESOURCES
http://thanet.gov.uk/supplierspend,Thanet District Council,11/06/2019,475545,1008.6,,Intermarine Ltd,INT008,Dir Ops/Commercial Serv,Revenue,"Repairs,  Alter & Mtce - Build",MARITIME SERVICES
http://thanet.gov.uk/supplierspend,Thanet District Council,11/06/2019,475546,770,,Intermarine Ltd,INT008,Dir Ops/Commercial Serv,Revenue,"Repairs,  Alter & Mtce - Build",MARITIME SERVICES
http://thanet.gov.uk/supplierspend,Thanet District Council,11/06/2019,474962,103199.16,,Mears Ltd,MEA003,Deputy Chief Executive/S151,Revenue,"Repairs,  Alter & Mtce - Build",CONSTRUCTION-REPAIR AND MAINT
http://thanet.gov.uk/supplierspend,Thanet District Council,11/06/2019,475081,639.9,,Ohuk Limited,OHU001,Dir Ops/Commercial Serv,Revenue,Agency Staff,HUMAN RESOURCES
http://thanet.gov.uk/supplierspend,Thanet District Council,11/06/2019,475571,639.9,,Ohuk Limited,OHU001,Dir Ops/Commercial Serv,Revenue,Agency Staff,HUMAN RESOURCES
http://thanet.gov.uk/supplierspend,Thanet District Council,11/06/2019,474883,4625,,Ovenden Allworks Limited,OVE008,Dir Ops/Commercial Serv,Revenue,"Repairs,  Alter & Mtce - Build",CONSTRUCTION-REPAIR AND MAINT
http://thanet.gov.uk/supplierspend,Thanet District Council,11/06/2019,475120,4996,,Ovenden Allworks Limited,OVE008,Director of Corporate Resources and S151,Balance Sheet,Rechargeable Works,CONSTRUCTION-REPAIR AND MAINT
http://thanet.gov.uk/supplierspend,Thanet District Council,11/06/2019,476633,4981.25,,Save The Margate Lido,SAV009,Director Of Corp Gov/Mon Off,Revenue,"Repairs,  Alter & Mtce - Build",FACILITIES AND MANGEMENT SERV
http://thanet.gov.uk/supplierspend,Thanet District Council,11/06/2019,474881,3035,,Serveco Ltd,SER009,Deputy Chief Executive/S151,Revenue,Rents,SPECIAL COMMUNITY CARE
http://thanet.gov.uk/supplierspend,Thanet District Council,11/06/2019,475021,59944.56,,Teignmouth Maritime Services Ltd,TEI003,Director of Corporate Resources and S151,Balance Sheet,Infrastructure,CONSTRUCTION-REPAIR AND MAINT
http://thanet.gov.uk/supplierspend,Thanet District Council,11/06/2019,475574,752.5,,The Oyster Partnership Ltd,OYS001,Dir Ops/Commercial Serv,Revenue,Agency Staff,HUMAN RESOURCES
http://thanet.gov.uk/supplierspend,Thanet District Council,11/06/2019,474916,900,,Viatec (Uk) Limited,VIA002,Dir Ops/Commercial Serv,Revenue,"Equip, Furniture And Materials",CONSTRUCTION-REPAIR AND MAINT
http://thanet.gov.uk/supplierspend,Thanet District Council,11/06/2019,474893,1925,,Vodafone Limited,VOD001,Director of Corporate Resources and S151,Balance Sheet,Plant And Equipment,ICT
http://thanet.gov.uk/supplierspend,Thanet District Council,11/06/2019,475286,2777,,Wise Handling Limited,WIS001,Dir Ops/Commercial Serv,Revenue,"Repairs,  Alter & Mtce - Build",MARITIME SERVICES
http://thanet.gov.uk/supplierspend,Thanet District Council,12/06/2019,474712,976,,Aston Walker,AST008,Dir Ops/Commercial Serv,Revenue,Services,CEMETERY AND CREMATORIUM
http://thanet.gov.uk/supplierspend,Thanet District Council,12/06/2019,474730,976,,Aston Walker,AST008,Dir Ops/Commercial Serv,Revenue,Services,CEMETERY AND CREMATORIUM
http://thanet.gov.uk/supplierspend,Thanet District Council,12/06/2019,475891,812,,Aston Walker,AST008,Dir Ops/Commercial Serv,Revenue,Services,CEMETERY AND CREMATORIUM
http://thanet.gov.uk/supplierspend,Thanet District Council,12/06/2019,475113,600,,G & G Forklifts,GGF001,Dir Ops/Commercial Serv,Revenue,"Repairs,  Alter & Mtce - Build",VEHICLE MANAGEMENT
http://thanet.gov.uk/supplierspend,Thanet District Council,12/06/2019,475130,435.36,,G & G Forklifts,GGF001,Dir Ops/Commercial Serv,Revenue,"Repairs,  Alter & Mtce - Build",VEHICLE MANAGEMENT
http://thanet.gov.uk/supplierspend,Thanet District Council,12/06/2019,476101,4525,,Hipperson Builders (M & E) Limited,HIP002,Director Of Corp Gov/Mon Off,Revenue,"Repairs,  Alter & Mtce - Build",CONSTRUCTION-REPAIR AND MAINT
http://thanet.gov.uk/supplierspend,Thanet District Council,12/06/2019,471753,510.94,,Hr Go (Kent) Ltd,HRG001,Dir Ops/Commercial Serv,Revenue,Agency Staff,HUMAN RESOURCES
http://thanet.gov.uk/supplierspend,Thanet District Council,12/06/2019,475809,2451.33,,Hr Go (Kent) Ltd,HRG001,Dir Ops/Commercial Serv,Revenue,Agency Staff,HUMAN RESOURCES
http://thanet.gov.uk/supplierspend,Thanet District Council,12/06/2019,476706,866,,Intercard Limited,INT024,East Kent Shared Services,Revenue,"Equip, Furniture And Materials",FINANCIAL SERVICES
http://thanet.gov.uk/supplierspend,Thanet District Council,12/06/2019,476099,5644.72,,Kgb Cleaning & Support Services Ltd,KGB001,Dir Ops/Commercial Serv,Revenue,Cleaning & Domestic Supplies,CLEANING AND JANITORIAL
http://thanet.gov.uk/supplierspend,Thanet District Council,12/06/2019,476100,5564.74,,Kgb Cleaning & Support Services Ltd,KGB001,Dir Ops/Commercial Serv,Revenue,Cleaning & Domestic Supplies,CLEANING AND JANITORIAL
http://thanet.gov.uk/supplierspend,Thanet District Council,12/06/2019,476471,780,,Michael Page Int Recruitment Ltd,PAG008,Deputy Chief Executive/S151,Revenue,Agency Staff,HUMAN RESOURCES
http://thanet.gov.uk/supplierspend,Thanet District Council,12/06/2019,477240,7791.94,,Ovenden Allworks Limited,OVE008,Dir Ops/Commercial Serv,Revenue,"Repairs,  Alter & Mtce - Build",CONSTRUCTION-REPAIR AND MAINT
http://thanet.gov.uk/supplierspend,Thanet District Council,12/06/2019,477241,3492.12,,Ovenden Allworks Limited,OVE008,Dir Ops/Commercial Serv,Revenue,"Repairs,  Alter & Mtce - Build",CONSTRUCTION-REPAIR AND MAINT
http://thanet.gov.uk/supplierspend,Thanet District Council,12/06/2019,477242,13867.8,,Ovenden Allworks Limited,OVE008,Dir Ops/Commercial Serv,Revenue,"Repairs,  Alter & Mtce - Build",CONSTRUCTION-REPAIR AND MAINT
http://thanet.gov.uk/supplierspend,Thanet District Council,12/06/2019,477243,8937.05,,Ovenden Allworks Limited,OVE008,Dir Ops/Commercial Serv,Revenue,"Repairs,  Alter & Mtce - Build",CONSTRUCTION-REPAIR AND MAINT
http://thanet.gov.uk/supplierspend,Thanet District Council,12/06/2019,474523,6214.84,,Potter Raper Partnership,POT006,Director of Corporate Resources and S151,Balance Sheet,Other Land And Buildings-Hra,CONSULTANCY
http://thanet.gov.uk/supplierspend,Thanet District Council,12/06/2019,475538,479.13,,Screwfix Direct Ltd,SCR001,Dir Ops/Commercial Serv,Revenue,"Equip, Furniture And Materials",BUILDING CONSTRUCTION MATERIAL
http://thanet.gov.uk/supplierspend,Thanet District Council,12/06/2019,476025,578.4,,Swann Of York Limited,SWA009,Director Of Corp Gov/Mon Off,Revenue,"Equip, Furniture And Materials",STATIONERY
http://thanet.gov.uk/supplierspend,Thanet District Council,12/06/2019,476128,7062.12,,Your Leisure Kent Limited,YOU016,Dir Ops/Commercial Serv,Revenue,Services,ARTS AND LEISURE SERVICES
http://thanet.gov.uk/supplierspend,Thanet District Council,12/06/2019,474941,3678,,Zoho Corporation B.V,ZOH002,East Kent Shared Services,Revenue,Communications & Computing,ICT
http://thanet.gov.uk/supplierspend,Thanet District Council,14/06/2019,476131,1363,,Ccs Media Limited,CCS003,Director of Corporate Resources and S151,Balance Sheet,Plant And Equipment,ICT
http://thanet.gov.uk/supplierspend,Thanet District Council,14/06/2019,477403,5511.5,,Higher Elevation Limited,HIG010,Director of Corporate Resources and S151,Balance Sheet,Capital Exp-Non Council Assets,GRANTS
http://thanet.gov.uk/supplierspend,Thanet District Council,14/06/2019,475819,3250,,Idox Software  Limited,IDO001,Deputy Chief Executive/S151,Revenue,Communications & Computing,ICT
http://thanet.gov.uk/supplierspend,Thanet District Council,14/06/2019,477400,810.6,,John Gale,GAL001,Director of Corporate Resources and S151,Balance Sheet,Capital Exp-Non Council Assets,GRANTS
http://thanet.gov.uk/supplierspend,Thanet District Council,14/06/2019,477401,1677.4,,John Gale,GAL001,Director of Corporate Resources and S151,Balance Sheet,Capital Exp-Non Council Assets,GRANTS
http://thanet.gov.uk/supplierspend,Thanet District Council,14/06/2019,477402,501.15,,John Gale,GAL001,Director of Corporate Resources and S151,Balance Sheet,Capital Exp-Non Council Assets,GRANTS
http://thanet.gov.uk/supplierspend,Thanet District Council,14/06/2019,475529,939.98,,Mears Ltd,MEA003,Director of Corporate Resources and S151,Balance Sheet,Repairs And Mtce Holding A/C,CONSTRUCTION-REPAIR AND MAINT
http://thanet.gov.uk/supplierspend,Thanet District Council,14/06/2019,476824,14434.47,,Mears Ltd,MEA003,Director of Corporate Resources and S151,Balance Sheet,Repairs And Mtce Holding A/C,CONSTRUCTION-REPAIR AND MAINT
http://thanet.gov.uk/supplierspend,Thanet District Council,14/06/2019,476825,1274.57,,Mears Ltd,MEA003,Director of Corporate Resources and S151,Balance Sheet,Repairs And Mtce Holding A/C,CONSTRUCTION-REPAIR AND MAINT
http://thanet.gov.uk/supplierspend,Thanet District Council,14/06/2019,476914,21705.05,,Mears Ltd,MEA003,Director of Corporate Resources and S151,Balance Sheet,Repairs And Mtce Holding A/C,CONSTRUCTION-REPAIR AND MAINT
http://thanet.gov.uk/supplierspend,Thanet District Council,14/06/2019,476983,6994.42,,Mears Ltd,MEA003,Director of Corporate Resources and S151,Balance Sheet,Repairs And Mtce Holding A/C,CONSTRUCTION-REPAIR AND MAINT
http://thanet.gov.uk/supplierspend,Thanet District Council,14/06/2019,476985,4581.93,,Mears Ltd,MEA003,Director of Corporate Resources and S151,Balance Sheet,Repairs And Mtce Holding A/C,CONSTRUCTION-REPAIR AND MAINT
http://thanet.gov.uk/supplierspend,Thanet District Council,14/06/2019,476996,1209.35,,Mears Ltd,MEA003,Director of Corporate Resources and S151,Balance Sheet,Repairs And Mtce Holding A/C,CONSTRUCTION-REPAIR AND MAINT
http://thanet.gov.uk/supplierspend,Thanet District Council,14/06/2019,477018,5069.56,,Mears Ltd,MEA003,Director of Corporate Resources and S151,Balance Sheet,Repairs And Mtce Holding A/C,CONSTRUCTION-REPAIR AND MAINT
http://thanet.gov.uk/supplierspend,Thanet District Council,14/06/2019,477019,1332.74,,Mears Ltd,MEA003,Director of Corporate Resources and S151,Balance Sheet,Repairs And Mtce Holding A/C,CONSTRUCTION-REPAIR AND MAINT
http://thanet.gov.uk/supplierspend,Thanet District Council,14/06/2019,477020,6843.17,,Mears Ltd,MEA003,Director of Corporate Resources and S151,Balance Sheet,Repairs And Mtce Holding A/C,CONSTRUCTION-REPAIR AND MAINT
http://thanet.gov.uk/supplierspend,Thanet District Council,14/06/2019,477033,425.58,,Mears Ltd,MEA003,Director of Corporate Resources and S151,Balance Sheet,Repairs And Mtce Holding A/C,CONSTRUCTION-REPAIR AND MAINT
http://thanet.gov.uk/supplierspend,Thanet District Council,14/06/2019,477034,95821.52,,Mears Ltd,MEA003,Director of Corporate Resources and S151,Balance Sheet,Repairs And Mtce Holding A/C,CONSTRUCTION-REPAIR AND MAINT
http://thanet.gov.uk/supplierspend,Thanet District Council,14/06/2019,477037,509.5,,Midland Software Limited,MID013,Deputy Chief Executive/S151,Revenue,Services,ICT
http://thanet.gov.uk/supplierspend,Thanet District Council,14/06/2019,477407,1000,,Miles & Barr Property Man  Ltd,MIL048,Deputy Chief Executive/S151,Revenue,Grants & Subscriptions,RENT DEPOSITS
http://thanet.gov.uk/supplierspend,Thanet District Council,14/06/2019,477408,1190,,Miles & Barr Property Man  Ltd,MIL048,Deputy Chief Executive/S151,Revenue,Grants & Subscriptions,RENT DEPOSITS
http://thanet.gov.uk/supplierspend,Thanet District Council,14/06/2019,477444,129363,,Paramount Ind Property Services Llp,PAR074,Deputy Chief Executive/S151,Revenue,Services,HOUSING MANAGEMENT
http://thanet.gov.uk/supplierspend,Thanet District Council,14/06/2019,476823,2354.29,,Pjc Electrical Ltd,PJC001,Director of Corporate Resources and S151,Balance Sheet,Repairs And Mtce Holding A/C,BUILDING CONSTRUCTION MATERIAL
http://thanet.gov.uk/supplierspend,Thanet District Council,14/06/2019,477440,16260,,Serveco Ltd,SER009,Deputy Chief Executive/S151,Revenue,Grants & Subscriptions,SPECIAL COMMUNITY CARE
http://thanet.gov.uk/supplierspend,Thanet District Council,14/06/2019,477441,81799.2,,Serveco Ltd,SER009,Deputy Chief Executive/S151,Revenue,Grants & Subscriptions,SPECIAL COMMUNITY CARE
http://thanet.gov.uk/supplierspend,Thanet District Council,14/06/2019,477404,1650,,Simply Homes 4 U Ltd,SIM012,Deputy Chief Executive/S151,Revenue,Grants & Subscriptions,RENT DEPOSITS
http://thanet.gov.uk/supplierspend,Thanet District Council,14/06/2019,476103,17336.8,,Softcat Plc,SOF003,East Kent Shared Services,Revenue,Communications & Computing,ICT
http://thanet.gov.uk/supplierspend,Thanet District Council,14/06/2019,477398,8106,,Trueden Disability Adaptations Ltd,TRU012,Director of Corporate Resources and S151,Balance Sheet,Capital Exp-Non Council Assets,GRANTS
http://thanet.gov.uk/supplierspend,Thanet District Council,14/06/2019,477399,17679,,Trueden Disability Adaptations Ltd,TRU012,Director of Corporate Resources and S151,Balance Sheet,Capital Exp-Non Council Assets,GRANTS
http://thanet.gov.uk/supplierspend,Thanet District Council,14/06/2019,477395,1218,,Veale Wasbrough Vizards Llp,VEA001,Deputy Chief Executive/S151,Revenue,Services,LEGAL SERVICES
http://thanet.gov.uk/supplierspend,Thanet District Council,17/06/2019,477419,229538.36,,Maidstone Borough Council,MAI002,Director of Corporate Resources and S151,Balance Sheet,Business Rate Pooling,VARIOUS CATS-PUBLIC SECTOR
http://thanet.gov.uk/supplierspend,Thanet District Council,17/06/2019,477369,563.22,,Santander Uk Plc,SAN017,Deputy Chief Executive/S151,Revenue,Services,VARIOUS CATEGORIES
http://thanet.gov.uk/supplierspend,Thanet District Council,17/06/2019,477605,1486557,,Secretary Of State,SEC003,Director of Corporate Resources and S151,Balance Sheet,Collection Fund,GOVERNMENT AGENCIES
http://thanet.gov.uk/supplierspend,Thanet District Council,17/06/2019,477606,-8771,,Secretary Of State,SEC003,Deputy Chief Executive/S151,Revenue,Revenue Financing,GOVERNMENT AGENCIES
http://thanet.gov.uk/supplierspend,Thanet District Council,17/06/2019,477606,1486555,,Secretary Of State,SEC003,Director of Corporate Resources and S151,Balance Sheet,Collection Fund,GOVERNMENT AGENCIES
http://thanet.gov.uk/supplierspend,Thanet District Council,18/06/2019,476745,1575,,Access Matters Uk,ACC008,Director Of Corp Gov/Mon Off,Revenue,"Repairs,  Alter & Mtce - Build",CONSULTANCY
http://thanet.gov.uk/supplierspend,Thanet District Council,18/06/2019,476567,1500,,Adrian Cox Associates Limited,ADR002,Director of Corporate Resources and S151,Balance Sheet,Other Land And Buildings-Hra,CONSULTANCY
http://thanet.gov.uk/supplierspend,Thanet District Council,18/06/2019,476931,2090,,Advanced Business Solutions,COA011,Deputy Chief Executive/S151,Revenue,Communications & Computing,ICT
http://thanet.gov.uk/supplierspend,Thanet District Council,18/06/2019,476503,4984.25,,Allen Scott Ltd,ALL046,Director of Corporate Resources and S151,Balance Sheet,Community Assets,CONSTRUCTION-REPAIR AND MAINT
http://thanet.gov.uk/supplierspend,Thanet District Council,18/06/2019,476516,4462.5,,Alpha Parking Ltd,ALP006,Dir Ops/Commercial Serv,Revenue,Services,HUMAN RESOURCES
http://thanet.gov.uk/supplierspend,Thanet District Council,18/06/2019,476806,3808.91,,Ass Of Electoral Administrators,AEA001,Director Of Corp Gov/Mon Off,Revenue,Services,HUMAN RESOURCES
http://thanet.gov.uk/supplierspend,Thanet District Council,18/06/2019,476729,812,,Aston Walker,AST008,Dir Ops/Commercial Serv,Revenue,Services,CEMETERY AND CREMATORIUM
http://thanet.gov.uk/supplierspend,Thanet District Council,18/06/2019,476151,666,,Bevan Brittan Llp,BEV001,Director Of Corp Gov/Mon Off,Revenue,Services,LEGAL SERVICES
http://thanet.gov.uk/supplierspend,Thanet District Council,18/06/2019,476524,1000,,Bevan Brittan Llp,BEV001,Director Of Corp Gov/Mon Off,Revenue,Services,LEGAL SERVICES
http://thanet.gov.uk/supplierspend,Thanet District Council,18/06/2019,476525,1000,,Bevan Brittan Llp,BEV001,Director Of Corp Gov/Mon Off,Revenue,Services,LEGAL SERVICES
http://thanet.gov.uk/supplierspend,Thanet District Council,18/06/2019,476529,1000,,Bevan Brittan Llp,BEV001,Director Of Corp Gov/Mon Off,Revenue,Services,LEGAL SERVICES
http://thanet.gov.uk/supplierspend,Thanet District Council,18/06/2019,476531,1000,,Bevan Brittan Llp,BEV001,Director Of Corp Gov/Mon Off,Revenue,Services,LEGAL SERVICES
